{"text_format":"1","workbook":"xlsx","n_sheets":13,"sheets":["Prompt","C100","C101","C200","C300","C323","C400","C500","C700","C800","C900","C1000","Enviar"],"not_rendered":{"charts":0,"images":6,"macros":1,"external_links":0,"defined_names":2,"comments":1,"pivot_tables":0},"unopened":[],"bounds":{"document_bytes":16777216,"sheet_cells":100000,"rows_first":2000,"rows_last":500,"rows_between":2000,"halvings":0,"cell_chars":16384,"cell_head_chars":4096},"cells_cut":0,"cells_raw":0,"read":"whole","date_system":"1900"}

{"sheet":"Prompt","index":0,"n_rows":79,"n_cols":4,"rows_kept":79,"cut":false,"hidden":true,"merged":[[1,3,2,6],[4,1,6,8],[43,1,44,8],[78,1,79,8],[9,1,10,8]]}
[]
[null,null,null,"¡ATENCIÓN!"]
[]
[]
[null,"Para hacer uso de las funcionalidades de esta Cédula Electrónica debe habilitar macros"]
[]
[]
[]
[]
[null,"Si utiliza Excel 2013 siga el siguiente procedimiento:"]
[]
[]
[]
[]
[]
[]
[]
[]
[]
[]
[]
[]
[]
[]
[]
[]
[]
[]
[]
[]
[]
[]
[]
[]
[]
[]
[]
[]
[]
[]
[]
[]
[]
[null,"Si utiliza Excel 2007 siga el siguiente procedimiento:"]
[]
[]
[]
[]
[]
[]
[]
[]
[]
[]
[]
[]
[]
[]
[]
[]
[]
[]
[]
[]
[]
[]
[]
[]
[]
[]
[]
[]
[]
[]
[]
[]
[]
[]
[null,"Si utiliza Excel 2000, 2002, 2003 siga el siguiente procedimiento:"]

{"sheet":"C100","index":1,"n_rows":656,"n_cols":131,"rows_kept":656,"cut":false,"hidden":false,"merged":[[333,15,333,16],[334,15,334,16],[285,15,285,16],[286,15,286,16],[306,15,306,16],[287,15,287,16],[288,15,288,16],[289,15,289,16],[290,15,290,16],[291,15,291,16],[292,15,292,16],[293,15,293,16],[294,15,294,16],[295,15,295,16],[296,15,296,16],[297,15,297,16],[298,15,298,16],[299,15,299,16],[300,15,300,16],[301,15,301,16],[302,15,302,16],[298,13,298,14],[299,13,299,14],[300,13,300,14],[301,13,301,14],[302,13,302,14],[303,13,303,14],[304,13,304,14],[331,15,331,16],[332,15,332,16],[289,13,289,14],[290,13,290,14],[291,13,291,14],[292,13,292,14],[293,13,293,14],[294,13,294,14],[295,13,295,14],[296,13,296,14],[297,13,297,14],[379,6,380,9],[379,11,380,13],[379,14,380,16],[275,15,275,16],[274,15,274,16],[269,15,269,16],[270,15,270,16],[271,15,271,16],[272,15,272,16],[273,15,273,16],[269,10,269,11],[270,10,270,11],[275,10,275,11],[274,10,274,11],[271,10,271,11],[272,10,272,11],[273,10,273,11],[269,12,269,14],[270,12,270,14],[275,12,275,14],[271,12,271,14],[272,12,272,14],[273,12,273,14],[274,12,274,14],[579,7,580,9],[579,10,580,12],[579,13,580,15],[579,5,580,6],[553,21,554,22],[553,23,554,25],[553,26,554,28],[553,29,554,31],[433,26,433,31],[434,26,435,28],[434,29,435,31],[495,21,496,24],[495,26,496,28],[495,29,496,31],[437,29,437,31],[438,29,438,31],[523,22,524,26],[523,29,523,31],[453,8,453,12],[488,26,488,30],[501,9,501,12],[505,22,505,25],[518,23,518,27],[529,7,529,11],[341,14,341,15],[197,30,200,30],[218,26,219,27],[218,28,219,29],[218,30,219,31],[219,20,219,22],[327,12,330,12],[282,15,284,16],[282,13,284,14],[282,11,284,12],[318,14,318,15],[327,13,330,13],[327,14,330,14],[326,15,330,16],[305,13,305,14],[285,11,285,12],[286,11,286,12],[304,15,304,16],[305,15,305,16],[285,13,285,14],[286,13,286,14],[306,13,306,14],[287,13,287,14],[288,13,288,14],[371,28,371,29],[373,28,373,29],[197,31,200,31],[306,11,306,12],[287,11,287,12],[288,11,288,12],[289,11,289,12],[290,11,290,12],[291,11,291,12],[292,11,292,12],[293,11,293,12],[294,11,294,12],[295,11,295,12],[296,11,296,12],[297,11,297,12],[298,11,298,12],[299,11,299,12],[300,11,300,12],[301,11,301,12],[302,11,302,12],[303,11,303,12],[304,11,304,12],[305,11,305,12],[303,15,303,16],[264,10,264,14],[188,10,188,11],[189,10,189,11],[185,12,185,13],[186,12,186,13],[187,12,187,13],[188,12,188,13],[189,12,189,13],[223,11,223,12],[224,11,224,12],[226,9,226,10],[227,9,227,10],[223,13,223,14],[224,13,224,14],[225,13,225,14],[226,13,226,14],[227,13,227,14],[185,14,185,16],[186,14,186,16],[187,14,187,16],[188,14,188,16],[264,15,268,16],[223,15,223,16],[224,15,224,16],[16,9,16,20],[1,28,1,31],[2,28,3,31],[14,9,14,28],[24,28,24,30],[20,28,20,30],[39,29,41,30],[39,25,40,26],[41,25,41,26],[38,9,38,14],[39,12,39,14],[16,24,16,30],[40,13,40,14],[41,27,41,28],[39,21,41,23],[39,27,40,28],[41,13,41,14],[39,9,39,11],[41,10,41,11],[40,10,40,11],[33,2,33,32],[9,2,9,32],[38,4,40,6],[52,14,54,14],[52,15,54,15],[52,16,54,16],[86,28,87,29],[103,27,104,28],[88,28,88,29],[89,28,89,29],[42,25,42,26],[43,25,43,26],[44,25,44,26],[45,25,45,26],[44,27,44,28],[45,27,45,28],[42,13,42,14],[43,13,43,14],[45,13,45,14],[44,13,44,14],[42,27,42,28],[43,27,43,28],[79,9,79,13],[80,26,80,31],[100,9,100,13],[604,28,605,30],[606,28,606,30],[607,28,607,30],[608,28,608,30],[603,28,603,30],[603,26,603,27],[604,26,605,27],[42,10,42,11],[43,10,43,11],[44,10,44,11],[45,10,45,11],[43,29,43,30],[42,29,42,30],[44,29,44,30],[45,29,45,30],[436,26,436,28],[327,11,329,11],[51,11,54,11],[52,12,54,12],[105,27,105,28],[51,12,51,16],[265,12,268,14],[197,29,200,29],[52,13,54,13],[266,5,266,8],[229,9,229,10],[229,11,229,12],[229,13,229,14],[229,15,229,16],[225,11,225,12],[226,11,226,12],[227,11,227,12],[647,21,647,30],[628,21,628,30],[629,21,629,30],[634,21,634,30],[630,21,630,30],[631,21,631,30],[632,21,632,30],[633,21,633,30],[581,26,581,30],[609,26,609,27],[610,26,610,27],[609,28,609,30],[610,28,610,30],[606,26,606,27],[607,26,607,27],[608,26,608,27],[262,23,262,28],[90,28,90,29],[91,28,91,29],[92,28,92,29],[223,9,223,10],[224,9,224,10],[228,9,228,10],[228,11,228,12],[274,23,274,28],[181,9,184,9],[181,10,182,13],[183,10,184,11],[183,12,184,13],[182,14,183,16],[106,27,106,28],[189,14,189,16],[220,9,222,10],[220,11,222,12],[220,13,222,14],[220,15,222,16],[185,10,185,11],[186,10,186,11],[187,10,187,11],[265,10,268,11],[244,7,244,11],[181,8,184,8],[182,3,183,7],[225,15,225,16],[226,15,226,16],[227,15,227,16],[228,13,228,14],[228,15,228,16],[195,28,196,31],[195,24,196,27],[196,19,196,21],[218,24,219,25],[197,27,200,27],[197,28,200,28],[225,9,225,10],[197,24,200,24],[197,25,200,25],[197,26,200,26],[126,9,126,14],[149,7,149,12],[202,7,202,11],[12,9,12,10],[12,21,12,23],[60,7,60,10],[545,7,545,11],[92,22,92,26],[140,26,140,31],[189,4,189,7],[275,7,275,9],[334,7,334,10],[287,23,287,28],[306,6,306,10],[329,26,329,31],[365,23,365,28],[401,9,401,13],[398,26,398,30],[411,26,411,30],[438,10,438,14],[439,10,439,14],[437,26,437,28],[438,26,438,28],[436,29,436,31]]}
[]
[null,null,null,null,null,null,null,null,"CENSO EDUCATIVO 2025",null,null,null,null,null,null,null,null,null,null,null,null,null,null,null,null,null,null,null,"CÉDULA"]
[null,null,null,null,null,null,null,null,"EDUCACIÓN BÁSICA REGULAR",null,null,null,null,null,null,null,null,null,null,null,null,null,null,null,null,null,null,null,"3AS"]
[null,null,null,null,null,null,null,null,"SECUNDARIA"]
[null,null,"Versión :",null,null,"GA-1.9"]
[null,null,"INSTRUCCIONES DEL FORMATO ELECTRÓNICO "]
[]
[]
[]
[null,null,"IDENTIFICACIÓN DEL SERVICIO EDUCATIVO"]
[]
[]
[null,null,"1. CÓDIGO MODULAR  :",null,null,null,null,null,null,null,null,null,null,null,0,"ANEXO",null,null,null,null,null,null,null,null,null,"3. LOCAL EDUCATIVO "]
[]
[null,null,"2. NOMBRE DEL SERVICIO EDUCATIVO:",null,null,null,null,null,null,""]
[]
[null,null,"4. DISTRITO :",null,null,null,null,null,null,"",null,null,null,null,null,null,null,null,null,null,null,null,null,"LOCALIDAD :  "]
[]
[]
[null,null,"5. FORMA Y MODELO DEL SERVICIO :"]
[null,null,null,null,null,null,null,null,null,null,null,null,null,null,null,null,null,null,null,null,null,"Cantidad de alumnos en la RE :"]
[null,null,null,null,"","JER - Jornada Escolar Regular",null,null,null,null,null,null,"","Secundaria en Alternancia"]
[null,null,null,null,"","JEC - Jornada Escolar Completa",null,null,null,null,null,null,"","Secundaria Tutorial",null,null,null,null,null,null,null,"¿La RE se encuentra en el local principal de la IE?",null,null,null,null,null,null,null,"Sí  ",null,"No"]
[null,null,null,null,"","SFT - Secundaria con Formación Técnica",null,null,null,null,null,null,null,"Secundaria con Residencia Estundiantil"]
[null,null,null,null,"","COAR - Colegio de Alto Rendimiento",null,null,null,null,null,null,"","Centro Piloto de Educación a Distancia-CPED",null,null,null,null,null,null,null,"Señalar la distancia en metros :"]
[null,null,null,null,null,null,null,null,null,null,null,null,"","Otro",null,null,null,null,null,null,null,"¿Los ambientes de la residencia estudiantil se"]
[null,null,null,null,null,null,null,null,null,null,null,null,null,null,null,null,null,null,null,null,null,"encuentran en los terrenos propios del local educativo?",null,null,null,null,null,null,null,"Sí  ",null,"No"]
[]
[]
["GESTIÓN"]
[{"$f":"CONCATENATE(TRIM(UPPER(K31)),TRIM(UPPER(Q31)),TRIM(UPPER(Y31)))","v":""},null,null,"Esta Institución Educativa es de Gestión : ",null,null,null,null,null,null,null," 1 - Pública de gestión directa",null,null,null,null,""," 2 - Pública de gestión privada",null,null,null,null,null,null,""," 3 - Privada"]
[]
[]
[null,null,"100. CARACTERÍSTICAS DEL SERVICIO EDUCATIVO"]
[]
[null,null,null,"A. CARACTERÍSTICA DE LA ENSEÑANZA"]
[null,null,null,"101.A. ¿EN QUÉ HORARIO SE DESARROLLAN LAS CLASES DE LOS ESTUDIANTES?",null,null,null,null,null,null,null,null,null,null,null,null,null,null,"102.A. SEÑOR(A) DIRECTOR(A), INDIQUE LOS ESPACIOS DESTINADOS A LA INTERACCIÓN SOCIAL"]
[null,null,null,null,null,null,null,null,null,null,null,null,null,null,null,null,null,null,null,"Y DETALLE EL TIEMPO DE DURACIÓN (EN MINUTOS) PARA CADA UNO DE ELLOS"]
["SI-NO",null,null,null,"TURNO",null,null,null,null,"Horario de clases",null,null,null,null,null,null,null,null,null,null,"Marque con una “X” las alternativas que correspondan"]
["SI",null,null,null,null,null,null,null,null,"Inicio",null,null,"Término",null,null,null,null,null,null,null,null,"Espacio educativo para interacción social",null,null,null,"¿Tiene?",null,"¿ Dentro Horario?",null,"Tiempo de duración\nen minutos"]
["NO",null,null,null,null,null,null,null,{"$f":"SUM(I42:I46)","v":0},"Hora","Minutos",null,"Hora","Minutos"]
[null,null,null,null,1,"Mañana",null,null,{"$f":"COUNT(J42:N42)","v":0},null,null,null,null,null,null,{"$f":"IF(OR(J42=\"\",K42=\"\",M42=\"\",N42=\"\"),1,0)","v":1},null,null,null,null,null,null,null,null,null,"Sí - No",null,"Sí - No"]
[null,null,null,null,2,"Tarde",null,null,{"$f":"COUNT(J43:N43)","v":0},null,null,null,null,null,null,{"$f":"IF(OR(J43=\"\",K43=\"\",M43=\"\",N43=\"\"),1,0)","v":1},null,null,null,null,1,"De los recreos"]
[null,null,null,null,3,"Discontinuo",null,null,{"$f":"COUNT(J44:N44)","v":0},null,null,null,null,null,null,{"$f":"IF(OR(J44=\"\",K44=\"\",M44=\"\",N44=\"\"),1,0)","v":1},null,null,null,null,2,"Del desayuno escolar"]
[null,null,null,null,4,"Continuo",null,null,{"$f":"COUNT(J45:N45)","v":0},null,null,null,null,null,null,{"$f":"IF(OR(J45=\"\",K45=\"\",M45=\"\",N45=\"\"),1,0)","v":1},null,null,null,null,3,"Del almuerzo escolar"]
[null,null,null,null,5,"Horario no estable",null,null,{"$f":"COUNT(J46:N46)","v":0},null,null,null,null,null,null,{"$f":"IF(OR(J46=\"\",K46=\"\",M46=\"\",N46=\"\"),1,0)","v":1},null,null,null,null,4,"De la lonchera"]
[null,null,null,null,null,null,null,null,null,null,null,null,null,null,null,null,null,null,null,null,null,null,null,null,null,{"$f":"COUNTIF(Z43:Z46,\"SI\")+COUNTIF(Z43:Z46,\"NO\")","v":0}]
[]
[null,null,null,"103.A. EN EL AÑO 2024, DESDE EL INICIO DE CLASES Y SIN CONTAR SÁBADOS NI DOMINGOS,",null,null,null,null,null,null,null,null,null,null,null,null,null,null,null,"109.A. EN EL PRESENTE AÑO, ¿HA RECIBIDO MATERIALES FORMATIVOS O INFORMATIVOS, YA SEAN"]
[null,null,null,null,"¿CUÁNTOS DÍAS NO SE REALIZARON CLASES POR LAS SIGUIENTES RAZONES PROGRAMADAS?",null,null,null,null,null,null,null,null,null,null,null,null,null,null,null,"FÍSICOS O DIGITALES SOBRE LOS INSTRUMENTOS DE GESTIÓN?"]
[null,null,null,null,null,null,null,null,null,null,null,null,null,null,null,null,null,null,null,null,"Marque con una “X”, una o más opciones"]
[null,null,null,null,null,null,null,null,null,null,null,"¿Fue una razón progra mada?","Número de días"]
[null,null,null,null,null,null,null,null,null,null,null,null,"1 - 5 días"," 6 - 10 días","11 - 15 días","16 - 20 días","Más de 20 días",null,null,null,null,"Si he recibido materiales y/o información a través de la UGEL. "]
[null,null,null,null,null,null,"Razones Programadas",null,null,null,null,null,null,null,null,null,null,null,null,null,null,"Si he recibido materiales y/o información a través de la DRE/GRE. "]
[null,null,null,null,null,null,null,null,null,null,null,null,null,null,null,null,null,null,null,null,null,"Si he recibido materiales y/o información a través de los programas formativos de la carrera ... "]
[null,null,null,null,1,"Vacaciones del año escolar",null,null,null,null,null,null,"","","","","",null,null,null,null,"Si he recibido materiales y/o información a través de mis colegas o redes profesionales . "]
[null,null,null,null,2,"Feriados nacionales oficiales (Fiestas patrias y otros)",null,null,null,null,null,null,null,null,null,null,null,null,null,null,null,"Si he recibido materiales y/o información a través de páginas web oficiales del Minedu .... "]
[null,null,null,null,3,"Feriados regionales o locales",null,null,null,null,null,null,null,null,null,null,null,null,null,null,null,"No he recibido materiales ni información sobre los Instrumentos de Gestión."]
[null,null,null,null,4,"Celebraciones de la institución educativa"]
[null,null,null,null,5,"Jornada de reflexión",null,null,null,null,null,null,"","","","",""]
[null,null,null,null,6,"Otras razones",null,null,null,null,null,null,null,null,null,null,null,null,null,"110.A. ¿SE HA ELABORADO EL PLAN ANUAL DE TRABAJO (PAT) 2025?"]
[null,null,null,null,null,null,null,null,null,null,null,{"$f":"COUNTIF(L56:L61,\"SI\")+COUNTIF(L56:L61,\"NO\")","v":0}]
[null,null,null,"104.A. EN EL AÑO 2024, ¿SE SUSPENDIERON CLASES EN SU SERVICIO/NIVEL EDUCATIVO,"]
[null,null,null,null,"POR RAZONES NO PROGRAMADAS?",null,null,null,null,null,null,null,null,null,null,null,null,null,null,null,"Sí",null,null,null,null,"No  ",""]
[]
[null,null,null,null,"Sí","",null,null,null,"No  ",null,null,null,"Pase a la pregunta 106.A"]
[]
[null,null,null,"105.A. ¿SE RECUPERARON DÍAS DE CLASES QUE SE SUSPENDIERON POR RAZONES NO PROGRAMADAS?",null,null,null,null,null,null,null,null,null,null,null,null,null,null,null,"111.A. EN EL PRESENTE AÑO, ¿ESTÁN IMPLEMENTANDO ACTIVIDADES DIRIGIDAS A FAMILIAS EN ESTE"]
[null,null,null,null,null,null,null,null,null,null,null,null,null,null,null,null,null,null,null,null,"SERVICIO/NIVEL EDUCATIVO?"]
[null,null,null,null,"Sí","",null,null,null,"No  ",""]
[]
[null,null,null,null,null,null,"¿Qué estrategia(s) se utilizó(aron) para recuperar los días de clases",null,null,null,null,null,null,null,null,null,null,null,null,null,"Sí",null,null,null,null,"No  ",null,null,null,"Pase a la pregunta 114.A"]
[null,null,null,null,null,null,"perdidos por razones no programadas?"]
[null,null,null,null,null,null,"Marque con una “X”, una o más opciones",null,null,null,null,null,null,null,null,null,null,null,null,null,null,null,null,"¿Qué actividades se están implementando?"]
[null,null,null,null,null,null,null,null,null,null,null,null,null,null,null,null,null,null,null,null,null,null,null,"Marque con una “X”, una o más opciones"]
[null,null,null,null,null,null,"","Se implementaron horas adicionales de clases"]
["DIAS",null,null,null,null,null,"","Se realizaron clases los días feriados",null,null,null,null,null,null,null,null,null,null,null,null,null,null,null,null,"Encuentros familiares"]
[1,null,null,null,null,null,"","Se desarrollaron clases durante las vacaciones escolares",null,null,null,null,null,null,null,null,null,null,null,null,null,null,null,null,"Jornadas con padres de familia"]
[2,null,null,null,null,null,"","Se dictaron clases los días sábados/domingos",null,null,null,null,null,null,null,null,null,null,null,null,null,null,null,null,"Reuniones"]
[3,null,null,null,null,null,"","Otros",null,"",null,null,null,null,null,null,null,null,null,null,null,null,null,null,"Fomento a la lectura"]
[4,null,null,null,null,null,null,null,null,null,null,null,null,null,null,null,null,null,null,null,null,null,null,null,"Otros",null,""]
[5,null,null,"106.A. ¿SE SOLICITARON VACANTES NUEVAS DURANTE EL PROCESO DE MATRICULA 2025?"]
[6,null,null,null,null,null,null,null,null,null,null,null,null,null,null,null,null,null,null,"112.A. EN LAS ACTIVIDADES QUE REALIZA CON LAS FAMILIAS, ¿QUE TEMAS SE HAN ABORDADO Y"]
[7,null,null,null,"Sí","",null,null,null,"No  ",null,null,null,"Pase a la pregunta 108.A",null,null,null,null,null,null,"CUÁNTAS ACTIVIDADES SE HAN REALIZADO?"]
[8,null,null,null,null,null,null,null,null,null,null,null,null,null,null,null,null,null,null,null,"Marque con una “X” según corresponda"]
[9]
[10,null,null,"107.A. DURANTE EL PROCESO DE MATRÍCULA DEL PERIODO 2025, LOS PADRES DE FAMILIA,",null,null,null,null,null,null,null,null,null,null,null,null,null,null,null,null,null,null,null,null,null,null,null,"¿Se ","¿Cuántas actividades?"]
[11,null,null,null,"CUIDADORES(AS) O APODERADOS(AS) QUE SOLICITARON UNA O MÁS VACANTES EN ESTE",null,null,null,null,null,null,null,null,null,null,null,null,null,null,null,"Razones Programadas",null,null,null,null,null,null,"realizaron?"]
[12,null,null,null,"SERVICIO/NIVEL EDUCATIVO, ¿LOGRARON OBTENER EL TOTAL DE VACANTES SOLICITADAS?",null,null,null,null,null,null,null,null,null,null,null,null,null,null,null,1,"Competencias parentales vinculares",null,null,null,null,null,null,""]
[13,null,null,null,null,null,null,null,null,null,null,null,null,null,null,null,null,null,null,null,2,"Competencias parentales protectores",null,null,null,null,null,null,""]
[14,null,null,null,"Sí","",null,null,null,"No  ","",null,null,null,null,null,null,null,null,null,3,"Educación sexual integral",null,null,null,null,null,null,""]
[15,null,null,null,null,null,null,null,null,null,null,null,null,null,null,null,null,null,null,null,4,"Fomento de la competencia lectora",null,null,null,null,null,null,""]
[16,null,null,null,null,null,null,null,null,null,null,null,null,null,null,null,null,null,null,null,5,"Otros","",null,null,null,null,null,""]
[17,null,null,null,null,null,null,null,null,null,null,null,null,null,null,null,null,null,null,null,null,null,null,null,null,null,null,{"$f":"COUNTIF(AB89:AB93,\"SI\")+COUNTIF(AB89:AB93,\"NO\")","v":0}]
[18,null,null,null,null,null,"¿Por qué no se logró asignar una o mas vacantes solicitadas?",null,null,null,null,null,null,null,null,null,null,null,null,"113.A. DE LAS ACTIVIDADES QUE REALIZA CON FAMILIAS Y COMUNIDAD, ¿POR LO MENOS UNA DE"]
[19,null,null,null,null,null,"Marque con una “X”, una opción",null,null,null,null,null,null,null,null,null,null,null,null,null,"ELLAS TIENE COMO EJE PRINCIPAL LA EDUCACIÓN SEXUAL INTEGRAL (ESI)?"]
[20]
[21,null,null,null,null,null,"","No hay capacidad en la IE para recibir mas estudiantes",null,null,null,null,null,null,null,null,null,null,null,null,"Sí","",null,null,null,"No  "]
[22,null,null,null,null,null,"","Sí hay capacidad, pero algunas aulas presentan condiciones de alto riesgo"]
[23,null,null,null,null,null,"","Se priorizó mantener una carga docente baja para favorecer el aprendizaje",null,null,null,null,null,null,null,null,null,null,null,"114.A. ESTE SERVICIO/NIVEL EDUCATIVO, ¿CUENTA CON PRACTICANTES DE UNIVERSIDADES O INSTITUTOS?"]
[24,null,null,null,null,null,"","Otros"]
[25,null,null,null,null,null,null,null,null,null,null,null,null,null,null,null,null,null,null,null,"Sí","",null,null,null,"No  "]
[26]
[27,null,null,"108.A. EN EL PRESENTE AÑO, ¿RESERVO COMO MÍNIMO DOS (02) VACANTES POR AULA PARA ESTUDIANTES",null,null,null,null,null,null,null,null,null,null,null,null,null,null,null,null,null,null,null,null,null,null,null,"Cantidad de \npracticantes"]
[28,null,null,null,"CON NECESIDADES EDUCATIVAS ESPECIALES ASOCIADA A DISCAPACIDAD LEVE O MODERADA?",null,null,null,null,null,null,null,null,null,null,null,null,null,null,null,null,null,null,"Entidad de Procedencia"]
[29,null,null,null,null,null,null,null,null,null,null,null,null,null,null,null,null,null,null,null,null,null,null,"1. Universidad",null,null,null,""]
[30,null,null,null,"Sí",null,null,null,null,"No  ","",null,null,null,null,null,null,null,null,null,null,null,null,"2. Instituto",null,null,null,""]
[]
[]
[]
[]
[]
[null,null,null,null,null,null,null,null,null,null,null,null,null,null,null,null,null,null,null,null,null,null,null,null,null,null,null,{"$f":"SUM(AB106:AC107)","v":0}]
[]
["MESES",null,null,"115.A. ESTE SERVICIO/NIVEL EDUCATIVO, ¿REALIZA COORDINACIONES Y/O ACCIONES DE ARTICULACIÓN",null,null,null,null,null,null,null,null,null,null,null,null,null,null,null,"119.A. ¿CÓMO SE DISTRIBUYEN LOS ESTUDIANTES EN LAS SECCIONES DE SU SERVICIO/NIVEL EDUCATIVO?"]
["01: Enero",null,null,null,"CON EL ESTABLECIMIENTO DE SALUD?",null,null,null,null,null,null,null,null,null,null,null,null,null,null,null,"Marque con una “X”, una opción"]
["02: Febrero"]
["03: Marzo",null,null,null,"Sí","",null,null,null,"No  ",null,null,null,null,null,null,null,null,null,null,null,"Según su rendimiento académico: se agrupan estudiantes con rendimiento similar. "]
["04: Abril",null,null,null,null,null,null,null,null,null,null,null,null,null,null,null,null,null,null,null,null,"Según su rendimiento académico: se agrupan estudiantes con rendimiento diferente. "]
["05: Mayo",null,null,null,null,null,"¿Qué tipo de coordinaciones y/o acciones realiza?",null,null,null,null,null,null,null,null,null,null,null,null,null,null,"Según la edad normativa: los estudiantes dentro de la edad normativa van a las primeras secc."]
["06: Junio",null,null,null,null,null,"Marque con una “X”, una o más opciones",null,null,null,null,null,null,null,null,null,null,null,null,null,null,"Según la conducta de los estudiantes."]
["07: Julio",null,null,null,null,null,null,null,null,null,null,null,null,null,null,null,null,null,null,null,null,"Por sexo: niños y niñas de manera equitativa."]
["08: Agosto",null,null,null,null,null,"","Salud física de estudiantes",null,null,null,null,null,null,null,null,null,null,null,null,null,"Por orden de matricula."]
["09: Septiembre",null,null,null,null,null,"","Salud física de docentes",null,null,null,null,null,null,null,null,null,null,null,null,null,"Por orden alfabético."]
["10: Octubre",null,null,null,null,null,"","Salud mental del estudiante",null,null,null,null,null,null,null,null,null,null,null,null,null,"Mi Servicio/Nivel educativo solo tiene una sección por grado."]
["11: Noviembre",null,null,null,null,null,"","Salud mental del docente",null,null,null,null,null,null,null,null,null,null,null,null,null,"Al azar, sin tener en cuenta ningún criterio especial"]
["12: Diciembre",null,null,null,null,null,"","Otros      ",null,""]
["01: Enero",null,null,null,null,null,null,null,null,null,null,null,null,null,null,null,null,null,null,"120.A. DURANTE EL AÑO 2024 Y HASTA LA FECHA DE LA APLICACIÓN DEL CENSO EDUCATIVO 2025,"]
["02: Febrero",null,null,"116.A. ESTE SERVICIO/NIVEL EDUCATIVO, ¿CUENTA CON UN BOTIQUÍN IMPLEMENTADO SEGÚN",null,null,null,null,null,null,null,null,null,null,null,null,null,null,null,null,"¿SE HAN REALIZADO ACCIONES PARA ATENDER SITUACIONES DE INTERRUPCIÓN DE ESTUDIOS"]
["03: Marzo",null,null,null,"LO ESTABLECIDO POR EL MINISTERIO DE SALUD?",null,null,null,null,null,null,null,null,null,null,null,null,null,null,null,"DE LOS ESTUDIANTES?"]
[]
[null,null,null,null,"Sí",null,null,null,null,"No  ","",null,null,null,null,null,null,null,null,null,"Sí","",null,null,null,"No  "]
[]
[null,null,null,"117.A. ESTE SERVICIO/NIVEL EDUCATIVO Y EL ESTABLECIMIENTO DE SALUD, ¿ESTABLECIERON UN ",null,null,null,null,null,null,null,null,null,null,null,null,null,null,null,null,null,null,null,"¿Qué acciones se realizaron?"]
[null,null,null,null,"CRONOGRAMA PARA LAS PRESTACIONES Y ACCIONES DE SALUD, QUE SE ENCUENTRAN INCLUIDAS",null,null,null,null,null,null,null,null,null,null,null,null,null,null,null,null,null,null,"Marque con una “X”, una o más opciones"]
[null,null,null,null,"EN EL PLAN ANUAL DE TRABAJO?"]
[null,null,null,null,null,null,null,null,null,null,null,null,null,null,null,null,null,null,null,null,null,null,null,"","Seguimiento y visitas a estudiantes en riesgo de abandono"]
[null,null,null,null,"Sí",null,null,null,null,"No  ","",null,null,null,null,null,null,null,null,null,null,null,null,"","Orientaciones a las familias sobre la continuidad en la IE"]
[null,null,null,null,null,null,null,null,null,null,null,null,null,null,null,null,null,null,null,null,null,null,null,"","Flexibilización de la atención educativa brindada en la IE"]
[null,null,null,"118.A. ¿QUÉ CRITERIOS SE CONSIDERAN EN ESTE SERVICIO/NIVEL EDUCATIVO PARA DISTRIBUIR",null,null,null,null,null,null,null,null,null,null,null,null,null,null,null,null,null,null,null,"","Orientación a los docentes para atender a los estudiantes en riesgo"]
[null,null,null,null,"LA CARGA HORARIA, LOS TURNOS, GRADOS/ SECCIONES A LOS DOCENTES DEL NIVEL SECUNDARIA? ",null,null,null,null,null,null,null,null,null,null,null,null,null,null,null,null,null,null,"","Otros      ",null,""]
[null,null,null,null,"Marque con una “X”, una o más opciones"]
[null,null,null,null,null,null,null,null,null,null,null,null,null,null,null,null,null,null,null,{"$f":"IF(OR(UPPER('C100'!K31)=\"X\",UPPER('C100'!Q31)=\"X\"),\"\",IF(UPPER('C100'!Y31)=\"X\",\"X\",\"\"))","v":""},"SOLO GESTIÓN PRIVADA"]
[null,null,null,null,null,"Por decisión de los directivos de la IE. "]
[null,null,null,null,null,"Por elección de los docentes según sus preferencias.",null,null,null,null,null,null,null,null,null,null,null,null,null,"121.A. ¿CUENTA CON ESTUDIANTES BENEFICIADOS CON BECAS DE ESTUDIOS, AL AMPARO DE LA"]
[null,null,null,null,null,"Según la denominación del título profesional.",null,null,null,null,null,null,null,null,null,null,null,null,null,null,"LEY Nº 23585, “ESTUDIANTES DE PLANTELES Y UNIVERSIDADES PARTICULARES QUE PIERDAN"]
[null,null,null,null,null,"Según modalidad de contrato (Nombrado/ contratado)",null,null,null,null,null,null,null,null,null,null,null,null,null,null,"A SUS PADRES O TUTORES TIENEN DERECHO A BECA”?"]
[null,null,null,null,null,"Tiempo de servicios en la institución educativa"]
[null,null,null,null,null,"Según necesidades del cuadro de horas.",null,null,null,null,null,null,null,null,null,null,null,null,null,null,"Sí",null,null,null,null,"No  "]
[null,null,null,null,null,"Otro"]
[null,null,null,null,null,null,null,null,null,null,null,null,null,null,null,null,null,null,null,null,null,null,null,"Año 2024: Cantidad de beneficiarios"]
[]
[]
[]
[]
[]
[]
[]
[]
[]
[]
[]
[]
[]
[]
[]
[]
[]
[]
[]
[]
[]
[]
[]
[]
[]
["SI-NO",null,null,"B. TUTORÍA , ORIENTACIÓN EDUCATIVA Y CONVIVENCIA ESCOLAR"]
["SI",null,null,"101.B. INDIQUE, ¿CON CUÁLES DE LOS SIGUIENTES ESPACIOS DE PARTICIPACIÓN ",null,null,null,null,null,null,null,null,null,null,null,null,null,null,null,"105.B. EL SERVICIO/NIVEL EDUCATIVO, ¿INCLUYE EN EL PLAN TOECE, ACTIVIDADES VINCULADAS"]
["NO",null,null,null,"CUENTA ESTE SERVICIO/NIVEL EDUCATIVO Y CON QUÉ FRECUENCIA SE REÚNEN?",null,null,null,null,null,null,null,null,null,null,null,null,null,null,null,"A LA CONVIVENCIA ESCOLAR Y PREVENCIÓN/ATENCIÓN DE LA VIOLENCIA ESCOLAR?"]
[null,null,null,null,"Seleccione y complete la o las alternativas que correspondan"]
[null,null,null,null,null,null,null,null,null,null,null,null,null,null,null,null,null,null,null,null,"Sí",null,null,null,null,"No  ","",null,"Pase a la pregunta 109.B"]
[null,null,null,null,null,null,null,null,"¿Cuénta con este espacio?","¿Está confor mado mediante (RD)?","Número y Fecha de Resolución Directoral"]
[null,null,null,"Espacio de Participación",null,null,null,null,null,null,null,null,null,null,"¿Con qué frecuencia se reúnen?",null,null,null,null,"106.B. EN EL TRANSCURSO DEL PRESENTE AÑO, ¿HA IMPLEMENTADO AL MENOS TRES ACTIVIDADES",null,null,null,null,null,null,null,null,null,null,null,null,{"$f":"CONCATENATE(K208,AA181,AA187)","v":""}]
[null,null,null,null,null,null,null,null,null,null,"Nro de RD",null," Fecha de RD\ndd/mm/aaaa",null,null,null,null,null,null,null,"RELACIONADAS A LA PROMOCIÓN DE LA CONVIVENCIA ESCOLAR, LA PREVENCIÓN Y LA"]
[null,null,null,null,null,null,null,null,null,null,null,null,null,null,null,null,null,null,null,null,"ATENCIÓN DE LA VIOLENCIA ESCOLAR DEL PLAN TOECE?"]
[1,null,null,"Comité de Gestión de Cond. Operat.",null,null,null,null,null,null,null,null,null,null,null,null,null,{"$f":"IF(OR(K186=\"\",M186=\"\",O186=\"\"),1,0)","v":1}]
[2,null,null,"Comité de Gestión del Bienestar",null,null,null,null,null,null,null,null,null,null,null,null,null,{"$f":"IF(OR(K187=\"\",M187=\"\",O187=\"\"),1,0)","v":1},null,null,"Sí",null,null,null,null,"No  ","",null,"Pase a la pregunta 109.B"]
[3,null,null,"Comité de Gestión Pedagógica ",null,null,null,null,null,null,null,null,null,null,null,null,null,1]
[4,null,null,"Consejo Educativo Institucional",null,null,null,null,null,null,null,null,null,null,null,null,null,1,null,null,null,null,null,"Precisar número de actividades"]
[5,null,null,"Otro",null,null,null,null,null,null,null,null,null,null,null,null,null,1]
[null,null,null,null,null,null,null,null,{"$f":"COUNTIF(I186:I190,\"SI\")+COUNTIF(I186:I190,\"NO\")","v":0}]
["1: Semanal",null,null,"102.B. SOLO SI MARCO QUE CUENTA CON “COMITE DE GESTIÓN DEL BIENESTAR”,",null,null,null,null,null,null,null,null,null,null,null,null,null,null,null,"107.B. ¿EN QUÉ FECHAS REALIZÓ LAS ACTIVIDADES RELACIONADAS CON LA PROMOCIÓN"]
["2: Quincenal",null,null,null,"¿QUÉ ACTORES LO CONFORMAN?",null,null,null,null,null,null,null,null,null,null,null,null,null,null,null,"DE LA CONVIVENCIA ESCOLAR, LA PREVENCIÓN Y LA ATENCIÓN DE LA VIOLENCIA ESCOLAR?"]
["3: Mensual",null,null,null,"Marque con una “X”, una o más opciones"]
["4: Bimensual",null,null,null,null,null,null,null,null,null,null,null,null,null,null,null,null,null,null,null,null,null,null,null,null,null,null,"Medios de verificación"]
["5: Trimestral",null,null,null,null,"Director/a de la IE",null,null,null,null,null,null,null,null,null,null,null,null,null,null,null,null,null,null,"Convivencia escolar democrática",null,null,null,"Prevención de la violencia contra la y los estudiantes"]
["6: Semestral",null,null,null,null,"Coordinador/a de tutoría",null,null,null,null,null,null,null,null,null,null,null,null,null,"Actividades",null,null,"Día","Mes"]
["7: No se reunen",null,null,null,null,"El/la responsable de convivencia",null,null,null,null,null,null,null,null,null,null,null,null,null,null,null,null,null,null,"Informe de actividades","Fotografías","Videos","Otros","Informe de actividades","Fotografías","Videos","Otros"]
[null,null,null,null,null,"El/la responsable de inclusión"]
[null,null,null,null,null,"Un/a representante de los padres y madres de familia, tutores legales o apoderados/as."]
[null,null,null,null,null,"Un/a representante de las y los estudiantes",null,null,null,null,null,null,null,null,null,null,null,null,null,null,null,{"$f":"SUM(V202:X211)","v":0}]
[null,null,null,null,null,"Un/a psicólogo, cuando exista el cargo en la IE",null,null,null,null,null,null,null,null,null,null,null,null,1,{"$f":"IF($S202<=$AD$189,CONCATENATE(\"Actividad - 0\",$S202),\"\")","v":""},null,{"$f":"COUNTIF(Y202:AF202,\"X\")","v":0}]
[null,null,null,null,null,"Otros",null,null,null,null,null,null,null,null,null,null,null,null,2,{"$f":"IF($S203<=$AD$189,CONCATENATE(\"Actividad - 0\",$S203),\"\")","v":""},null,0]
[null,null,null,null,null,null,null,null,null,null,null,null,null,null,null,null,null,null,3,"",null,0]
[null,null,null,"103.B. EN EL PRESENTE AÑO, ESTE SERVICIO/NIVEL EDUCATIVO, ¿CUENTA CON EL PLAN",null,null,null,null,null,null,null,null,null,null,null,null,null,null,4,"",null,0]
[null,null,null,null,"DE TUTORÍA, ORIENTACIÓN EDUCATIVA Y CONVIVENCIA ESCOLAR (PLAN TOECE)?",null,null,null,null,null,null,null,null,null,null,null,null,null,5,"",null,0]
[null,null,null,null,null,null,null,null,null,null,null,null,null,null,null,null,null,null,6,"",null,0]
[null,null,null,null,"Sí",null,null,null,null,"No  ","",null,"Pase a la pregunta 109.B",null,null,null,null,null,7,"",null,0]
[null,null,null,null,null,null,null,null,null,null,null,null,null,null,null,null,null,null,8,"",null,0]
[null,null,null,null,null,null,null,"¿Está incorporado en el Plan Anual de Trabajo (PAT) de la IE?",null,null,null,null,null,null,null,null,null,null,9,"",null,0]
[null,null,null,null,null,null,null,null,null,null,null,null,null,null,null,null,null,null,10,{"$f":"IF($S211<=$AD$189,CONCATENATE(\"Actividad - \",$S211),\"\")","v":""},null,0]
[null,null,null,null,null,null,null,null,null,"Sí  ",null,null,null,null,"No  "]
[null,null,null,""]
[null,null,null,"",null,null,null,"¿El PAT de la IE que incluye al Plan TOECE está reconocido con RD?",null,null,null,null,null,null,null,null,null,null,null,"108.B. ¿QUIÉNES FUERON LOS PARTICIPANTES Y LA CANTIDAD DEL PÚBLICO OBJETIVO DE LAS"]
[{"$f":"CONCATENATE(E220,E229)","v":""},null,null,null,null,null,null,null,null,null,null,null,null,null,null,null,null,null,null,null,"ACTIVIDADES RELACIONADAS CON LA PROMOCIÓN DE LA CONVIVENCIA ESCOLAR,"]
[{"$f":"CONCATENATE(G220,G229)","v":""},null,null,null,null,null,null,null,null,"Sí  ",null,null,null,null,"No  ",null,null,null,null,null,"LA PREVENCIÓN Y LA ATENCIÓN DE LA VIOLENCIA ESCOLAR?"]
[]
[null,null,null,"104.B. SEÑOR(A) DIRECTOR(A), DE LAS SIGUIENTES ACTIVIDADES, ¿CUÁLES SE HAN INCORPORADO"]
[null,null,null,null,"EN EL PLAN DE TUTORÍA, ORIENTACIÓN EDUCATIVA Y CONVIVENCIA ESCOLAR (TOECE)?",null,null,null,null,null,null,null,null,null,null,null,null,null,null,null,null,null,null,null,"Docente",null,"Estudiantes",null,"Familias",null,"Personal Administrativo"]
["SI",null,null,null,null,null,null,null,null,null,null,null,null,null,null,null,null,null,null,null,"Actividades"]
["NO",null,null,null,null,null,null,null,null,"¿Se \nincorporó?",null,"¿Se\nimplementó?",null,"¿Cuántas\nacciones?",null,"¿Ha recibido\nasistencia\ntécnica?",null,null,null,null,null,null,null,{"$f":"SUM(X222:X232)","v":0},"Si-No","Cantidad","Si-No","Cantidad","Si-No","Cantidad","Si-No","Cantidad"]
[null,null,null,null,"Actividad",null,null,null,null,null,null,null,null,null,null,null,null,null,null,1,{"$f":"IF($T222<=$AD$189,CONCATENATE(\"Actividad - 0\",$T222),\"\")","v":""},null,null,{"$f":"Z222+AB222+AD222+AF222","v":0},null,null,null,null,null,null,null,null,{"$f":"IF(OR(Y222=\"SI\",AA222=\"SI\",AC222=\"SI\",AE222=\"SI\"),1,0)","v":0}]
[null,null,null,null,null,null,null,null,null,null,null,null,null,null,null,null,null,null,null,2,{"$f":"IF($T223<=$AD$189,CONCATENATE(\"Actividad - 0\",$T223),\"\")","v":""},null,null,{"$f":"Z223+AB223+AD223+AF223","v":0},null,null,null,null,null,null,null,null,{"$f":"IF(OR(Y223=\"SI\",AA223=\"SI\",AC223=\"SI\",AE223=\"SI\"),1,0)","v":0}]
[1,null,null,"Taller con docentes y otros miembros de la comunidad educativa",null,null,null,null,null,"",null,"",null,"",null,"",null,null,null,3,"",null,null,{"$f":"Z224+AB224+AD224+AF224","v":0},null,null,null,null,null,null,null,null,0]
[2,null,null,"Taller con docentes para implementar la educación sexual integral",null,null,null,null,null,"",null,"",null,"",null,"",null,null,null,4,"",null,null,0,null,null,null,null,null,null,null,null,0]
[3,null,null,"Reuniones de trabajo entre tutores y otros docentes",null,null,null,null,null,"",null,"",null,"",null,"",null,null,null,5,"",null,null,0,null,null,null,null,null,null,null,null,0]
[4,null,null,"Actividad para prevenir alguna situación de riesgo",null,null,null,null,null,"",null,"",null,"",null,"",null,null,null,6,"",null,null,0,null,null,null,null,null,null,null,null,0]
[5,null,null,"Actividad para promover la participación estudiantil",null,null,null,null,null,"",null,"",null,"",null,"",null,null,null,7,"",null,null,0,null,null,null,null,null,null,null,null,0]
[6,null,null,"Identificación de aliados para la atención de casos de riesgos",null,null,null,null,null,"",null,"",null,"",null,"",null,null,null,8,"",null,null,0,null,null,null,null,null,null,null,null,0]
[7,null,null,"Actividades para valorar la diversidad",null,null,null,null,null,"",null,"",null,"",null,"",null,null,null,9,"",null,null,0,null,null,null,null,null,null,null,null,0]
[8,null,null,null,null,null,null,null,null,{"$f":"COUNTIF(J224:K230,\"SI\")+COUNTIF(J224:K230,\"NO\")","v":0},null,"",null,"",null,"",null,null,null,10,{"$f":"IF($T231<=$AD$189,CONCATENATE(\"Actividad - \",$T231),\"\")","v":""},null,null,0,null,null,null,null,null,null,null,null,0]
[null,null,null,null,null,null,null,null,null,null,null,null,null,null,null,null,null,null,null,null,null,null,null,{"$f":"Y232+AA232+AC232+AE232","v":0},{"$f":"COUNTIF(Y222:Y231,\"SI\")+COUNTIF(Y222:Y231,\"NO\")","v":0},null,{"$f":"COUNTIF(AA222:AA231,\"SI\")+COUNTIF(AA222:AA231,\"NO\")","v":0},null,{"$f":"COUNTIF(AC222:AC231,\"SI\")+COUNTIF(AC222:AC231,\"NO\")","v":0},null,{"$f":"COUNTIF(AE222:AE231,\"SI\")+COUNTIF(AE222:AE231,\"NO\")","v":0},null,{"$f":"SUM(AG222:AG231)","v":0}]
[]
[null,null,null,"109.B. EN EL PRESENTE AÑO, ¿CUÁLES SON LAS ACTIVIDADES QUE REALIZÓ ESTE SERVICIO/NIVEL",null,null,null,null,null,null,null,null,null,null,null,null,null,null,null,"112.B. ACTUALMENTE LOS DOCENTES ENCARGADOS DE TUTORÍA O PERSONAL DE TUTORÍA,"]
[null,null,null,null,"EDUCATIVO PARA LA PROMOCIÓN DE LA CONVIVENCIA ESCOLAR Y/O PREVENCIÓN DE LA",null,null,null,null,null,null,null,null,null,null,null,null,null,null,null,"¿INCORPORAN EN LA PLANIFICACIÓN ANUAL DE AULA LAS ACTIVIDADES RELACIONADAS"]
[null,null,null,null,"VIOLENCIA CONTRA LAS Y LOS ESTUDIANTES?",null,null,null,null,null,null,null,null,null,null,null,null,null,null,null,"CON LA TUTORÍA Y ORIENTACIÓN EDUCATIVA?"]
[null,null,null,null,"Marque con una “X”, una o más opciones"]
[null,null,null,null,null,null,null,null,null,null,null,null,null,null,null,null,null,null,null,null,"Sí",null,null,null,null,"No  "]
[null,null,null,null,null,"Gestión de talleres o reuniones con estudiantes."]
[null,null,null,null,null,"Capacitación a docentes para prevenir y/o atender casos de riesgo.",null,null,null,null,null,null,null,null,null,null,null,null,null,null,null,null,null,"¿Cuántos docentes?"]
[null,null,null,null,null,"Envío de orientaciones a apoderados/as."]
[null,null,null,null,null,"Gestión de talleres o reuniones con apoderados/as."]
[null,null,null,null,null,"Gestión de estrategias en conjunto con otras organizaciones.",null,null,null,null,null,null,null,null,null,null,null,null,null,"113.B. EN EL AÑO 2024, EL SERVICIO/NIVEL EDUCATIVO, ¿HA RECIBIDO ASISTENCIA TÉCNICA"]
[null,null,null,null,null,"Monitoreo de situación emocional y familiar de estudiantes.",null,null,null,null,null,null,null,null,null,null,null,null,null,null,"DEL ESPECIALISTA DE CONVIVENCIA ESCOLAR DE LA MINEDU/DRE/GRE/UGEL?"]
[null,null,null,null,null,"Otro"]
[null,null,null,null,null,null,null,null,null,null,null,null,null,null,null,null,null,null,null,null,"Sí",null,null,null,null,"No  ",null,null,"Pase a la pregunta 115.B."]
[null,null,null,"110.B. SEÑOR(A) DIRECTOR(A), ¿QUÉ ACCIONES SE HAN REALIZADO DESDE ESTE SERVICIO/NIVEL"]
[null,null,null,null,"EDUCATIVO PARA MEJORAR LA CONVIVENCIA ENTRE ESTUDIANTES?",null,null,null,null,null,null,null,null,null,null,null,null,null,null,null,null,null,null,null,"Indique el número de veces que recibió"]
[null,null,null,null,"Marque con una “X”, una o más opciones",null,null,null,null,null,null,null,null,null,null,null,null,null,null,null,null,null,null,null,"asistencia técnica:"]
[]
[null,null,null,null,null,"Implementa acciones que fomenten el respeto, el diálogo y búsqueda de acuerdos …"]
[null,null,null,null,null,"Fomenta la construcción de relaciones interpersonales y afectivas en igualdad de género.",null,null,null,null,null,null,null,null,null,null,null,null,null,"114.B. ¿QUÉ TEMAS HAN SIDO ABORDADOS EN LA ASISTENCIA TÉCNICA BRINDADA POR EL"]
[null,null,null,null,null,"Implementa acciones para la prevención de la violencia y el manejo de conflictos.",null,null,null,null,null,null,null,null,null,null,null,null,null,null,"ESPECIALISTA DE CONVIVENCIA ESCOLAR DE LA UGEL?"]
[null,null,null,null,null,"Promueve la práctica de acciones para la superación de todo tipo de discriminación.",null,null,null,null,null,null,null,null,null,null,null,null,null,null,"Marque con una \"X\", una o más opciones"]
[]
[null,null,null,"111.B. ESTE SERVICIO/NIVEL EDUCATIVO, ¿CUENTA CON UN MAPA O DIRECTORIO DE ALIADOS",null,null,null,null,null,null,null,null,null,null,null,null,null,null,null,null,null,"Disciplina con enfoque de derechos (sin maltrato ni humillación)"]
[null,null,null,null,"ESTRATÉGICOS PARA LA PREVENCIÓN Y ATENCIÓN DE CASOS DE VIOLENCIA ESCOLAR?",null,null,null,null,null,null,null,null,null,null,null,null,null,null,null,null,"Normas de convivencia concertadas en la escuela"]
[null,null,null,null,null,null,null,null,null,null,null,null,null,null,null,null,null,null,null,null,null,"Participación estudiantil para la prevención de la violencia"]
[null,null,null,null,"Sí","",null,null,null,"No  ",null,null,null,null,null,null,null,null,null,null,null,"Educación Sexual Integral para la prevención de la violencia"]
[null,null,null,null,null,null,null,null,null,null,null,null,null,null,null,null,null,null,null,null,null,"Tipos de violencia, señales de alerta y cultura de reporte"]
[null,null,null,null,null,null,null,null,null,null,null,null,null,null,null,null,null,null,null,null,null,"Protocolos de atención a la violencia hacia niñas, niños y adolescentes"]
[null,null,null,null,null,"Indique, ¿Quiénes lo conforman, con quiénes viene trabajando",null,null,null,null,null,null,null,null,null,null,null,null,null,null,null,"Capacitación del uso del portal SíseVe"]
[null,null,null,null,null,"actualmente y si ha realizado alguna actividad coordinada?",null,null,null,null,null,null,null,null,null,null,null,null,null,null,null,"Otros",null,""]
[]
[null,null,null,null,null,null,null,null,null,null,"¿Trabaja actualmente en?",null,null,null,null,"¿Ha realizado alguna actividad coordinada?"]
[null,null,null,null,null,null,null,null,null,null,"Prevención y atención de casos de violencia",null,"Promover el bienestar socioemocional de los estudiantes",null,null,null,null,null,null,"115.B. EN EL PRESENTE AÑO, ¿QUE ESTRATEGIAS DE TUTORIA Y ORIENTACION EDUCATIVA"]
[null,null,null,null,null,"Aliados estratégicos",null,null,null,null,null,null,null,null,null,null,null,null,null,null,"SE VIENE IMPLEMENTANDO EN ESTE SERVICIO/NIVEL EDUCATIVO DE MANERA PERMANENTE?"]
[null,null,null,null,null,null,null,null,null,null,null,null,null,null,null,null,null,null,null,null,"Marque con una \"X\", una o más opciones"]
[null,null,null,null,null,null,null,null,null,{"$f":"K277+M277+P277","v":0}]
[null,null,null,null,null,1,"DEMUNA",null,null,null,"",null,"",null,null,"",null,null,null,null,null,"Tutoría Individual"]
[null,null,null,null,null,2,"Defensoría del pueblo",null,null,null,"",null,"",null,null,"",null,null,null,null,null,"Tutoría grupal"]
[null,null,null,null,null,3,"Centro de emergencia Mujer",null,null,null,"",null,"",null,null,"",null,null,null,null,null,"Participación estudiantil"]
[null,null,null,null,null,4,"Centro o posta de salud",null,null,null,"",null,"",null,null,"",null,null,null,null,null,"Trabajo con las familias y la comunidad"]
[null,null,null,null,null,5,"Iglesia",null,null,null,"",null,"",null,null,"",null,null,null,null,null,"Orientación Educativa permanente"]
[null,null,null,null,null,6,"Comisaría",null,null,null,"",null,"",null,null,"",null,null,null,null,null,"Otro",null,""]
[null,null,null,null,null,7,"Otro","",null,null,"",null,"",null,null,"",null,null,null,null,null,"Ninguno"]
[null,null,null,null,null,null,null,null,null,null,{"$f":"COUNTIF(K269:K276,\"SI\")+COUNTIF(K269:K276,\"NO\")","v":0},null,{"$f":"COUNTIF(M269:M276,\"SI\")+COUNTIF(M269:M276,\"NO\")","v":0},null,null,{"$f":"COUNTIF(P269:P276,\"SI\")+COUNTIF(P269:P276,\"NO\")","v":0}]
[]
[null,null,null,"116.B. DE LOS SIGUIENTES CONTENIDOS PARA SER DESARROLLADOS EN LA TUTORÍA GRUPAL,",null,null,null,null,null,null,null,null,null,null,null,null,null,null,null,"120.B. DE ACUERDO CON LA RVM 212-2020-MINEDU, ¿DE QUÉ MANERA SE VIENE REALIZANDO EL"]
[null,null,null,null,"¿CUÁLES SE HAN INCORPORADO EN EL PLAN TUTORIAL DE AULA?",null,null,null,null,null,null,null,null,null,null,null,null,null,null,null,"ACOMPAÑAMIENTO Y MONITOREO DE LA IMPLEMENTACIÓN DE LAS ACCIONES DE TUTORÍA Y"]
[null,null,null,null,"Seleccione “Si” o “No” según corresponda para cada tema",null,null,null,null,null,null,null,null,null,null,null,null,null,null,null,"ORIENTACIÓN EDUCATIVA EN ESTE SERVICIO/ NIVEL EDUCATIVO?"]
[null,null,null,null,null,null,null,null,null,null,null,null,null,null,null,null,null,null,null,null,"Marque con una \"X\", una o más opciones"]
[null,null,null,null,null,null,null,null,null,null,null,"¿Se \nincorporó?",null,"¿Se\nimple- mentó?",null,"¿Cuántas\nacciones?"]
[null,null,null,null,"Nro.",null,"Acciones",null,null,null,null,null,null,null,null,null,null,null,null,null,null,"Visita inopinada a las aulas durante la hora de tutoría."]
[null,null,null,null,null,null,null,null,null,null,null,null,null,null,null,null,null,null,null,null,null,"Revisión de reportes realizados por los docentes."]
[null,null,null,null,"01","Prevención de la violencia escolar",null,null,null,null,null,null,null,null,null,null,null,null,null,null,null,"Encuestas a estudiantes y familias."]
[null,null,null,null,"02","Prevención del embarazo a temprana edad",null,null,null,null,null,null,null,null,null,null,null,null,null,null,null,"Monitoreo a la implementación del Plan TOECE."]
[null,null,null,null,"03","Promoción de la salud mental",null,null,null,null,null,null,null,null,null,null,null,null,null,null,null,"Otros"]
[null,null,null,null,"04","Prevención de trata de personas"]
[null,null,null,null,"05","Prevención del consumo de drogas",null,null,null,null,null,null,null,null,null,null,null,null,null,"121.B. ESTE SERVICIO/NIVEL EDUCATIVO, ¿CUENTA CON NORMAS DE CONVIVENCIA ESCOLAR"]
[null,null,null,null,"06","Prevención de trabajo infantil forzoso",null,null,null,null,null,null,null,null,null,null,null,null,null,null,"ACTUALIZADAS PARA EL PRESENTE AÑO?"]
[null,null,null,null,"07","Prevención de la violencia sexual"]
[null,null,null,null,"08","Prevención de trastornos alimenticios",null,null,null,null,null,null,null,null,null,null,null,null,null,null,"Sí",null,null,null,null,"No  ",null,null,"Pase a la pregunta 123.B"]
[null,null,null,null,"09","Uso responsable de video juegos"]
[null,null,null,null,10,"Uso responsable de redes sociales digitales",null,null,null,null,null,null,null,null,null,null,null,null,null,null,null,null,null,"¿Están incorporadas en el reglamento interno de la IE?"]
[null,null,null,null,11,"Educación Vial"]
[null,null,null,null,12,"Habilidades socioemocionales",null,null,null,null,null,null,null,null,null,null,null,null,null,null,null,null,null,null,null,"Sí",null,null,null,"No  "]
[null,null,null,null,13,"Igualdad de género"]
[null,null,null,null,14,"Educación Sexual Integral según RVM N° 169-2021",null,null,null,null,null,null,null,null,null,null,null,null,null,null,null,null,null,"¿El Reglamento Interno que incluye las normas de convivencia escolar?"]
[null,null,null,null,15,"Promoción de la convivencia escolar"]
[null,null,null,null,16,"Proyecto de vida y orientación vocacional",null,null,null,null,null,null,null,null,null,null,null,null,null,null,null,null,null,null,null,"Sí",null,null,null,"No  "]
[null,null,null,null,17,"Duelo"]
[null,null,null,null,18,"Prevención del suicidio",null,null,null,null,null,null,null,null,null,null,null,null,null,"122.B. LAS NORMAS DE CONVIVENCIA ESCOLAR, ¿HAN SIDO CONSTRUIDAS CON LA PARTICIPACIÓN DE"]
[null,null,null,null,19,"Fortalecimiento de la empatía",null,null,null,null,null,null,null,null,null,null,null,null,null,null,"REPRESENTANTES DE LAS/LOS ESTUDIANTES?"]
[null,null,null,null,20,"Fortalecimiento de la regulación emocional"]
[null,null,null,null,21,"Participación estudiantil",null,null,null,null,null,null,null,null,null,null,null,null,null,null,"Sí",null,null,null,null,"No  "]
[null,null,null,null,22,"Otro"]
[null,null,null,null,null,null,null,null,null,null,null,{"$f":"COUNTIF(L286:L307,\"SI\")+COUNTIF(L286:L307,\"NO\")","v":0},null,{"$f":"COUNTIF(N286:N307,\"SI\")+COUNTIF(N286:N307,\"NO\")","v":0},null,null,null,null,null,"123.B. ESTE SERVICIO/NIVEL EDUCATIVO, ¿CUENTA CON AL MENOS UNA/UN RESPONSABLE DE"]
[null,null,null,"117.B. ACTUALMENTE, ¿LAS DOS HORAS PEDAGÓGICAS DE LA TUTORÍA GRUPAL SE DESARROLLAN",null,null,null,null,null,null,null,null,null,null,null,null,null,null,null,null,"CONVIVENCIA ESCOLAR ASIGNADO PARA EL PRESENTE AÑO?"]
[null,null,null,null,"DE MANERA SECUENCIAL?"]
[null,null,null,null,null,null,null,null,null,null,null,null,null,null,null,null,null,null,null,null,"Sí",null,null,null,null,"No  "]
[null,null,null,null,"Sí","",null,null,null,"No  "]
[null,null,null,null,null,null,null,null,null,null,null,null,null,null,null,null,null,null,null,null,null,null,"¿Se encuentra registrado como administrador del portal SíseVe?"]
[null,null,null,"118.B. SEÑOR(A) DIRECTOR(A), ¿ACTUALMENTE LOS DOCENTES REALIZAN TUTORÍA INDIVIDUAL A"]
[null,null,null,null,"ESTUDIANTES QUE LO REQUIERAN O SOLICITAN?",null,null,null,null,null,null,null,null,null,null,null,null,null,null,null,null,null,null,"Sí",null,null,null,"No  "]
[]
[null,null,null,null,"Sí","",null,null,null,"No  ",null,null,null,null,null,null,null,null,null,"124.B. ESTE SERVICIO/NIVEL EDUCATIVO, ¿SE ENCUENTRA AFILIADO AL SÍSEVE?"]
[null,null,null,null,null,null,null,null,null,null,null,null,null,null,null,null,null,null,null,null,"Sistema Especializado en Reporte de casos sobre Violencia Escolar)"]
[null,null,null,null,null,null,null,"¿Cuantas se han realizado en lo que va del año 2025?",null,null,null,null,null,null,""]
[null,null,null,null,null,null,null,null,null,null,null,null,null,null,null,null,null,null,null,null,"Sí",null,null,null,"¿Cuántos casos han sido reportados hasta la"]
[null,null,null,"119.B. ACTUALMENTE, ¿LOS DOCENTES EMPLEAN LAS HORAS DE TUTORÍA Y ORIENTACIÓN EDUCATIVA EN",null,null,null,null,null,null,null,null,null,null,null,null,null,null,null,null,null,null,null,null,"fecha de aplicación del Censo Educativo 2025?"]
[null,null,null,null,"EN ESTE SERVICIO/NIVEL EDUCATIVO?"]
[]
[null,null,null,null,"Sí","",null,null,null,"No  ",null,null,null,null,null,null,null,null,null,null,"No  ","",null,null,"¿Cuál es la razón por la que no está afiliado al SÍSEVE?"]
[null,null,null,null,null,null,null,null,null,null,null,null,null,null,null,null,null,null,null,null,null,null,null,null,"Marque con una \"X\", una opción"]
[null,null,null,null,null,null,"¿Cómo lo emplean?",null,null,null,null,null,null,null,null,null,null,null,null,null,null,null,null,null,"","Por falta de internet"]
[null,null,null,null,null,null,null,null,null,null,null,null,"¿Cuántos docentes lo usan?",null,null,"¿Tiene\nevidencia?",null,null,null,null,null,null,null,null,"","Conoce el portal, pero no le parece importante afiliarse"]
[null,null,null,null,null,null,null,null,null,null,null,"¿Se usa?","Sí, todos los docentes","Sí, algunos docentes","Ninguno",null,null,null,null,null,null,null,null,null,"","Le parece importante, pero considera que no es necesario para su IE"]
[null,null,null,null,"Nro.",null,"Acción",null,null,null,null,null,null,null,null,null,null,null,null,null,null,null,null,null,"","Falta de capacitación para usar el portal"]
[null,null,null,null,null,null,null,null,null,null,null,null,null,null,null,null,null,null,null,null,null,null,null,null,"","Otro",""]
[]
[null,null,null,null,1,"Tutoría grupal",null,null,null,null,null,"","","","","",null,null,null,"125.B. ESTE SERVICIO/NIVEL EDUCATIVO, ¿CUENTA CON LIBRO DE REGISTRO DE INCIDENCIAS, SOBRE"]
[null,null,null,null,2,"Refuerzo escolar",null,null,null,null,null,"","","","","",null,null,null,null,"VIOLENCIA Y ACOSO ESCOLAR EN EL MARCO DE LA LEY N° 29719?"]
[null,null,null,null,3,"Comunicación y/o matemática",null,null,null,null,null,"","","","",""]
[null,null,null,null,4,"Otro",null,"",null,null,null,"","","","","",null,null,null,null,"Sí","",null,null,null,"No  ",null,null,"Pase a la pregunta 127.B"]
[null,null,null,null,null,null,null,null,null,null,null,{"$f":"COUNTIF(L332:L335,\"SI\")+COUNTIF(L332:L335,\"NO\")","v":0},null,null,null,{"$f":"COUNTIF(P332:P335,\"SI\")+COUNTIF(P332:P335,\"NO\")","v":0}]
["01"]
["02",null,null,"126.B. EN EL AÑO 2024, ¿SE HIZO USO DEL LIBRO DE REGISTRO DE INCIDENCIAS?",null,null,null,null,null,null,null,null,null,null,null,null,null,null,null,"132.B. EN EL PRESENTE AÑO, ¿QUÉ ACCIONES HAN REALIZADO DESDE ESTE SERVICIO/NIVEL EDUCATIVO"]
["03",null,null,null,null,null,null,null,null,null,null,null,null,null,null,null,null,null,null,null,"PARA MEJORAR EL APRENDIZAJE AUTÓNOMO EN LOS ESTUDIANTES DURANTE EL AÑO?"]
["04",null,null,null,"Sí","",null,null,null,"No  ","",null,null,null,null,null,null,null,null,null,"Marque con una “X”, una o más opciones"]
["05"]
["06",null,null,null,null,null,null,"¿Cuántas incidencias se registraron en el año 2024?",null,null,null,null,null,null,null,null,null,null,null,null,null,"Seguimiento a las acciones pedagógicas en la escuela para el desarrollo de la reflexión crítica …"]
["07",null,null,null,null,null,null,null,null,null,null,null,null,null,null,null,null,null,null,null,null,"Impulso para la práctica de la escucha y el diálogo en las interacciones de clase y en otros …"]
["08",null,null,null,null,null,null,"Fecha en la que se registró la última incidencia ",null,null,null,null,null,"DÍA","MES","AÑO",null,null,null,null,null,"Orientación a los docentes para priorizar acciones pedagógicas para el conocimiento y …"]
["09",null,null,null,null,null,null,"relacionada a casos de violencia escolar",null,null,null,null,null,"","","",null,null,null,null,null,"Seguimiento a las acciones pedagógicas en la escuela para el desarrollo de capacidades …"]
["10"]
["11",null,null,"127.B. SEÑOR(A) DIRECTOR(A), ¿EMPLEA USTED HERRAMIENTAS DE CONSULTA PARA VERIFICAR"]
["12",null,null,null,"LA SITUACIÓN DEL PERSONAL DE ESTE SERVICIO/NIVEL EDUCATIVO, TAL COMO EL REGISTRO",null,null,null,null,null,null,null,null,null,null,null,null,null,null,"133.B. EN EL PRESENTE AÑO, ¿QUÉ ACCIONES HAN REALIZADO DESDE ESTE SERVICIO/NIVEL"]
["13",null,null,null,"NACIONAL DE SANCIONES CONTRA SERVIDORES CIVILES – RNSSC?",null,null,null,null,null,null,null,null,null,null,null,null,null,null,null,"EDUCATIVO PARA MEJORAR EL BIENESTAR INTEGRAL DE LOS ESTUDIANTES? "]
[null,null,null,null,null,null,null,null,null,null,null,null,null,null,null,null,null,null,null,null,"Marque con una \"X\", una o más opciones"]
[null,null,null,null,"Sí",null,null,null,null,"No  ",""]
[null,null,null,null,null,null,null,null,null,null,null,null,null,null,null,null,null,null,null,null,null,"Implementa acciones para el diagnóstico, acompañamiento y evaluación del bienestar …"]
[null,null,null,"128.B. SEÑOR(A) DIRECTOR (A), ¿CONOCE LOS PROTOCOLOS PARA LA ATENCIÓN DE LOS CASOS",null,null,null,null,null,null,null,null,null,null,null,null,null,null,null,null,null,"Orienta y monitorea las acciones de acompañamiento a estudiantes y sus familias en el marco …"]
[null,null,null,null,"DE VIOLENCIA EN EL SERVICIO/NIVEL EDUCATIVO?",null,null,null,null,null,null,null,null,null,null,null,null,null,null,null,null,"Orienta y monitorea las acciones de acompañamiento a la construcción de los proyectos de vida"]
[null,null,null,null,null,null,null,null,null,null,null,null,null,null,null,null,null,null,null,null,null,"Impulso en la IE acciones para la mejora del bienestar básico, cognitivo, emocional y espiritual"]
[null,null,null,null,"Sí","",null,null,null,"No  "]
[]
[null,null,null,null,null,null,"¿Ha sido capacitado por algún integrante de la DRE/GRE ",null,null,null,null,null,null,null,null,null,null,null,null,"134.B. ACTUALMENTE, ¿DE QUÉ MANERA SE PROMUEVE LA PARTICIPACIÓN ESTUDIANTIL? "]
[null,null,null,null,null,null," o UGEL en el uso de estos protocolos?",null,null,null,null,null,null,null,null,null,null,null,null,null,"Marque con una \"X\", una o más opciones"]
[]
[null,null,null,null,null,null,"Sí","",null,null,null,"No  ","",null,null,null,null,null,null,null,null,"Comités de aula",null,null,null,null,null,null,null,"Pase a la pregunta 138.B."]
[null,null,null,null,null,null,null,null,null,null,null,null,null,null,null,null,null,null,null,null,null,"Asambleas de aula",null,null,null,null,null,null,null,"Pase a la pregunta 138.B."]
[null,null,null,"129.B. ¿TIENE CONOCIMIENTO QUE LOS HECHOS DE VIOLENCIA, ADEMÁS DE SER REPORTADOS",null,null,null,null,null,null,null,null,null,null,null,null,null,null,null,null,null,"Municipios escolares",null,null,null,null,null,null,null,"Pase a la pregunta 135.B."]
[null,null,null,null,"EN EL PORTAL DEL SÍSEVE, DEBEN SER REPORTADOS A LA UGEL?",null,null,null,null,null,null,null,null,null,null,null,null,null,null,null,null,"Estrategia Somos Pares en el marco de la RM N° 583-2023",null,null,null,null,null,null,null,"Pase a la pregunta 137.B."]
[null,null,null,null,null,null,null,null,null,null,null,null,null,null,null,null,null,null,null,null,null,"Brigadista escolar de la brigada de educación ambiental",null,null,null,null,null,null,null,"Pase a la pregunta 138.B."]
[null,null,null,null,"Sí","",null,null,null,"No  ",null,null,null,null,null,null,null,null,null,null,null,"Otros","","",null,null,null,null,null,"Pase a la pregunta 138.B."]
[null,null,null,null,null,null,null,null,null,null,null,null,null,null,null,null,null,null,null,null,{"$f":"CONCATENATE(U361,U362,U365,U366)","v":""}]
[null,null,null,"130.B. SEÑOR(A) DIRECTOR(A), EN ESTE SERVICIO/NIVEL EDUCATIVO, ¿SE TIENEN IMPLEMENTADAS"]
[null,null,null,null,"MEDIDAS DE SEGURIDAD PARA EL TRATAMIENTO DE LOS DATOS PERSONALES QUE ADMINISTRAN?",null,null,null,null,null,null,null,null,null,null,null,null,null,null,"135.B. ¿A TRAVÉS DE QUÉ DOCUMENTO SE RECONOCE AL MUNICIPIO ESCOLAR VIGENTE?"]
[null,null,null,null,null,null,null,null,null,null,null,null,null,null,null,null,null,null,null,null,"Complete el número del documento"]
[null,null,null,null,"Sí","",null,null,null,"No  "]
[null,null,null,null,null,null,null,null,null,null,null,null,null,null,null,null,null,null,null,null,"Número de Resolución Directoral",null,null,null,null,null,null,null,""]
[null,null,null,"131.B. ESTE SERVICIO/NIVEL EDUCATIVO, ¿CUENTA CON UN HORARIO PARA LAS ACCIONES"]
[null,null,null,null,"DE REFUERZO ESCOLAR EN LAS ÁREAS DE MATEMÁTICA Y COMUNICACIÓN?",null,null,null,null,null,null,null,null,null,null,null,null,null,null,null,"Número de Oficio",null,null,null,null,null,null,null,""]
[]
[null,null,null,null,"Sí",null,null,null,null,"No  ",""]
[null,null,null,null,null,null,null,null,null,null,null,null,null,null,null,null,null,null,null,"136.B. EL MUNICIPIO ESCOLAR VIGENTE, ¿VIENE IMPLEMENTANDO SU PLAN DE TRABAJO?"]
[]
[null,null,null,null,null,"Marque con una \"X\", una o más opciones",null,null,null,null,null,null,null,null,null,null,null,null,null,null,"Sí","",null,null,null,"No  ",""]
[null,null,null,null,null,null,"Horario para las acciones de refuerzo escolar",null,null,null,null,"Matemática",null,null,"Comunicación"]
[null,null,null,null,null,null,null,null,null,null,null,null,null,null,null,null,null,null,null,null,null,null,null,"¿Este Plan de Trabajo del Municipio Escolar se incorporó en el PAT 2024?"]
[null,null,null,null,null,1,"Una hora dentro del horario escolar"]
[null,null,null,null,null,2,"Dos horas dentro del horario escolar",null,null,null,null,null,"",null,null,"",null,null,null,null,null,null,null,"Sí","",null,null,"No  ",""]
[null,null,null,null,null,3,"Una hora fuera del horario escolar",null,null,null,null,null,"",null,null,""]
[null,null,null,null,null,4,"Dos horas fuera del horario escolar",null,null,null,null,null,"",null,null,""]
[null,null,null,null,null,null,null,null,null,null,null,null,{"$f":"COUNTIF(M382:M385,\"X\")","v":0},null,null,{"$f":"COUNTIF(P382:P385,\"X\")","v":0}]
[]
[null,null,null,"137.B. ESTE SERVICIO/NIVEL EDUCATIVO, ¿TOMÓ CONOCIMIENTO DE LA ESTRATEGIA NACIONAL",null,null,null,null,null,null,null,null,null,null,null,null,null,null,null,"138.B. SEÑOR(A) DIRECTOR(A), ¿CONOCE LA ESTRATEGIA EDUCACIÓN “TE  ESCUCHA”?"]
[null,null,null,null,"DE PARTICIPACIÓN ESTUDIANTIL “SOMOS PARES”"]
[null,null,null,null,"Marque con una “X”, una o más opciones",null,null,null,null,null,null,null,null,null,null,null,null,null,null,null,"Sí","",null,null,null,"No  "]
[]
[null,null,null,null,"Sí","",null,null,null,"No  ","",null,null,null,null,null,null,null,null,null,null,null,null,"¿Qué actividades ha implementado?"]
[null,null,null,null,null,null,null,null,null,null,null,null,null,null,null,null,null,null,null,null,null,null,null,"Marque con una \"X\", una o más opciones"]
[null,null,null,null,null,null,null,"¿Cómo tomo conocimiento?"]
[null,null,null,null,null,null,null,"Marque con una \"X\", una o más opciones",null,null,null,null,null,null,null,null,null,null,null,null,null,null,null,"","Plataforma"]
[null,null,null,null,null,null,null,"","Oficio Múltiple remitido por MINEDU.",null,null,null,null,null,null,null,null,null,null,null,null,null,null,"","Atención de soporte socioemocional para estudiantes"]
[null,null,null,null,null,null,null,"","Oficio Múltiple remitido por DRE/UGEL. ",null,null,null,null,null,null,null,null,null,null,null,null,null,null,"","Atención de soporte socioemocional para docentes"]
[null,null,null,null,null,null,null,"","Comunicación del Director.",null,null,null,null,null,null,null,null,null,null,null,null,null,null,"","Atención de soporte socioemocional para familias"]
[null,null,null,null,null,null,null,"","Comunicación de un/a colega.",null,null,null,null,null,null,null,null,null,null,null,null,null,null,"","Otros",null,""]
[null,null,null,null,null,null,null,"","Campaña web"]
[null,null,null,null,null,null,null,"","Redes sociales",null,null,null,null,null,null,null,null,null,null,"139.B. SEÑOR(A) DIRECTOR(A), ¿CONOCE EL CONCURSO DE RECONOCIMIENTO A LA PARTICIPACIÓN"]
[null,null,null,null,null,null,null,"","Otro","",null,null,null,null,null,null,null,null,null,null,"ESTUDIANTIL “IDEAS EN ACCIÓN”?"]
[]
[null,null,null,null,null,null,null,"¿Cuál de las siguientes acciones ha implementado durante el presente año?",null,null,null,null,null,null,null,null,null,null,null,null,"Sí","",null,null,null,"No  "]
[null,null,null,null,null,null,null,"Marque con una \"X\", una o más opciones"]
[null,null,null,null,null,null,null,"","Sí La Haces",null,null,null,null,null,null,null,null,null,null,null,null,null,null,"¿A través de que medio conoció sobre el concurso?"]
[null,null,null,null,null,null,null,"","Ideas en Acción",null,null,null,null,null,null,null,null,null,null,null,null,null,null,"Marque con una \"X\", una o más opciones"]
[null,null,null,null,null,null,null,"","Organización y Representación Estudiantil Municipios Escolares"]
[null,null,null,null,null,null,null,null,null,null,null,null,null,null,null,null,null,null,null,null,null,null,null,"","Redes sociales"]
[null,null,null,null,null,null,null,null,null,null,null,null,null,null,null,null,null,null,null,null,null,null,null,"","Oficio múltiple"]
[null,null,null,null,null,null,null,null,null,null,null,null,null,null,null,null,null,null,null,null,null,null,null,"","Comunicación de un colega"]
[null,null,null,null,null,null,null,null,null,null,null,null,null,null,null,null,null,null,null,null,null,null,null,"","Otros",null,""]
[]
[]
[null,null,null,"C. ACOMPAÑAMIENTO Y SOPORTE PEDAGÓGICO"]
[null,null,null,"101.C. EN EL PRESENTE AÑO Y HASTA LA FECHA DE APLICACIÓN DEL CENSO EDUCATIVO 2025,",null,null,null,null,null,null,null,null,null,null,null,null,null,null,null,"106.C. EL PERSONAL DE ESTE SERVICIO/NIVEL EDUCATIVO, ¿HA RECIBIDO ALGÚN TIPO DE"]
[null,null,null,null,"EL SERVICIO/NIVEL EDUCATIVO, ¿HA RECIBIDO ASISTENCIA TÉCNICA PRESENCIAL O VIRTUAL",null,null,null,null,null,null,null,null,null,null,null,null,null,null,null,"ACOMPAÑAMIENTO SOCIOAFECTIVO POR PARTE DE EQUIPOS DE UGEL/DRE/GRE/MINEDU?"]
[null,null,null,null,"DEL ESPECIALISTA PEDAGÓGICO DE LA UGEL/DRE/GRE/MINEDU?"]
[null,null,null,null,null,null,null,null,null,null,null,null,null,null,null,null,null,null,null,null,"Sí","",null,null,null,"No  "]
[null,null,null,null,"Sí","",null,null,null,"No  "]
[null,null,null,null,null,null,null,null,null,null,null,null,null,null,null,null,null,null,null,"107.C. ESTE SERVICIO/NIVEL EDUCATIVO, ¿ESTÁ PARTICIPANDO EN LA COMUNIDAD DE PRÁCTICA PARA"]
[null,null,null,null,null,null,null,"¿Cuántas veces ha recibido asistencia técnica en total?",null,null,null,null,null,null,null,null,null,null,null,null,"DOCENTES DE INGLÉS DE SU UGEL?"]
[null,null,null,null,null,null,null,"Marque con una “X”, solo una opción para cada caso"]
[null,null,null,null,null,null,null,null,null,null,null,null,null,null,null,null,null,null,null,null,"Sí","",null,"No  ",null,null,null,null,null,"Desconozco que haya una",""]
[null,null,null,null,null,null,null,null,null,null,null,null,1,2,3,"4 +"]
[null,null,null,null,null,null,null,null,"Presencial",null,null,null,"","","","",null,null,null,"108.C. ESTE SERVICIO/NIVEL EDUCATIVO, ¿CUENTA CON EL EQUIPAMIENTO PARA EL AULA"]
[null,null,null,null,null,null,null,null,"Virtual/Remota",null,null,null,"","","","",null,null,null,null,"FUNCIONAL DE INGLÉS?"]
[]
[null,null,null,"102.C. DURANTE EL AÑO 2024 Y HASTA LA FECHA DE APLICACIÓN DEL CENSO EDUCATIVO 2025, EL SERVICIO /",null,null,null,null,null,null,null,null,null,null,null,null,null,null,null,null,"Sí","",null,null,null,"No  "]
[null,null,null,null,"NIVEL EDUCATIVO, ¿HA RECIBIDO ALGÚN TIPO DE ACOMPAÑAMIENTO DIRIGIDO AL DIRECTIVO?"]
[null,null,null,null,null,null,null,null,null,null,null,null,null,null,null,null,null,null,null,null,null,null,null,"¿Con cuántos equipos en funcionamiento cuenta para el"]
[null,null,null,null,"Sí","",null,null,null,"No  ",null,null,"Pase a la pregunta 104.C",null,null,null,null,null,null,null,null,null,null,"área funcional de Inglés?"]
[]
[null,null,null,null,null,null,null,"¿Que institución(es) le brindaron el acompañamiento?",null,null,null,null,null,null,null,null,null,null,null,null,null,null,null,null,null,null,"Cantidad de equipos en funcionamiento"]
[null,null,null,null,null,null,null,"Marque con una \"X\", una o más opciones",null,null,null,null,null,null,null,null,null,null,null,null,null,"Equipamiento",null,null,null,null,"Cantidad destinada ya al área",null,null,"Cantidad que podría ser destinada al área"]
[null,null,null,null,null,null,null,null,null,null,null,null,null,null,null,null,null,null,null,null,null,null,null,null,null,{"$f":"SUM(AA437:AF439)","v":0}]
[null,null,null,null,null,null,null,"","DRE/GRE",null,null,null,null,null,null,null,null,null,null,null,1,"Pc",null,null,null,null,"",null,null,""]
[null,null,null,null,null,null,null,"","UGEL",null,null,null,null,null,null,null,null,null,null,null,2,"Laptop",null,null,null,null,"",null,null,""]
[null,null,null,null,null,null,null,"","MINEDU",null,"",null,null,null,null,null,null,null,null,null,3,"Tablet",null,null,null,null,"",null,null,""]
[null,null,null,null,null,null,null,"","Otros",null,""]
[null,null,null,null,null,null,null,null,null,null,null,null,null,null,null,null,null,null,null,"109.C. ESTE SERVICIO/NIVEL EDUCATIVO, ¿CUENTA CON UN ESPECIALISTA DE LA UGEL QUE BRINDE"]
[null,null,null,"103.C. ¿QUÉ TEMAS HAN SIDO ABORDADOS MAYORITARIAMENTE POR EL EQUIPO DIRECTIVO DURANTE LAS",null,null,null,null,null,null,null,null,null,null,null,null,null,null,null,null,"ASISTENCIA TÉCNICA A LOS DOCENTES DE INGLÉS?"]
[null,null,null,null,"SESIONES DE SOPORTE Y APOYO A LOS DOCENTESEN EL MARCO DEL ACOMPAÑAMIENTO PEDAGÓGICO?"]
[null,null,null,null,"Marque con una \"X\", una o más opciones",null,null,null,null,null,null,null,null,null,null,null,null,null,null,null,"Sí","",null,null,null,"No  "]
[]
[null,null,null,null,"","Planificación curricular",null,null,null,null,null,null,null,null,null,null,null,null,null,null,null,null,null,"¿El especialista de inglés que brinda la asistencia técnica"]
[null,null,null,null,"","Conducción de los aprendizajes",null,null,null,null,null,null,null,null,null,null,null,null,null,null,null,null,null,"a los docentes, cuenta con formación en el área?"]
[null,null,null,null,"","Como brindar acompañamiento socioafectivo y cognitivo"]
[null,null,null,null,"","Uso de los recursos y materiales educativos para atender la diversidad",null,null,null,null,null,null,null,null,null,null,null,null,null,null,null,null,null,"Sí","",null,null,"No  ",""]
[null,null,null,null,"","Evaluación formativa y retroalimentación"]
[null,null,null,null,"","Fortalecimiento del uso de TIC",null,null,null,null,null,null,null,null,null,null,null,null,null,null,null,null,null,"¿Con qué frecuencia visita su escuela para brindar "]
[null,null,null,null,"","Competencia de las áreas curriculares",null,null,null,null,null,null,null,null,null,null,null,null,null,null,null,null,null,"dicha asistencia técnica?"]
[null,null,null,null,"","Conclusiones descriptivas"]
[null,null,null,null,"","Otros temas",null,null,"",null,null,null,null,null,null,null,null,null,null,null,null,null,null,"","Mensualmente"]
[null,null,null,null,null,null,null,null,null,null,null,null,null,null,null,null,null,null,null,null,null,null,null,"","Bimestralmente"]
[null,null,null,null,null,null,null,null,null,null,null,null,null,null,null,null,null,null,null,null,null,null,null,"","Semestralmente"]
[null,null,null,null,null,null,null,null,null,null,null,null,null,null,null,null,null,null,null,null,null,null,null,"","Anualmente"]
[null,null,null,null,null,null,null,null,null,null,null,null,null,null,null,null,null,null,null,null,null,null,null,"","Aún no ha realizado"]
[null,null,null,"104.C. ESTE SERVICIO/NIVEL EDUCATIVO, ¿HA PLANTEADO PLANES DE MEJORA DE ACUERDO AL",null,null,null,null,null,null,null,null,null,null,null,null,null,null,null,null,null,null,null,"","ninguna visita"]
[null,null,null,null,"DIAGNÓSTICO DE LOGROS DE APRENDIZAJE DE LOS ESTUDIANTES EN EL ÁREA DE COMUNICACIÓN?"]
[null,null,null,null,null,null," ",null,null,null,null,null,null,null,null,null,null,null,null,"110.C. SEÑOR(A) DIRECTOR(A), ¿CONOCE USTED EL SISTEMA INTEGRADO DE FORMACIÓN"]
[null,null,null,null,"Sí","",null,null,null,"No  ",null,null,null,null,null,null,null,null,null,null,"DOCENTE EN SERVICIO (SIFODS)?"]
[]
[null,null,null,null,null,null,"¿Cuenta con resultados?",null,null,null,null,null,null,null,null,null,null,null,null,null,"Sí","",null,null,null,"No  "]
[]
[null,null,null,null,null,null,"Sí","",null,"No  ","",null,null,null,null,null,null,null,null,null,null,null,null,"¿Qué módulo(s) ha utilizado del SIFODS?"]
[null,null,null,null,null,null,null,null,null,null,null,null,null,null,null,null,null,null,null,null,null,null,null,"Marque con una \"X\", una o más opciones"]
[]
[null,null,null,null,null,null,null,null,null,null,null,null,null,null,null,null,null,null,null,null,null,null,null,"","File Docente "]
[null,null,null,null,null,null,null,null,null,null,null,null,null,null,null,null,null,null,null,null,null,null,null,"","Docente al Día"]
[null,null,null,"105.C. EL SERVICIO/NIVEL EDUCATIVO, ¿INFORMÓ A LAS FAMILIAS SOBRE EL PROGRESO DE LOS ESTUDIANTES?",null,null,null,null,null,null,null,null,null,null,null,null,null,null,null,null,null,null,null,"","Portafolio de la Oferta Formativa "]
[null,null,null,null,null,null,null,null,null,null,null,null,null,null,null,null,null,null,null,null,null,null,null,"","Centro de Recursos "]
[null,null,null,null,"Sí","",null,null,null,"No  ",null,null,null,null,null,null,null,null,null,null,null,null,null,"","Guías docentes AeC "]
[null,null,null,null,null,null,null,null,null,null,null,null,null,null,null,null,null,null,null,null,null,null,null,"","Asistencia Virtual Docente "]
[null,null,null,null,null,null,null,"¿Con qué frecuencia se informa a las familias?",null,null,null,null,null,null,null,null,null,null,null,null,null,null,null,"","Comunidades de aprendizajes "]
[null,null,null,null,null,null,null,"Marque con una \"X\", una opción",null,null,null,null,null,null,null,null,null,null,null,null,null,null,null,"","Entorno Personal"]
[]
[null,null,null,null,null,null,null,"","Mensual",null,null,null,null,null,null,null,null,null,null,"111.C. SEÑOR(A) DIRECTOR(A), ¿SE HAN IDENTIFICADO LAS NECESIDADES FORMATIVAS"]
[null,null,null,null,null,null,null,"","Cada 2 meses",null,null,null,null,null,null,null,null,null,null,null,"PARA EL PERSONAL DOCENTE DE ESTE SERVICIO/NIVEL EDUCATIVO?"]
[null,null,null,null,null,null,null,"","Cada 3 meses"]
[null,null,null,null,null,null,null,"","Cada 6 meses",null,null,null,null,null,null,null,null,null,null,null,"Sí","",null,null,null,"No  ",null,null,"Pase a la pregunta 113.C"]
[null,null,null,null,null,null,null,"","Al finalizar el año"]
[null,null,null,null,null,null,null,null,null,null,null,null,null,null,null,null,null,null,null,null,null,null,null,"¿Cómo identificó las necesidades formativas?"]
[null,null,null,null,null,null,null,null,null,null,null,null,null,null,null,null,null,null,null,null,null,null,null,"Marque con una \"X\", una o más opciones"]
[]
[null,null,null,null,null,null,null,null,null,null,null,null,null,null,null,null,null,null,null,null,null,null,null,"","Observación en aula "]
[null,null,null,null,null,null,null,null,null,null,null,null,null,null,null,null,null,null,null,null,null,null,null,"","Cuestionario de autodiagnóstico "]
[null,null,null,null,null,null,null,null,null,null,null,null,null,null,null,null,null,null,null,null,null,null,null,"","Monitoreo pedagógico"]
[null,null,null,null,null,null,null,null,null,null,null,null,null,null,null,null,null,null,null,null,null,null,null,"","Otros",null,""]
[]
[]
[null,null,null,"112.C. EN ESTE SERVICIO/NIVEL EDUCATIVO, ¿SE HA GESTIONADO ALGÚN TIPO DE ",null,null,null,null,null,null,null,null,null,null,null,null,null,null,null,"117.C. SEÑALE MARCANDO CON UNA “X” SI EN LOS ÚLTIMOS DOCE (12) MESES, ¿HA CONTADO"]
[null,null,null,null,"ACCIÓN FORMATIVA PARA ATENDER LAS NECESIDADES DEL PERSONAL DOCENTE?",null,null,null,null,null,null,null,null,null,null,null,null,null,null,null,"CON ALIADOS ESTRATÉGICOS QUE LE HAYAN BENEFICIADO CON ALGÚN INCENTIVO ECONÓMICO"]
[null,null,null,null,null,null,null,null,null,null,null,null,null,null,null,null,null,null,null,null,"PARA LA IMPLEMENTACIÓN Y/O SOSTENIBILIDAD DE UNA INNOVACIÓN O BUENA PRÁCTICA?"]
[null,null,null,null,"Sí","",null,null,null,"No  ",""]
[null,null,null,null,null,null,null,null,null,null,null,null,null,null,null,null,null,null,null,null,null,"Aliados Estratégicos",null,null,null,null,"Innovación Educativa",null,null,"Buena práctica"]
[null,null,null,null,null,null,null,"¿Qué tipo(s) de acción(es) formativa(s) se gestionaron?",null,null,null,null,null,null,null,null,null,null,null,null,null,null,null,null,null,{"$f":"AB507+AE507","v":0}]
[null,null,null,null,null,null,null,"Marque con una \"X\", una o más opciones",null,null,null,null,null,null,null,null,null,null,null,null,1,"Gobierno regional"]
[null,null,null,null,null,null,null,null,null,null,null,null,null,null,null,null,null,null,null,null,2,"DRE"]
[null,null,null,null,null,null,null,"","Cursos virtuales",null,null,null,null,null,null,null,null,null,null,null,3,"UGEL"]
[null,null,null,null,null,null,null,"","Programas formativos ",null,null,null,null,null,null,null,null,null,null,null,4,"Gobierno local"]
[null,null,null,null,null,null,null,"","Otros","",null,null,null,null,null,null,null,null,null,null,5,"Aliados privados"]
[null,null,null,null,null,null,null,null,null,null,null,null,null,null,null,null,null,null,null,null,6,"Ministerio de Educación"]
[null,null,null,"113.C. DURANTE EL AÑO 2024 Y HASTA LA APLICACIÓN DEL CENSO EDUCATIVO 2025, ¿SE GENERARON",null,null,null,null,null,null,null,null,null,null,null,null,null,null,null,null,7,"Padres y madres de familia"]
[null,null,null,null,"ESPACIOS PARA LA COLABORACIÓN ENTRE DOCENTES Y/O DIRECTIVOS PARA LA IMPLEMENTACIÓN",null,null,null,null,null,null,null,null,null,null,null,null,null,null,null,8,"Recursos propios de la IE"]
[null,null,null,null,"DE MEJORAS EN LA PRÁCTICA PEDAGÓGICA?",null,null,null,null,null,null,null,null,null,null,null,null,null,null,null,9,"Otro"]
[null,null,null,null,null,null,null,null,null,null,null,null,null,null,null,null,null,null,null,null,null,null,null,null,null,null,null,{"$f":"COUNTIF(AB498:AB506,\"SI\")+COUNTIF(AB498:AB506,\"NO\")","v":0},null,null,{"$f":"COUNTIF(AE498:AE506,\"SI\")+COUNTIF(AE498:AE506,\"NO\")","v":0}]
[null,null,null,null,"Sí",null,null,null,null,"No  ","",null,null,null,null,null,null,null,null,"118.C. EN SU OPINIÓN, ¿CUÁL SERÍA EL PRINCIPAL ESTÍMULO O INCENTIVO QUE DEBERÍAN"]
[null,null,null,null,null,null,null,null,null,null,null,null,null,null,null,null,null,null,null,null,"RECIBIR LOS DOCENTES QUE IMPLEMENTAN BUENAS PRÁCTICAS O INNOVACIONES EDUCATIVAS?"]
[null,null,null,"114.C. EN LOS ÚLTIMOS TRES (03) AÑOS, ¿SE HA IMPLEMENTADO EN ESTE SERVICIO/NIVEL",null,null,null,null,null,null,null,null,null,null,null,null,null,null,null,null,"Marque con una \"X\", una o más opciones"]
[null,null,null,null,"EDUCATIVO ALGÚN PROYECTO DE INNOVACIÓN EDUCATIVA O BUENA PRÁCTICA PEDAGÓGICA?"]
[null,null,null,null,"(Referencia: ENDO 2021)",null,null,null,null,null,null,null,null,null,null,null,null,null,null,null,null,"Resoluciones de reconocimiento"]
[null,null,null,null,"Marque con una \"X\", una o más opciones",null,null,null,null,null,null,null,null,null,null,null,null,null,null,null,null,"Bonos monetarios"]
[null,null,null,null,null,null,null,null,null,null,null,null,null,null,null,null,null,null,null,null,null,"Puntaje adicional en alguna de las evaluaciones "]
[null,null,null,null,null,"Proyecto de Innovación educativa",null,null,null,null,null,null,null,null,null,null,null,null,null,null,null,"Becas de posgrado (especializaciones, diplomados o maestría)"]
[null,null,null,null,null,"Buena práctica pedagógica",null,null,null,null,null,null,null,null,null,null,null,null,null,null,null,"Pasantías nacionales o internacionales"]
[null,null,null,null,null,"Buena práctica de gestión escolar",null,null,null,null,null,null,null,null,null,null,null,null,null,null,null,"Publicación de su proyecto en un libro"]
[null,null,null,null,null,null,null,null,null,null,null,null,null,null,null,null,null,null,null,null,null,"Reconocimiento en ceremonia o acto público"]
[null,null,null,"115.C. EN RELACIÓN CON EL DESARROLLO DEL PROYECTO DE INNOVACIÓN O BUENA PRÁCTICA",null,null,null,null,null,null,null,null,null,null,null,null,null,null,null,null,null,"Otro",null,""]
[null,null,null,null,"PEDAGÓGICA, ¿QUÉ ASPECTOS LIMITAN LA IMPLEMENTACIÓN DE MEJORAS?"]
[null,null,null,null,"Marque con una \"X\", una o más opciones",null,null,null,null,null,null,null,null,null,null,null,null,null,null,"119.C. A PARTIR DEL DESARROLLO DE LA INNOVACIÓN EDUCATIVA O BUENA PRÁCTICA"]
[null,null,null,null,null,null,null,null,null,null,null,null,null,null,null,null,null,null,null,null,"EN ESTE SERVICIO/NIVEL EDUCATIVO, ¿CUÁNTO CONSIDERA USTED QUE?"]
[null,null,null,null,null,"Institucionalización de la práctica"]
[null,null,null,null,null,"Reflexionar sobre los resultados de la práctica",null,null,null,null,null,null,null,null,null,null,null,null,null,null,null,null,"Aliados Estratégicos",null,null,null,null,null,null,"Escala de Percepción"]
[null,null,null,null,null,"Tener recursos limitados para mejorar su desarrollo",null,null,null,null,null,null,null,null,null,null,null,null,null,null,null,null,null,null,null,null,null,null,{"$f":"COUNTIF(AD526:AF529,\"X\")","v":0},"Mucho","Poco","Nada"]
[null,null,null,null,null,"Contar con poco respaldo del equipo directivo y de los docentes.",null,null,null,null,null,null,null,null,null,null,null,null,null,null,1,"La comunidad valora más el esfuerzo de la escuela"]
[null,null,null,null,null,"Planificar en función de un problema identificado",null,null,null,null,null,null,null,null,null,null,null,null,null,null,2,"Los padres de familia reconocen más el esfuerzo de los docentes"]
[null,null,null,null,null,"Sustentar con evidencia la práctica o innovación educativa",null,null,null,null,null,null,null,null,null,null,null,null,null,null,3,"Los alumnos reconocen más el empeño de los docentes"]
[null,null,null,null,null,"Sistematizar y difundir la práctica o innovación educativa",null,null,null,null,null,null,null,null,null,null,null,null,null,null,4,"La motivación de docentes con el trabajo ha aumentado"]
[null,null,null,null,null,"Otro"]
[null,null,null,null,null,null,null,null,null,null,null,null,null,null,null,null,null,null,null,"120.C. SEÑOR(A) DIRECTOR(A), EN EL AÑO 2024, ¿REALIZÓ MONITOREO EN EL AULA PARA VERIFICAR"]
[null,null,null,"116.C. ¿QUÉ FACTORES LE AYUDARÍAN A MEJORAR SU INNOVACIÓN O PRÁCTICA PEDAGÓGICA?",null,null,null,null,null,null,null,null,null,null,null,null,null,null,null,null,"EL USO PEDAGÓGICO DE LAS FICHAS DE APRENDIZAJE DE COMUNICACIÓN, PROVISTAS POR EL"]
[null,null,null,null,"Marque con una \"X\", una o más opciones",null,null,null,null,null,null,null,null,null,null,null,null,null,null,null,"MINEDU, POR PARTE DE LOS DOCENTES DE SU SERVICIO/NIVEL EDUCATIVO?"]
[]
[null,null,null,null,null,"Acceso a tecnología/internet",null,null,null,null,null,null,null,null,null,null,null,null,null,null,"Sí","",null,null,null,"No  "]
[null,null,null,null,null,"Acceso a material pedagógico"]
[null,null,null,null,null,"Tiempo para reflexionar y sistematizar la práctica",null,null,null,null,null,null,null,null,null,null,null,null,null,null,null,null,null,"¿Con qué frecuencia realizó el monitoreo en aula sobre el uso"]
[null,null,null,null,null,"Asistencia técnica o asesoría personalizada",null,null,null,null,null,null,null,null,null,null,null,null,null,null,null,null,null,"de las Fichas de Aprendizaje de Comunicación provistas por el MINEDU?"]
[null,null,null,null,null,"Talleres de intercambio de experiencia",null,null,null,null,null,null,null,null,null,null,null,null,null,null,null,null,null,"Marque con una “X”, una opción"]
[null,null,null,null,null,"Becas de estudio"]
[null,null,null,null,null,"Pasantías",null,null,null,null,null,null,null,null,null,null,null,null,null,null,null,null,null,"","1 vez al año"]
[null,null,null,null,null,"Recursos con orientaciones pedagógicas",null,null,null,null,null,null,null,null,null,null,null,null,null,null,null,null,null,"","2 veces al año"]
[null,null,null,null,null,"Difusión de innovaciones o prácticas",null,null,null,null,null,null,null,null,null,null,null,null,null,null,null,null,null,"","3 a más veces al año"]
[null,null,null,null,null,"Formación de Comunidades de Aprendizaje"]
[null,null,null,null,null,"Financiamiento para el desarrollo de proyectos"]
[null,null,null,null,null,"Otro"]
[]
[]
[null,null,null,"121.C. SEÑOR(A) DIRECTOR(A), EN EL AÑO 2024, ¿REALIZÓ EL MONITOREO DEL USO, POR",null,null,null,null,null,null,null,null,null,null,null,null,null,null,null,"128.C. EN EL 2024, ¿QUÉ PORCENTAJE SE HA DESARROLLADO LAS FICHAS DE MATEMÁTICA EN ESTE"]
[null,null,null,null,"PARTE DE LOS DOCENTES DE SU SERVICIO/NIVEL EDUCATIVO, DE LAS ORIENTACIONES DE LAS",null,null,null,null,null,null,null,null,null,null,null,null,null,null,null,"SERVICIO/NIVEL EDUCATIVO POR GRADO?"]
[null,null,null,null,"FICHAS DE APRENDIZAJE DE COMUNICACIÓN, PROVISTAS DE FORMA VIRTUAL POR EL MINEDU?"]
[null,null,null,null,null,null,null,null,null,null,null,null,null,null,null,null,null,null,null,null,"Marque con una “X” según corresponda"]
[null,null,null,null,"Sí","",null,null,null,"No  "]
[null,null,null,null,null,null,null,null,null,null,null,null,null,null,null,null,null,null,null,null,null,"Grados",null,"Menos del 50%",null,null,"Entre el 50% y el 75%",null,null,"Entre el 75% y el 100%"]
[null,null,null,"122.C. SEÑOR(A) DIRECTOR(A), ¿HAN RECIBIDO LOS DOCENTES DEL ÁREA DE COMUNICACIÓN DE ESTE",null,null,null,null,null,null,null,null,null,null,null,null,null,null,null,null,{"$f":"COUNTIF(Y556:AE560,\"X\")","v":0}]
[null,null,null,null,"SERVICIO/NIVEL EDUCATIVO ASISTENCIA TÉCNICA DE LOS ESPECIALISTAS DE LA UGEL PARA EL USO DE",null,null,null,null,null,null,null,null,null,null,null,null,null,null,null,1,"Primer"]
[null,null,null,null,"LAS FICHAS DE APRENDIZAJE DE COMUNICACIÓN DE LA DOTACIÓN 2024, PROVISTO POR EL MINEDU?",null,null,null,null,null,null,null,null,null,null,null,null,null,null,null,2,"Segundo"]
[null,null,null,null,null,null,null,null,null,null,null,null,null,null,null,null,null,null,null,null,3,"Tercer"]
[null,null,null,null,"Sí","",null,null,null,"No  ",null,null,null,null,null,null,null,null,null,null,4,"Cuarto"]
[null,null,null,null,null,null,null,null,null,null,null,null,null,null,null,null,null,null,null,null,5,"Quinto"]
[null,null,null,null,null,null,null,"¿Cuántas capacitaciones han recibido los docentes por parte de los"]
[null,null,null,null,null,null,null,"especialistas de UGEL para el uso de las fichas de Aprendizaje de comunicación?"]
[null,null,null,null,null,null,null,"Marque con una “X”, una opción",null,null,null,null,null,null,null,null,null,null,null,"129.C. ¿HAN RECIBIDO LOS DOCENTES DEL ÁREA DE MATEMÁTICA DE ESTE SERVICIO/NIVEL"]
[null,null,null,null,null,null,null,null,null,null,null,null,null,null,null,null,null,null,null,null,"EDUCATIVO ASISTENCIA TÉCNICA DE LOS ESPECIALISTAS DE UGEL, PARA LA COMPRENSIÓN"]
[null,null,null,null,null,null,null,"","1 Capacitación",null,null,null,null,null,null,null,null,null,null,null,"DE LAS ORIENTACIONES PEDAGÓGICAS PARA EL USO DE LAS FICHAS DE APRENDIZAJE DE"]
[null,null,null,null,null,null,null,"","2 Capacitaciones",null,null,null,null,null,null,null,null,null,null,null,"MATEMÁTICA DE LA DOTACIÓN 2024, PROVISTO POR EL MINEDU?"]
[null,null,null,null,null,null,null,"","3 a más capacitaciones"]
[null,null,null,null,null,null,null,null,null,null,null,null,null,null,null,null,null,null,null,null,"Sí","",null,null,null,"No  "]
[null,null,null,"123.C. ¿HAN RECIBIDO LOS DOCENTES DEL ÁREA DE COMUNICACIÓN DE ESTE SERVICIO/NIVEL"]
[null,null,null,null,"EDUCATIVO ASISTENCIA TÉCNICA POR PARTE DE LOS ESPECIALISTAS DE UGEL, PARA LA"]
[null,null,null,null,"COMPRENSIÓN DE LAS ORIENTACIONES PEDAGÓGICAS CON EL USO DE LAS FICHAS DE APRENDIZAJE",null,null,null,null,null,null,null,null,null,null,null,null,null,null,"130.C. SEÑOR(A) DIRECTOR(A), ESTE SERVICIO/NIVEL EDUCATIVO, ¿RECIBE ASISTENCIA TÉCNICA"]
[null,null,null,null,"DE COMUNICACIÓN DE LA DOTACIÓN 2024, PROVISTO POR EL MINEDU?",null,null,null,null,null,null,null,null,null,null,null,null,null,null,null,"SOBRE COMPETENCIAS CIUDADANAS?"]
[]
[null,null,null,null,"Sí","",null,null,null,"No  ",null,null,null,null,null,null,null,null,null,null,"Sí","",null,null,null,"No  "]
[]
[null,null,null,"124.C. EN EL 2024, ¿QUE PORCENTAJE SE HA DESARROLLADO LAS FICHAS DE APRENDIZAJE",null,null,null,null,null,null,null,null,null,null,null,null,null,null,null,null,null,null,null,"¿De parte de quién recibe asistencia técnica?"]
[null,null,null,null,"DE COMUNICACIÓN EN ESTE SERVICIO/NIVEL EDUCATIVO POR GRADO?",null,null,null,null,null,null,null,null,null,null,null,null,null,null,null,null,null,null,"Marque con una \"X\", una opción"]
[null,null,null,null,"Marque con una “X” según corresponda"]
[null,null,null,null,null,null,null,null,null,null,null,null,null,null,null,null,null,null,null,null,null,null,null,"","Especialista de ciudadanía y/o área de DPCC de la UGEL"]
[null,null,null,null,null,"Grados",null,"Menos del 50%",null,null,"Entre el 50% y el 75%",null,null,"Entre el 75% y el 100%",null,null,null,null,null,null,null,null,null,"","Especialista de ciudadanía y/o área de DPCC de la DRE"]
[null,null,null,null,{"$f":"COUNTIF(I582:O586,\"X\")","v":0},null,null,null,null,null,null,null,null,null,null,null,null,null,null,null,null,null,null,"","Organización aliada "]
[null,null,null,null,1,"Primer",null,null,null,null,null,null,null,null,null,null,null,null,null,null,null,null,null,"","Otro actor",null,""]
[null,null,null,null,2,"Segundo"]
[null,null,null,null,3,"Tercer"]
[null,null,null,null,4,"Cuarto",null,null,null,null,null,null,null,null,null,null,null,null,null,"131.C. EN EL AÑO 2024, ¿SE REALIZÓ EL MONITOREO AL USO POR PARTE DE LOS DOCENTES"]
[null,null,null,null,5,"Quinto",null,null,null,null,null,null,null,null,null,null,null,null,null,null,"DE DPCC DE SU SERVICIO/NIVEL EDUCATIVO DEL DOCUMENTO DE SOPORTE “PROPICIAMOS LA"]
[null,null,null,null,null,null,null,null,null,null,null,null,null,null,null,null,null,null,null,null,"VIDA EN DEMOCRACIA”, PROVISTAS DE FORMA VIRTUAL POR EL MINEDU?"]
[null,null,null,"125.C. SEÑOR(A) DIRECTOR(A), EN EL AÑO 2024, ¿REALIZÓ MONITOREO EN EL AULA PARA VERIFICAR"]
[null,null,null,null,"EL USO PEDAGÓGICO DE LAS FICHAS DE APRENDIZAJE DE MATEMATICA, PROVISTAS POR EL MINEDU,",null,null,null,null,null,null,null,null,null,null,null,null,null,null,null,"Sí",null,null,null,null,"No  ",""]
[null,null,null,null,"POR PARTE DE LOS DOCENTES DE SU SERVICIO/NIVEL EDUCATIVO?"]
[]
[null,null,null,null,"Sí","",null,null,null,"No  ",null,null,null,null,null,null,null,null,null,"132.C. EN EL AÑO 2024, EN ESTE SERVICIO/NIVEL EDUCATIVO, ¿HAN DESARROLLADO"]
[null,null,null,null,null,null,null,null,null,null,null,null,null,null,null,null,null,null,null,null,"ACTIVIDADES DE INDAGACIÓN EXPERIMENTAL EN EL ÁREA DE CIENCIA Y TECNOLOGÍA?"]
[null,null,null,null,null,null,null,"¿Con qué frecuencia realizó el monitoreo en aula sobre el"]
[null,null,null,null,null,null,null,"uso de las Fichas de Matemá ca provistas por el MINEDU?",null,null,null,null,null,null,null,null,null,null,null,null,"Sí",null,null,null,null,"No  ",""]
[null,null,null,null,null,null,null,"Marque con una “X”, una opción"]
[]
[null,null,null,null,null,null,null,"","1 vez al año",null,null,null,null,null,null,null,null,null,null,"133.C. ¿HA REALIZADO CON EL EQUIPO DOCENTE Y/O ESTUDIANTES JORNADAS DE FORTALECIMIENTO DE"]
[null,null,null,null,null,null,null,"","2 veces al año",null,null,null,null,null,null,null,null,null,null,null,"CAPACIDADES HACIENDO REFERENCIA O EMPLEANDO LOS MATERIALES PUBLICADOS EN LA"]
[null,null,null,null,null,null,null,"","3 a más veces al año",null,null,null,null,null,null,null,null,null,null,null,"PLATAFORMA PERÚ EDUCA DEL MINEDU?"]
[]
[null,null,null,"126.C. SEÑOR(A) DIRECTOR(A), DURANTE EL AÑO 2024, ¿REALIZÓ EL MONITOREO DEL USO,",null,null,null,null,null,null,null,null,null,null,null,null,null,null,null,null,"Seleccione las opciones según corresponda"]
[null,null,null,null,"POR PARTE DE LOS DOCENTES DE SU SERVICIO/NIVEL EDUCATIVO, DE LAS ORIENTACIONES DE"]
[null,null,null,null,"LAS FICHAS DE MATEMÁTICA, PROVISTAS DE FORMA VIRTUAL POR EL MINEDU?",null,null,null,null,null,null,null,null,null,null,null,null,"",null,null,null,null,null,null,null,null,"Docente",null,"Estudiante",null,null,null,null,"","","","","","","","","","","","","","","","","","","","","","","","","","","","","","","","","","","","","","","","","","","","","","","","","","","","","","","","","","","","","","","","","","","","","","","","","","","","","","","","","","","","","","","","","","","","","","","","","",""]
[null,null,null,null,null,null,null,null,null,null,null,"",null,null,null,null,null,"",null,null,null,null,null,"Área",null,null,"SI - NO",null,"Seleccione una opción",null,null,null,null,"","","","","","","","","","","","","","","","","","","","","","","","","","","","","","","","","","","","","","","","","","","","","","","","","","","","","","","","","","","","","","","","","","","","","","","","","","","","","","","","","","","","","","","","","","","","","","","","","",""]
[null,null,null,null,"Sí","",null,null,null,"No  ",null,"",null,null,null,null,null,"",null,null,null,null,null,null,null,{"$f":"COUNTIF(AA607:AB611,\"SI\")+COUNTIF(AA607:AB611,\"NO\")","v":0},null,null,null,null,null,null,null,"","","","","","","","","","","","","","","","","","","","","","","","","","","","","","","","","","","","","","","","","","","","","","","","","","","","","","","","","","","","","","","","","","","","","","","","","","","","","","","","","","","","","","","","","","","","","","","","","",""]
[null,null,null,null,null,null,null,null,null,null,null,null,null,null,null,null,null,null,null,null,null,1,"Comunicación "]
[null,null,null,"127.C. SEÑOR(A) DIRECTOR(A), ¿HAN RECIBIDO LOS DOCENTES DEL ÁREA DE MATEMÁTICA DE ESTE",null,null,null,null,null,null,null,null,null,null,null,null,null,null,null,null,null,2,"Matemática"]
[null,null,null,null,"SERVICIO/NIVEL EDUCATIVO ASISTENCIA TÉCNICA POR PARTE DE LOS ESPECIALISTAS DE LA",null,null,null,null,null,null,null,null,null,null,null,null,null,null,null,null,3,"DPCC"]
[null,null,null,null,"UGEL PARA EL USO DE LAS FICHAS DE APRENDIZAJE DE MATEMÁTICA DE LA DOTACIÓN 2024,",null,null,null,null,null,null,null,null,null,null,null,null,null,null,null,null,4,"Ciencias Sociales"]
[null,null,null,null,"PROVISTO POR EL MINEDU?",null,null,null,null,null,null,null,null,null,null,null,null,null,null,null,null,5,"Arte y cultura"]
[]
[null,null,null,null,"Sí","",null,null,null,"No  "]
[]
[null,null,null,null,null,null,null,"¿Cuántas capacitaciones han recibido los docentes por parte de los"]
[null,null,null,null,null,null,null,"especialistas de UGEL para el uso de las fichas de Aprendizaje de  matemática?"]
[null,null,null,null,null,null,null,"Marque con una “X”, una opción"]
[]
[null,null,null,null,null,null,null,"","1 Capacitación"]
[null,null,null,null,null,null,null,"","2 Capacitaciones"]
[null,null,null,null,null,null,null,"","3 a más capacitaciones"]
[null,null,null,null,null,null,null,""]
[]
[null,null,null,"SOLO PARA IIEE JEC(Jornada Escolar Completa)",null,null,null,null,null,null,null,null,null,null,null,null,null,null,null,"SOLO PARA IIEE SFT(Secundaria de Formación Técnica)"]
[]
[null,null,null,"134.C. SEÑOR(A) DIRECTOR(A), EN EL AÑO 2024, LOS COORDINADORES PEDAGÓGICOS, ¿DESARROLLARON",null,null,null,null,null,null,null,null,null,null,null,null,null,null,null,"136.C. ¿CUÁLES SON LAS ESPECIALIDADES TÉCNICAS QUE BRINDA ESTE SERVICIO/NIVEL EDUCATIVO?"]
[null,null,null,null,"ACOMPAÑAMIENTO PEDAGÓGICO EN LA MODALIDAD INTERNA AL EQUIPO DE DOCENTES A SU CARGO?",null,null,null,null,null,null,null,null,null,null,null,null,null,null,null,"Escribir el nombre de la especialidad técnica"]
[]
[null,null,null,null,"Sí","",null,null,null,"No  ","",null,null,null,null,null,null,null,null,null,1,null,null,null,null,null,null,null,null,null,null,{"$f":"IF(V629=\"\",1,0)","v":1}]
[null,null,null,null,null,null,null,null,null,null,null,null,null,null,null,null,null,null,null,null,2,null,null,null,null,null,null,null,null,null,null,{"$f":"IF(V630=\"\",1,0)","v":1}]
[null,null,null,null,null,null,null,"¿Con qué frecuencia?",null,null,null,null,null,null,null,null,null,null,null,null,3,null,null,null,null,null,null,null,null,null,null,1]
[null,null,null,null,null,null,null,"Marque con una \"X\", una opción",null,null,null,null,null,null,null,null,null,null,null,null,4,null,null,null,null,null,null,null,null,null,null,1]
[null,null,null,null,null,null,null,null,null,null,null,null,null,null,null,null,null,null,null,null,5,null,null,null,null,null,null,null,null,null,null,1]
[null,null,null,null,null,null,null,"","Todas las semanas",null,null,null,null,null,null,null,null,null,null,null,6,null,null,null,null,null,null,null,null,null,null,1]
[null,null,null,null,null,null,null,"","Una vez al mes",null,null,null,null,null,null,null,null,null,null,null,7,null,null,null,null,null,null,null,null,null,null,1]
[null,null,null,null,null,null,null,"","Una vez cada dos meses",null,null,null,null,null,null,null,null,null,null,null,null,null,null,null,null,null,null,null,null,null,null,{"$f":"SUM(AF629:AF635)","v":7}]
[null,null,null,null,null,null,null,"","Una vez cada semestre"]
[null,null,null,null,null,null,null,"","Tres veces al año"]
[]
[null,null,null,"135.C. EN EL AÑO 2024, LOS COORDINADORES DE TUTORÍA, ¿DESARROLLAN ACOMPAÑAMIENTO",null,null,null,null,null,null,null,null,null,null,null,null,null,null,null,"137.C. ¿ESTE SERVICIO/NIVEL EDUCATIVO CUENTA CON JEFE DE TALLER?"]
[null,null,null,null,"PEDAGÓGICO EN LA MODALIDAD INTERNA AL EQUIPO DE DOCENTES A SU CARGO?"]
[null,null,null,null,null,null,null,null,null,null,null,null,null,null,null,null,null,null,null,null,"Sí","",null,null,null,"No  ",""]
[null,null,null,null,"Sí","",null,null,null,"No  ",""]
[]
[null,null,null,null,null,null,null,"¿Con qué frecuencia?"]
[null,null,null,null,null,null,null,"Marque con una \"X\", una opción",null,null,null,null,null,null,null,null,null,null,null,null,null,"¿A qué especialidad técnica pertenece el jefe de Taller?"]
[]
[null,null,null,null,null,null,null,"","Todas las semanas"]
[null,null,null,null,null,null,null,"","Una vez al mes"]
[null,null,null,null,null,null,null,"","Una vez cada dos meses"]
[null,null,null,null,null,null,null,"","Una vez cada semestre"]
[null,null,null,null,null,null,null,"","Tres veces al año"]
[]
[null,null,null,null,null,null,null,null,null,null,null,null,null,null,null,null,null,null,null,null,null,null,null,""]
[null,null,null,null,null,null,null,null,null,null,null,null,null,null,null,null,null,null,null,null,null,null,null,""]
[null,null,null,null,null,null,null,null,null,null,null,null,null,null,null,null,null,null,null,null,null,null,null,""]

{"sheet":"C101","index":2,"n_rows":213,"n_cols":27,"rows_kept":213,"cut":false,"hidden":false,"merged":[[194,10,195,11],[148,8,148,12],[194,12,194,26],[194,3,196,8],[195,19,195,21],[195,22,195,23],[195,24,195,26],[196,13,196,14],[195,12,195,14],[195,15,195,18],[196,24,196,25],[196,20,196,21],[196,17,196,18],[197,20,197,21],[196,15,196,16],[198,3,198,8],[197,24,197,25],[198,24,198,25],[198,13,198,14],[198,15,198,16],[198,17,198,18],[198,20,198,21],[197,3,197,9],[197,13,197,14],[197,15,197,16],[197,17,197,18],[204,3,206,9],[204,13,205,13],[204,14,204,26],[205,14,206,17],[205,21,206,23],[205,24,206,26],[204,12,205,12],[205,18,206,20],[208,14,208,17],[208,21,208,23],[208,24,208,26],[207,14,207,17],[207,21,207,23],[207,18,207,20],[208,18,208,20],[207,24,207,26],[144,8,144,11],[145,8,145,11],[186,19,186,24],[147,8,147,10],[53,23,53,26],[134,20,134,26],[138,20,138,26],[139,20,139,26],[140,20,140,23],[142,10,142,11],[166,19,166,23],[182,8,182,12],[39,3,39,11],[2,6,2,23],[125,24,125,26],[124,24,124,26],[1,6,1,23],[11,11,13,12],[11,10,13,10],[35,23,35,26],[33,3,33,11],[60,8,60,11],[116,7,116,10],[89,7,89,10],[76,7,76,10]]}
[{"$f":"IF(OR(UPPER('C100'!K31)<>\"\",UPPER('C100'!Q31)<>\"\"),\"X\",\"\")","v":""}]
[{"$f":"IF(UPPER('C100'!Y31)<>\"\",\"X\",\"\")","v":""},null,null,null,null,null,"CENSO EDUCATIVO 2025"]
[null,null,null,null,null,null,"MATRÍCULA, DOCENTES Y MATERIALES EDUCATIVOS"]
[]
[]
[]
[null,null,null,"D. SERVICIOS CON PERTINENCIA CULTURAL (GESTIÓN PÚBLICA Y PRIVADA)"]
["0100: Castellano",null,null,"101.D. DE ACUERDO CON LAS PRACTICAS COTIDIANAS Y COSTUMBRES, ¿USTED CONSIDERA",null,null,null,null,null,null,null,null,null,null,null,"102.D. EN ESTE SERVICIO/NIVEL EDUCATIVO, ¿LOS DOCENTES CONSIDERAN LOS SABERES"]
["0200: Achuar",null,null,null,"QUE SU SERVICIO/NIVEL EDUCATIVO CUENTA CON ESTUDIANTES PERTENECIENTES A LOS",null,null,null,null,null,null,null,null,null,null,null,"Y PRÁCTICAS CULTURALES DEL PUEBLO O PUEBLOS ORIGINARIOS DE SUS ESTUDIANTES"]
["0300: Aimara",null,null,null,"SIGUIENTES GRUPOS ÉTNICOS?",null,null,null,null,null,null,null,null,null,null,null,"EN SUS ACTIVIDADES PEDAGÓGICAS?."]
["0400: Amahuaca"]
["0500: Arabela",null,null,null,null,null,null,null,null,null,"¿Tiene estudiantes?","Solo si respondió “Sí” % estimado del total de estudiantes"]
["0600: Asháninka",null,null,null,null,null,"GRUPO ÉTNICO",null,null,null,null,null,null,null,null,null,"Sí",null,null,null,null,"No  ",""]
["0610: Asheninka",null,null,null,null,null,null,null,null,{"$f":"COUNTIF(K15:K22,\"SI\")+COUNTIF(K15:K22,\"NO\")","v":0}]
["0700: Awajún",null,null,null,"1. Quechua",null,null,null,null,null,null,null,"%"]
["0800: Bora",null,null,null,"2. Aimara",null,null,null,null,null,null,null,"%"]
["0900: Kapanawa",null,null,null,"3. Indígena u originario de la Amazonía",null,null,null,null,null,null,null,"%"]
["1000: Cashinahua",null,null,null,"4. Perteneciente o parte de otro pueblo indígena",null,null,null,null,null,null,null,"%"]
["1100: Kawki",null,null,null,"5. Negro moreno, zambo, mulato o afroperuano",null,null,null,null,null,null,null,"%"]
["1200: Chamikuro",null,null,null,"6. Blanco",null,null,null,null,null,null,null,"%"]
["1300: Ese eja",null,null,null,"7. Mestizo",null,null,null,null,null,null,null,"%"]
["1400: Harakbut",null,null,null,"8. Otros",null,null,null,null,null,null,null,"%"]
["1500: Iñapari",null,null,null,null,null,null,null,null,null,null,{"$f":"SUM(L15:L22)","v":0}]
["1600: Ikuitu"]
["1700: Iskonawa",null,null,"E. CARACTERÍSTICAS DE LA ENSEÑANZA EN CONTEXTOS INTERCULTURALES BILINGÜES (GESTIÓN PÚBLICA Y PRIVADA)",null,null,null,null,null,null,null,null,null,null,null,null,null,null,null,null,null,""]
["1800: Jaqaru",null,null,null,null,null,null,null,null,null,null,null,null,null,null,null,null,null,null,null,null,""]
["1900: Kakataibo",null,null,"101.E. ESTE SERVICIO/NIVEL EDUCATIVO, ¿ESTÁ RECONOCIDO COMO EIB?",null,null,null,null,null,null,null,null,null,null,null,"105.E. USTED, SEÑOR(A) DIRECTOR(A), ¿CONOCE SI EN LA COMUNIDAD DONDE SE ENCUENTRA EL"]
["2000: Kakinte (caquinte)",null,null,null,null,null,null,null,null,null,null,null,null,null,null,null,"SERVICIO/NIVEL EDUCATIVO, LOS PADRES DE FAMILIA, OTROS ADULTOS Y/O ANCIANOS"]
["2110: Kandozi (Chapra)",null,null,null,"Sí",null,"u","EIB de Fortalecimiento",null,null,null,null,null,null,null,null,"Y ANCIANAS HABLAN UNA LENGUA ORIGINARIA?"]
["2120: Kandozi (Kandozi)",null,null,null,null,null,null,"EIB de Revitalización"]
["2200: Kukama-Kukamiria"]
["2300: Madija (culina)",null,null,null,"No  ",null,null,null,"Pase a la pregunta 105.E.",null,null,null,null,null,null,null,"Sí","",null,null,null,"No  "]
["2400: Maijiki"]
["2500: Matsés",null,null,"SOLO SI ES EIB DE FORTALECIMIENTO, RESPONDA:"]
["2600: Matsigenka",null,null,"102.E. ESTE SERVICIO/NIVEL EDUCATIVO, ¿OFRECE ENSEÑANZA DEL CASTELLANO COMO"]
["2700: Munichi",null,null,null,"SEGUNDA LENGUA?",null,null,null,null,null,null,null,null,null,null,null,null,null,null,"¿Qué lengua originaria hablan?",null,null,null,""]
["2800: Murui-muinanɨ",null,null,null,null,null,null,null,null,null,null,null,null,null,null,null,null,null,null,null,null,null,null,null,"Anote el código según la"]
["2900: Matsigenka-montetokunirira",null,null,null,"Sí",null,null,null,"No  ",null,null,null,null,null,null,null,null,null,null,null,null,null,null,null,"tabla de Lenguas Originarias"]
["3000: Nomatsigenga",null,null,null,null,null,null,null,null,null,null,null,null,null,null,null,null,null,null,null,null,null,null,null,"de la página 22."]
["3100: Ocaina",null,null,"SOLO SI ES EIB DE REVITALIZACIÓN, RESPONDA:"]
["3200: Omagua",null,null,"103.E. ESTE SERVICIO/NIVEL EDUCATIVO, ¿OFRECE ENSEÑANZA DE LA LENGUA ORIGINARIA"]
["3310: Quechua amazónico (Kichwa)",null,null,null,"COMO SEGUNDA LENGUA?"]
["3321: Quechua central (Ancash)"]
["3322: Quechua central (Huánuco)",null,null,null,"Sí",null,null,null,"No  ",null,null,null,null,null,null,"106.E. LOS ESTUDIANTES DE ESTE SERVICIO/NIVEL EDUCATIVO, ¿HABLAN UNA LENGUA ORIGINARIA?"]
["3323: Quechua central (Wanka)"]
["3324: Quechua central (Pasco)",null,null,"104.E. LOS DOCENTES DE ESTE SERVICIO/NIVEL EDUCATIVO, ¿HAN COMPLETADO LAS FICHAS"]
["3331: Quechua norteño (Cajamarca)",null,null,null,"DE DIAGNÓSTICO SOCIOLINGÜÍSTICO Y PSICOLINGÜÍSTICO QUE CARACTERIZA EL NIVEL DE",null,null,null,null,null,null,null,null,null,null,null,"Sí",null,null,null,null,"No  "]
["3332: Quechua norteño (Inkawasi kañaris)",null,null,null,"DOMINIO DE LAS LENGUAS (LENGUA ORIGINARIA Y CASTELLANO) DE LOS ESTUDIANTES"]
["3341: Quechua sureño (Chanka)",null,null,null,"Y LA COMUNIDAD?"]
["3342: Quechua sureño (Collao)"]
["3400: Resígaro",null,null,null,"Sí",null,null,null,"No  "]
["3500: Secoya",null,null,null,null,null,null,null,null,null,null,null,null,null,null,null,null,null,null,"Todos","",null,null,"¿Qué lengua  originaria? "]
["3600: Sharanahua",null,null,null,null,null,null,"Mencione, ¿cómo fueron completadas las fichas?",null,null,null,null,null,null,null,null,null,null,null,"La mayoría",null,null,"u"]
["3700: Shawi",null,null,null,null,null,null,"Marque con una “X”, una opción",null,null,null,null,null,null,null,null,null,null,null,"Pocos",null,null,null,""]
["3800: Shipibo-Konibo",null,null,null,null,null,null,null,null,null,null,null,null,null,null,null,null,null,null,null,null,{"$f":"CONCATENATE(V52,V53,V54)","v":""}]
["3900: Shiwilu",null,null,null,null,null,null,"Con ayuda del especialista EIB de la UGEL.",null,null,null,null,null,null,null,null,null,null,null,null,null,null,null,null,"Anote el código según la"]
["4000: Taushiro",null,null,null,null,null,null,"Con el asesoramiento del coordinador de mi Red educativa.",null,null,null,null,null,null,null,null,null,null,null,null,null,null,null,null,"tabla de Lenguas Originarias"]
["4100: Ticuna",null,null,null,null,null,null,"Con el asesoramiento de otro docente que trabaja en mi IE.",null,null,null,null,null,null,null,null,null,null,null,null,null,"",null,null,"de la página 22."]
["4200: Urarina",null,null,null,null,null,null,"Con el apoyo de un docente de mayor experiencia de mi IE."]
["4300: Wampis",null,null,null,null,null,null,"De manera autónoma."]
["4400: Yagua",null,null,null,null,null,null,"Otros",""]
["4500: Yaminahua"]
["4600: Yanesha",null,null,null,null,null,null,null,null,null,null,null,null,null,null,null,null,null,null,null,null,""]
["4700: Yine",null,null,"F. SERVICIO DE APOYO EDUCATIVO (SAE) (GESTIÓN PÚBLICA Y PRIVADA)"]
["4800: Nahua",null,null,"101.F. DURANTE  EL  PRESENTE  AÑO  Y HASTA LA FECHA DE APLICACIÓN DEL  CENSO EDUCATIVO  2025,",null,null,null,null,null,null,null,null,null,null,null,"106.F. USTED SEÑOR(A) DIRECTOR(A), ¿HA RECIBIDO ASESORÍA DEL SAEI (SERVICIO DE APOYO"]
["4900: Lengua de señas peruana ",null,null,null,"¿ALGUNOS  DE  LOS  DOCENTES  HAN RECIBIDO O RECIBEN CAPACITACIÓN Y/O ACOMPAÑAMIENTO",null,null,null,null,null,null,null,null,null,null,null,"EDUCATIVO INTERNO) EN EL MARCO DE UNA EDUCACIÓN INCLUSIVA?"]
[null,null,null,null,"Y/O ASESORIAS ESPECIALIZADAS EN EL MARCO DE LA EDUCACIÓN INCLUSIVA  POR  PARTE  DEL "]
["5100: Alemán",null,null,null,"SAE EXTERNO  DE LA  UGEL/DRE/GRE, O  ALGUNA  OTRA  INSTITUCIÓN  EN  EL  MARCO  DE  UNA ",null,null,null,null,null,null,null,null,null,null,null,"Sí","",null,null,null,"No  "]
["5200: Ingles",null,null,null,"EDUCACIÓN INCLUSIVA?"]
["5300: Italiano",null,null,null,"Marque con una \"X\", una o más opciones"]
["5400: Japones",null,null,null,null,null,null,null,null,null,null,null,null,null,null,"107.F. ESTE  SERVICIO/NIVEL EDUCATIVO, ¿HA RECIBIDO LA VISITA DE ALGÚN PROFESIONAL"]
["5500: Portugués",null,null,null,null,"Educación inclusiva para atender a la diversidad",null,null,null,null,null,null,null,null,null,null,"SAE EXTERNO DE LA UGEL?"]
["5600: Ruso",null,null,null,null,"Identificación de barreras educativas"]
["5700: Francés",null,null,null,null,"Implementación de Apoyos Educativos",null,null,null,null,null,null,null,null,null,null,"Sí","",null,null,null,"No  "]
["5800: Otra",null,null,null,null,"Diseño Universal para el Aprendizaje"]
[null,null,null,null,null,"Plan Educativo Personalizado",null,null,null,null,null,null,null,null,null,"108.F. DURANTE EL PRESENTE AÑO Y A LA FECHA DE APLICACIÓN DEL CENSO EDUCATIVO 2025,"]
[null,null,null,null,null,"Otros",null,null,null,null,null,null,null,null,null,null,"RESPECTO A  LA IMPLEMENTACIÓN  DEL SAE EXTERNO DE LA UGEL, ¿ESTE SERVICIO/NIVEL"]
[null,null,null,null,null,"No han recibido",null,null,null,null,null,null,null,null,null,null,"EDUCATIVO, HA RECIBIDO ALGUNAS DE LAS SIGUIENTES ACCIONES?"]
[null,null,null,null,null,null,null,null,null,null,null,null,null,null,null,null,"Marque con una \"X\", una o más opciones"]
[null,null,null,"102.F. ¿QUÉ  ESTRATEGIAS FORMATIVAS VIRTUALES PRIORIZARÍA SOBRE TEMAS DE EDUCACIÓN"]
[null,null,null,null,"INCLUSIVA O ATENCIÓN A LA DIVERSIDAD?",null,null,null,null,null,null,null,null,null,null,null,null,"Sensibilización sobre educación inclusiva para la comunidad educativa."]
[null,null,null,null,"Marque con una \"X\", una o más opciones",null,null,null,null,null,null,null,null,null,null,null,null,"Asistencia técnica en educación inclusiva al SAEI de su IE"]
[null,null,null,null,null,null,null,null,null,null,null,null,null,null,null,null,null,"Acompañamiento en educación inclusiva al SAEI de su IE"]
[null,null,null,null,null,"Curso virtual tutorado",null,null,null,null,null,null,null,null,null,null,null,"Asesorías especializadas en educación inclusiva"]
[null,null,null,null,null,"Curso virtual autoformativo",null,null,null,null,null,null,null,null,null,null,null,"Capacitación en educación inclusiva"]
[null,null,null,null,null,"Grupo o círculo de interaprendizaje",null,null,null,null,null,null,null,null,null,null,null,"Soporte sobre la gestión de apoyos educativos"]
[null,null,null,null,null,"Comunidades profesionales de aprendizaje",null,null,null,null,null,null,null,null,null,null,null,"Articulación con redes de apoyo promovidas por el SAEE de UGEL"]
[null,null,null,null,null,"Asesoría personalizada"]
[null,null,null,null,null,"Pasantía",null,null,null,null,null,null,null,null,null,"109.F. ESTE SERVICIO/NIVEL EDUCATIVO, ¿TIENE ESTUDIANTES MATRICULADOS EN CONDICIÓN"]
[null,null,null,null,null,"Otros",null,null,null,null,null,null,null,null,null,null,"CONDICIÓN DE DISCAPACIDAD?"]
[]
[null,null,null,"103.F. DURANTE EL PRESENTE AÑO Y HASTA LA FECHA DE APLICACIÓN DEL CENSO EDUCATIVO 2025,",null,null,null,null,null,null,null,null,null,null,null,null,"Sí","",null,null,null,"No  "]
[null,null,null,null,"ESTE SERVICIO/NIVEL EDUCATIVO, ¿HA INCORPORADO CAMBIOS EN LOS INSTRUMENTOS DE"]
[null,null,null,null,"GESTIÓN  PARA  IMPLEMENTAR LA EDUCACIÓN INCLUSIVA SEGÚN LAS NORMATIVAS VIGENTES?"]
[null,null,null,null,null,null,null,null,null,null,null,null,null,null,null,null,null,"¿Los/as estudiantes con discapacidad cuentan con planes "]
[null,null,null,null,"Sí","",null,null,"No  ",null,null,null,null,null,null,null,null,"educativos personalizados (PEP)?"]
[]
["SI",null,null,"104.F. DURANTE EL PRESENTE AÑO Y HASTA LA FECHA DE APLICACIÓN DEL CENSO EDUCATIVO 2025,",null,null,null,null,null,null,null,null,null,null,null,null,null,"Sí","",null,"No  ","",null,null,"No   aplica  ",""]
["NO",null,null,null,"ESTE SERVICIO/NIVEL EDUCATIVO, ¿HA CONFORMADO EL SERVICIO DE APOYO EDUCATIVO"]
[null,null,null,null,"INTERNO (SAEI)?"]
[null,null,null,null,null,null,null,null,null,null,null,null,null,null,null,"110.F. ¿HA RECIBIDO ASISTENCIA Y ORIENTACIÓN PARA LA ATENCIÓN EDUCATIVA"]
[null,null,null,null,"Sí","",null,null,"No  ",null,null,null,null,null,null,null,"DE ESTUDIANTES CON DISCAPACIDAD DE PARTE DEL EQUIPO DE SERVICIO DE APOYO"]
[null,null,null,null,null,null,null,null,null,null,null,null,null,null,null,null,"EDUCATIVO VIRTUAL (SAEV ?"]
[null,null,null,null,null,null,null," ¿Cuántas personas lo integran?",null,null,null,""]
[]
[null,null,null,"105.F. DURANTE EL PRESENTE AÑO Y HASTA LA FECHA DE APLICACIÓN DEL CENSO EDUCATIVO 2025,",null,null,null,null,null,null,null,null,null,null,null,null,"Sí","",null,null,null,"No  "]
[null,null,null,null,"RESPECTO A LA IMPLEMENTACIÓN DEL SAE INTERNO, ESTE SERVICIO/NIVEL EDUCATIVO,"]
[null,null,null,null,"¿HA  REALIZADO  ALGUNAS  DE LAS SIGUIENTES ACCIONES?"]
[null,null,null,null,"Marque con una \"X\", una o más opciones"]
[]
[null,null,null,null,null,"Sensibilización sobre educación inclusiva para la comunidad educativa."]
[null,null,null,null,null,"Capacitación en educación inclusiva para docentes, directivos y otros agentes educativos."]
[null,null,null,null,null,"Acompañamiento a los docentes (visitas, grupos de interaprendizaje y asesorías)"]
[null,null,null,null,null,"Asesorías al equipo directivo y otros agentes educativos."]
[null,null,null,null,null,"Orientación a las familias."]
[null,null,null,null,null,"Coordinación y articulación con otros servicios de apoyo, comités de gestión escolar."]
[null,null,null,null,null,"Otro"]
[]
[]
[null,null,null,"G. SUPERVISIÓN DE LA PRESTACIÓN DEL SERVICIO EDUCATIVO DE GESTIÓN PRIVADA - SOLO GESTIÓN PRIVADA"]
[null,null,null,"101.G. DURANTE AL MENOS UNO DE LOS ÚLTIMOS 3 (TRES) AÑOS, ESTE SERVICIO/NIVEL EDUCATIVO",null,null,null,null,null,null,null,null,null,null,null,"103.G.  FORMA DE CONSTITUCIÓN (Sólo para personas jurídicas)"]
[null,null,null,null,"HA SIDO SUPERVISADO ORIENTATIVAMENTE EN CONDICIONES BÁSICAS POR LA UGEL?",null,null,null,null,null,null,null,null,null,null,null,"Marque con un aspa ‘’x’’ y registra la información solicitada según corresponda"]
[]
[null,null,null,null,"Sí",null,null,null,"No  ","",null,null,null,null,null,null,null,"","  Sociedad"]
[null,null,null,null,null,null,null,null,null,null,null,null,null,null,null,null,null,null,null,null,"N° de Partida Regristral  "]
[null,null,null,null,null,null,null,null,null,null,null,null,null,null,null,null,null,null,null,null,"N° de Asiento Registral  "]
[null,null,null,null,null,"¿Qué aspectos fueron supervisados?",null,null,null,null,null,null,null,null,null,null,null,"","  Asociación"]
[null,null,null,null,null,"Marque con una \"X\", una o más opciones"]
[null,null,null,null,null,null,null,null,null,null,null,null,null,null,null,"104.G. ESTE SERVICIO/NIVEL EDUCATIVO, ¿PERTENECE A ALGUNA ASOCIACIÓN QUE"]
[null,null,null,null,null,null,"Gestión institucional",null,null,null,null,null,null,null,null,null,"AGRUPE A SS.EE. PRIVADOS?"]
[null,null,null,null,null,null,"Gestión pedagógica"]
[null,null,null,null,null,null,"Infraestructura educativa",null,null,null,null,null,null,null,null,null,"Sí","",null,null,null,"No  ",""]
[]
[]
[null,null,null,null,null,null,null,null,null,null,null,null,null,null,null,null,null,"Nombre de la asociación :",null,null,""]
[]
[null,null,null,"102.G. COMPLETE LOS SIGUIENTES DATOS SOBRE LA PROMOTORÍA DE ESTE SERVICIO/NIVEL",null,null,null,null,null,null,null,null,null,null,null,null,null,"Datos de contacto de la asociación:"]
[null,null,null,null,"EDUCATIVO DE GESTIÓN PRIVADA"]
[null,null,null,null,"Marque con un aspa ‘’X’’ y registra la información solicitada según corresponda",null,null,null,null,null,null,null,null,null,null,null,null,null,"Web ",null,""]
[null,null,null,null,null,null,null,null,null,null,null,null,null,null,null,null,null,null,"Correo electrónico "]
[null,null,null,null,"Tipo de persona:",null,null,null,null,null,null,null,null,null,null,null,null,null,"Teléfono/celular ",null,""]
[]
[null,null,null,null,"","  Natural",null,"DNI/CE","",":","",null,null,null,null,"105.G. ¿CUÁNTO ES EL COSTO DE LA PENSIÓN DE ENSEÑANZA (EN MONEDA NACIONAL)?"]
[null,null,null,null,null,null,null,null,null,null,null,null,null,null,null,null," Escala:"]
[null,null,null,null,null,null,null,"Nombres  ",""]
[null,null,null,null,null,null,null,"Apellidos  ","",null,null,null,null,null,null,null,null,null,"Única",null,"Pensión"]
[]
[null,null,null,null,"","  Jurídica",null,"RUC  ","",null,null,null,null,null,null,null,null,null,null,null,"Escala mínima"]
[null,null,null,null,null,null,null,"Razón social  ","",null,null,null,null,null,null,null,null,null,"Varias"]
[null,null,null,null,null,null,null,null,null,null,null,null,null,null,null,null,null,null,null,null,"Escala máxima"]
[]
[]
[null,null,null,"H. ARTICULACIÓN CON LA EDUCACIÓN COMUNITARIA (GESTIÓN PÚBLICA Y PRIVADA)"]
[null,null,null," 101.H. EN  EL  AÑO  2024, ¿SE  HAN  PUESTO  A  DISPOSICIÓN  LAS  INSTALACIONES  DE  ESTE "]
[null,null,null,null,"SERVICIO/NIVEL EDUCATIVO  PARA  EL  DESARROLLO  DE  ACTIVIDADES DE EDUCACIÓN",null,null,null,null,null,null,null,null,null,null,null,"¿Qué temas o contenidos se han abordado en las actividades de educación comunitaria"]
[null,null,null,null,"COMUNITARIA?",null,null,null,null,null,null,null,null,null,null,null,"realizadas en las instalaciones de su institución educativa?"]
[null,null,null,null,null,null,null,null,null,null,null,null,null,null,null,null,"Marque con una \"X\", una o más opciones"]
[]
[null,null,null,null,null,null,null,null,"Sí",null,null,null,null,null,null,null,null,"Ciudadanía y convivencia"]
[null,null,null,null,null,null,null,null,null,null,null,null,null,null,null,null,null,"Pueblos indígenas, diversidad cultural y arte"]
[null,null,null,null,null,null,null,null,null,null,null,null,null,"|",null,null,null,"Gestión pública y gobernabilidad"]
[null,null,null,null,null,null,null,null,null,null,null,null,null,null,null,null,null,"Generación de conocimientos y tecnología"]
[null,null,null,null,null,null,null,null,"No",null,null,null,null,null,null,null,null,"Desarrollo de capacidades y liderazgo"]
[null,null,null,null,null,null,null,null,null,null,null,null,null,null,null,null,null,"Trabajo y producción"]
[null,null,null,null,null,null,null,null,null,null,null,null,null,null,null,null,null,"Ambiente y territorio"]
[null,null,null,null,null,null,null,null,null,null,null,null,null,null,null,null,null,"Salud, seguridad alimentaria y deporte"]
[null,null,null,null,null,null,null,null,null,null,null,null,null,null,null,null,null,"Otros"]
[]
[]
[null,null,null,"I. IDENTIFICACIÓN DE RESIDENCIAS ESTUDIANTILES (No incluye COAR) Y SECUNDARIA TUTORIAL, EN ÁMBITOS RURALES"]
[null,null,null,null,"Complete esta sección solamente si el nivel educativo se ofrece en ámbitos rurales"]
[null,null,null,"101.I.  TODOS LOS PADRES DE FAMILIA O APODERADOS QUE SOLICITARON UNA VACANTE AL SERVICIO",null,null,null,null,null,null,null,null,null,null,null,"103.I. LUGAR DÓNDE SE UBICAN, RESIDEN O ALOJAN LOS ESTUDIANTES "]
[null,null,null,null,"EDUCATIVO DE SECUNDARIA CON RESIDENCIA ESTUDIANTIL, ¿LOGRARON OBTENERLA?",null,null,null,null,null,null,null,null,null,null,null,null,null,null,null,null,""]
["Residencias",null,null,null,null,null,null,null,null,null,null,null,null,null,null,null,"Seleccione Sí o No según corresponda en cada alternativa"]
[{"$f":"IF(UPPER('C100'!M24)<>\"\",\"X\",\"\")","v":""},null,null,null,"Sí",null,null,null,"No  ","",null,null,null,null,null,null,"del lugar donde se alojan los residentes"]
["Tutorial"]
[{"$f":"IF(UPPER('C100'!M23)<>\"\",\"X\",\"\")","v":""}]
[null,null,null,null,null,null,null,null,null,null,null,null,null,null,null,null,null,"LUGAR",null,null,null,null,null,null,null,{"$f":"COUNTIF(AA179:AA187,\"SI\")+COUNTIF(AA179:AA187,\"NO\")","v":0}," SI - NO"]
[null,null,null,null,null,null,"¿Porque no lograron una vacante?",null,null,null,null,null,null,null,null,null,"a.","Residencia o algún ambiente de la IE.",null,null,null,null,null,null,null,null,""]
[null,null,null,null,null,null,"","No hay capacidad de atención en la residencia estudiantil.",null,null,null,null,null,null,null,null,"b.","Algún ambiente de institución religiosa",null,null,null,null,null,null,null,null,""]
[null,null,null,null,null,null,"","No hay presupuesto para garantizar la alimentación de los estudiantes.",null,null,null,null,null,null,null,null,"c.","Algún ambiente del local",null,null,null,null,null,null,null,null,""]
[null,null,null,null,null,null,"","No existe personal suficiente para resguardar la seguridad de los estudiantes.",null,null,null,null,null,null,null,null,"d.","Algún ambiente del salón comunal",null,null,null,null,null,null,null,null,""]
[null,null,null,null,null,null,"","Otro","",null,null,null,null,null,null,null,"e.","Algún ambiente de otras instituciones? (Municipio, otra IIEE., ONG, etc.)",null,null,null,null,null,null,null,null,""]
[null,null,null,null,null,null,null,null,null,null,null,null,null,null,null,null,"f.","Algún albergue, casa hogar, puericultorio",null,null,null,null,null,null,null,null,""]
[null,null,null,"102.I. EN EL PRESENTE AÑO, ¿EXISTEN CASOS DE ESTUDIANTES MATRICULADOS QUE VIVEN O PERNOCTAN",null,null,null,null,null,null,null,null,null,null,null,null,"g.","Viviendas particulares",null,null,null,null,null,null,null,null,""]
[null,null,null,null,"EN UN AMBIENTE DE LA LOCALIDAD Y ACCEDEN AL SERVICIO EDUCATIVO DE SECUNDARIA",null,null,null,null,null,null,null,null,null,null,null,"h.","Pensión o similar (servicio de alojamiento pagado)",null,null,null,null,null,null,null,null,""]
[null,null,null,null,"CON RESIDENCIA ESTUDIANTIL?",null,null,null,null,null,null,null,null,null,null,null,"i.","Otro",null,"",null,null,null,null,null,null,""]
[]
[null,null,null,null,"Sí","",null,null,"No  ",null,null," Pase a la pregunta 104.I"]
[]
[]
[null,null,null,"104.I. NÚMERO DE ESTUDIANTES MATRICULADOS SEGÚN MODELO DE SERVICIO DE SECUNDARIA CON RESIDENCIA ESTUDIANTIL O"]
[null,null,null,null,"SECUNDARIA TUTORIAL VINCULADO A ESTE SERVICIO/NIVEL EDUCATIVO."]
[]
[null,null,null,"MODELO DE SERVICIO EDUCATIVO",null,null,null,null,null,null,"TOTAL",null,"GRADO DE ESTUDIO Y SEXO"]
[null,null,null,null,null,null,null,null,null,null,null,null,"1º",null,null,"2º",null,null,null,"3º",null,null,"4º",null,"5º"]
[null,null,null,null,null,null,null,null,null,{"$f":"SUM(K198:L199)","v":0},"H","M","H","M",null,"H",null,"M",null,"H","M",null,"H","M","H",null,"M"]
["01",null,null,"Estudiantes que viven en una residencia estudiantil",null,null,null,null,null,null,{"$f":"M198+P198+T198+W198+Y198","v":0},{"$f":"N198+R198+U198+X198+AA198","v":0}]
["02",null,null,"Estudiantes atendidos bajo el modelo de Serv. S.Tutorial",null,null,null,null,null,null,{"$f":"M199+P199+T199+W199+Y199","v":0},{"$f":"N199+R199+U199+X199+AA199","v":0}]
[null,null,null,null,null,null,null,null,null,null,null,null,null,null,null,null,null,null,null,null,null,""]
[]
[null,null,null,"105.I. NÚMERO TOTAL DE PERSONAL SEGÚN MODELO DE SERVICIO EDUCATIVO DE SECUNDARIA CON RESIDENCIA ESTUDIANTIL O"]
[null,null,null,null,"SECUNDARIA TUTORIAL VINCULADO A ESTE SERVICIO/NIVEL EDUCATIVO."]
[]
[null,null,null,"MODELO DE SERVICIO EDUCATIVO",null,null,null,null,null,null,null,null,"TOTAL",null,"TIPO DE PERSONAL"]
[null,null,null,null,null,null,null,null,null,null,null,null,null,null,"Coordinador(a)",null,null,null,"Gestores (as) Educativos",null,null,"Promotores(as) de Bienestar o Comunitarios",null,null,"Personal de Servicio"]
[null,null,null,null,null,null,null,null,null,null,null,null,{"$f":"M208+M209","v":0}]
["01",null,null,"Actores socioeducativos de la secundaria con residencia estudiantil.",null,null,null,null,null,null,null,null,{"$f":"O208+S208+V208+Y208","v":0}]
["02",null,null,"Actores socioeducativos de la secundaria Tutorial",null,null,null,null,null,null,null,null,{"$f":"O209+S209+V209+Y209","v":0}]
[null,null,null,null,null,null,null,null,null,null,null,null,null,null,null,null,null,null,null,null,null,""]
[null,null,null,null,null,null,null,null,null,null,null,null,null,null,null,null,null,null,null,null,null,""]
[null,null,null,null,null,null,null,null,null,null,null,null,null,null,null,null,null,null,null,null,null,""]
[null,null,null,null,null,null,null,null,null,null,null,null,null,null,null,null,null,null,null,null,null,""]

{"sheet":"C200","index":3,"n_rows":143,"n_cols":21,"rows_kept":143,"cut":false,"hidden":false,"merged":[[6,2,6,18],[1,4,1,16],[2,4,2,16],[43,15,43,16],[41,5,43,6],[43,7,43,8],[33,3,33,16],[43,9,43,10],[43,11,43,12],[43,13,43,14],[11,15,11,16],[11,13,11,14],[10,5,11,6],[11,7,11,8],[11,11,11,12],[11,9,11,10],[117,19,117,20],[116,19,116,20],[112,3,112,18],[102,15,102,16],[105,2,105,4],[106,2,106,4],[107,2,107,4],[108,2,108,4],[101,2,103,4],[101,5,102,6],[102,7,102,8],[102,9,102,10],[102,11,102,12],[102,13,102,14],[67,4,67,5],[82,4,82,5],[88,4,88,5],[73,6,75,6],[122,3,122,8],[118,2,119,8],[119,11,119,12],[119,13,119,14],[118,11,118,20],[119,15,119,16],[119,17,119,18],[134,3,134,8],[126,3,126,8],[119,19,119,20],[23,7,23,11],[27,5,27,6],[28,5,28,6],[74,15,74,16],[74,17,74,18],[123,3,123,8],[41,2,44,4],[73,2,75,4],[73,7,74,8],[74,9,74,10],[74,11,74,12],[74,13,74,14],[118,9,119,10],[141,3,141,8],[124,3,124,8],[125,3,125,8],[130,3,130,8],[131,3,131,8],[135,3,135,8],[140,3,140,8],[136,3,136,8],[138,3,138,8],[139,3,139,8],[127,3,127,8],[128,3,128,8],[137,3,137,8],[129,3,129,8],[132,3,132,8],[133,3,133,8],[53,17,53,18],[23,2,24,3],[23,4,24,4],[23,5,24,6],[25,5,25,6],[26,5,26,6],[52,2,54,4],[52,7,53,8],[53,9,53,10],[53,11,53,12],[53,13,53,14],[52,6,54,6],[30,5,30,6],[29,5,29,6],[15,2,15,3],[27,2,27,3],[10,2,12,3],[10,4,12,4],[53,15,53,16]]}
[]
[null,null,null,null,"CENSO EDUCATIVO 2025"]
[null,null,null,null,"MATRÍCULA, DOCENTES Y MATERIALES EDUCATIVOS"]
[]
[]
[]
[null,null,"200. MATRÍCULA Y SECCIONES\nDocumento fuente : Nómina de matrícula"]
[]
[null,null,201,"MATRÍCULA TOTAL POR GRADO DE ESTUDIO, SEGÚN TURNO DE ENSEÑANZA"]
[]
[null,null,"VARIABLE",null,"TURNO","TOTAL",null,"GRADO DE ESTUDIO"]
[null,null,null,null,null,null,null,"1º",null,"2º",null,"3º",null,"4º",null,"5º"]
[null,null,null,null,null,"H","M","H","M","H","M","H","M","H","M","H","M"]
["00",null,null,null,"TOTAL",{"$f":"SUM(F15:F17)","v":0},{"$f":"SUM(G15:G17)","v":0},{"$f":"SUM(H15:H19)","v":0},0,0,0,0,0,0,0,0,0]
["01",null,null,null,"Mañana",{"$f":"H15+J15+L15+N15+P15","v":0},0]
["02",null,"MATRÍCULA",null,"Tarde",0,0]
["03",null,null,null,"Discontinuo",0,0]
["04",null,null,null,"Continuo",0,0]
["05",null,null,null,"Horario no estable",0,0]
[]
[]
[null,null,202,"SECCIONES POR GRADO DE ESTUDIO,  SEGÚN TURNO DE ENSEÑANZA"]
[]
[null,null,"VARIABLE",null,"TURNO","TOTAL",null,"GRADO DE ESTUDIO"]
[null,null,null,null,null,null,null,"1º","2º","3º","4º","5º"]
["00",null,null,null,"TOTAL",{"$f":"+H26+I26+J26+K26+L26","v":0},null,{"$f":"SUM(H27:H31)","v":0},{"$f":"SUM(I27:I31)","v":0},{"$f":"SUM(J27:J31)","v":0},{"$f":"SUM(K27:K31)","v":0},{"$f":"SUM(L27:L31)","v":0}]
["01",null,null,null,"Mañana ",0]
["02",null,"SECCIONES",null,"Tarde",0]
["03",null,null,null,"Discontinuo",0]
["04",null,null,null,"Continuo",0]
["05",null,null,null,"Horario no estable",0]
[]
[]
[null,null,203,"EN EL MARCO DEL REGLAMENTO DE LA LEY N° 29600, LEY QUE FOMENTA LA REINSERCIÓN ESCOLAR POR EMBARAZO, ¿DURANTE EL AÑO 2024 SE HAN PRESENTADO ESTUDIANTES EN SITUACIÓN DE EMBARAZO, MATERNIDAD Y/O PATERNIDAD EN SU SERVICIO/NIVEL EDUCATIVO?"]
[]
[]
[null,null,null,null,null,"Sí",null,null,null,"No","",null,null,"Pase a la tabla 204"]
[]
[null,null,null,null,null,null,"Especificar la cantidad de estudiantes"]
[]
[]
[null,null,"CONDICIÓN DE LOS ESTUDIANTES",null,null,"TOTAL",null,"¿CUÁNTOS HAN CULMINADO EL AÑO ESCOLAR"]
[null,null,null,null,null,null,null,"GRADO DE ESTUDIO"]
[null,null,null,null,null,null,null,"1º",null,"2º",null,"3º",null,"4º",null,"5º"]
[null,null,null,null,null,"H","M","H","M","H","M","H","M","H","M","H","M"]
["00",null,"TOTAL",null,null,{"$f":"SUM(F47:F49)","v":0},{"$f":"SUM(G47:G49)","v":0},{"$f":"SUM(H47:H49)","v":0},{"$f":"SUM(I47:I49)","v":0},{"$f":"SUM(J47:J49)","v":0},0,0,0,0,0,0,0]
["01",null,"En situación de embarazo",null,null,{"$f":"H47+J47+L47+N47+P47","v":0},{"$f":"I47+K47+M47+O47+Q47","v":0}]
["02",null,"Madres / Padres",null,null,{"$f":"H48+J48+L48+N48+P48","v":0},{"$f":"I48+K48+M48+O48+Q48","v":0}]
[]
[]
[null,null,204,"MATRÍCULA POR GRADO DE ESTUDIO Y SEXO, SEGÚN TIPO DE DISCAPACIDAD"]
[]
["SI",null,"TIPO DE DISCAPACIDAD",null,null,null,"¿Detectó está discapa.?","TOTAL",null,"GRADO DE ESTUDIO"]
["NO",null,null,null,null,null,null,null,null,"1º",null,"2º",null,"3º",null,"4º",null,"5º"]
[null,null,null,null,null,{"$f":"COUNTIF(G57:G68,\"SI\")+COUNTIF(G57:G68,\"NO\")","v":0},null,"H","M","H","M","H","M","H","M","H","M","H","M"]
["00",null,"TOTAL",null,null,null,"SN",{"$f":"SUM(H57:H68)","v":0},0,0,0,0,0,0,0,0,0,0,0]
["01",null,"Discapacidad Intelectual - Leve",null,null,null,null,{"$f":"J57+L57+N57+P57+R57","v":0},{"$f":"K57+M57+O57+Q57+S57","v":0}]
["02",null,"Discapacidad Intelectual - Moderada",null,null,null,null,0,0]
["03",null,"Discapacidad Auditiva - Hipoacusia",null,null,null,null,{"$f":"J59+L59+N59+P59+R59","v":0},{"$f":"K59+M59+O59+Q59+S59","v":0}]
["04",null,"Discapacidad Auditiva - Sordera",null,null,null,null,0,0]
["05",null,"Discapacidad Visual - Baja Visión",null,null,null,null,0,0]
["06",null,"Discapacidad Visual - Ceguera",null,null,null,null,0,0]
["07",null,"Discapacidad Física o Motora",null,null,null,null,0,0]
["08",null,"TEA - Requiere de apoyo (Nivel 1)",null,null,null,null,0,0]
["09",null,"TEA - Requiere de apoyo notable  (Nivel 2)",null,null,null,null,0,0]
["10",null,"TEA - Requiere de apoyo muy notable  (Nivel 3)",null,null,null,null,{"$f":"J66+L66+N66+P66+R66","v":0},{"$f":"K66+M66+O66+Q66+S66","v":0}]
["11",null,"Sordoceguera",null,null,null,null,0,0]
["12",null,"Otra discapacidad",null,null,null,null,0,0]
[]
[]
[]
[null,null,205,"MATRÍCULA POR GRADO DE ESTUDIO Y SEXO, SEGÚN OTRAS CONDICIONES DETECTADAS"]
[]
[null,null,"OTRAS CONDICIONES DETECTADAS",null,null,null,"¿Detectó está discapa.?","TOTAL",null,"GRADO DE ESTUDIO"]
[null,null,null,null,null,null,null,null,null,"1º",null,"2º",null,"3º",null,"4º",null,"5º"]
[null,null,null,null,null,{"$f":"COUNTIF(G78:G96,\"SI\")+COUNTIF(G78:G96,\"NO\")","v":0},null,"H","M","H","M","H","M","H","M","H","M","H","M"]
["00",null,"TOTAL",null,null,null,"SN",{"$f":"SUM(H78:H96)","v":0},0,0,0,0,0,0,0,0,0,0,0]
["01",null,"Retraso global del desarrollo",null,null,null,null,{"$f":"J78+L78+N78+P78+R78","v":0},{"$f":"K78+M78+O78+Q78+S78","v":0}]
["02",null,"Trastorno por Déficit de Atención - TDAH",null,null,null,null,0,0]
["03",null,"Trastornos específicos del aprendizaje - Dislexia",null,null,null,null,0,0]
["04",null,"Trastornos específicos del aprendizaje - Discalculia",null,null,null,null,0,0]
["05",null,"Trastornos específicos del aprendizaje - Disgrafia",null,null,null,null,0,0]
["06",null,"TEDA - Otros",null,null,null,null,0,0]
["07",null,"Trastornos de salud mental - Esquizofrenia (E)",null,null,null,null,0,0]
["08",null,"Trastornos de salud mental - Depresión (D)",null,null,null,null,0,0]
["09",null,"Trastornos de salud mental - Ansiedad (A)",null,null,null,null,0,0]
["10",null,"Trastornos de personalidad",null,null,null,null,0,0]
["11",null,"Otros trastornos de la salud mental",null,null,null,null,0,0]
["12",null,"Enfermedades Raras",null,null,null,null,0,0]
["13",null,"Talla Baja",null,null,null,null,0,0]
["14",null,"Estudiantes - Menos de 15 días de hospitalización",null,null,null,null,{"$f":"J91+L91+N91+P91+R91","v":0},{"$f":"K91+M91+O91+Q91+S91","v":0}]
["15",null,"Estudiantes - De 15 a 30 días de hospitalización",null,null,null,null,0,0]
["16",null,"Estudiantes - Más de 30 días de hospitalización",null,null,null,null,0,0]
["17",null,"Talento",null,null,null,null,0,0]
["18",null,"Superdotación",null,null,null,null,0,0]
["19",null,"Otros condiciones relacionadas",null,null,null,null,0,0]
["20"]
[]
[]
[null,null,206,"MATRÍCULA TOTAL POR GRADO DE ESTUDIO Y SEXO, SEGÚN NÚMERO DE HORAS SEMANALES DEDICADAS A EDUCACIÓN PARA EL TRABAJO"]
[]
[null,null,"HORAS DEDICADAS A EDUCACIÓN\nPARA EL TRABAJO",null,null,"TOTAL",null,"GRADO DE ESTUDIO"]
[null,null,null,null,null,null,null,"1º",null,"2º",null,"3º",null,"4º",null,"5º"]
[null,null,null,null,null,"H","M","H","M","H","M","H","M","H","M","H","M"]
["00",null,"TOTAL",null,null,{"$f":"SUM(F106:F109)","v":0},{"$f":"SUM(G106:G109)","v":0},{"$f":"SUM(H106:H109)","v":0},0,0,0,0,0,0,0,0,0]
["01",null,"Dos horas semanales",null,null,{"$f":"H106+J106+L106+N106+P106","v":0},{"$f":"I106+K106+M106+O106+Q106","v":0}]
["02",null,"Tres horas semanales",null,null,0,0]
["03",null,"Cuatro a siete horas semanales",null,null,0,0]
["04",null,"Ocho horas semanales o más",null,null,{"$f":"H109+J109+L109+N109+P109","v":0},{"$f":"I109+K109+M109+O109+Q109","v":0}]
[null,null,"Nota.-","Los totales de esta tabla deben ser iguales o menores a los de la tabla 201."]
[]
[]
[null,null,207,"MATRÍCULA CON OCHO HORAS SEMANALES O MÁS DEDICADAS A EDUCACIÓN PARA EL TRABAJO POR GRADO DE ESTUDIO Y SEXO,  SEGÚN ESPECIALIDADES EN LOS TALLERES DE EDUCACIÓN PARA EL TRABAJO."]
[]
[null,null,"¿REPORTÓ AL MENOS UN ESTUDIANTE CON OCHO HORAS SEMANALES O MÁS DEDICADAS A EDUCACIÓN PARA EL TRABAJO EN LA TABLA 206. ?"]
[]
[{"$f":"IF(SUM(F109:G109)>0,\"X\",\"\")","v":""},null,null,null,null,"Sí",null,null,null,"No",null,null,null,"Pase a la tabla 300"]
[]
[null,null,"ESCRIBA EL CÓDIGO Y DESCRIPCIÓN DE LAS ESPECIALIDADES EN LOS TALLERES DE EDUCACIÓN PARA EL TRABAJO",null,null,null,null,null,null,"TOTAL",null,"GRADO DE ESTUDIO"]
[null,null,null,null,null,null,null,null,null,null,null,"1º",null,"2º",null,"3º",null,"4º",null,"5º"]
[null,null,"Código",{"$f":"IF(F109+G109>0,1,0)","v":0},null,"Descripción",null,null,null,"H","M","H","M","H","M","H","M","H","M","H","M"]
[null,null,"000","TOTAL",null,null,null,null,null,{"$f":"SUM(J123:J142)","v":0},0,0,0,0,0,0,0,0,0,0,0]
[{"$f":"COUNTIF($D$123:$D$142,D123)","v":0},null,{"$f":"LEFT(D123,3)","v":""},null,null,null,null,null,null,{"$f":"L123+N123+P123+R123+T123","v":0},{"$f":"M123+O123+Q123+S123+U123","v":0}]
[{"$f":"COUNTIF($D$123:$D$142,D124)","v":0},null,{"$f":"LEFT(D124,3)","v":""},null,null,null,null,null,null,0,0]
[0,null,{"$f":"LEFT(D125,3)","v":""},null,null,null,null,null,null,0,0]
[0,null,"",null,null,null,null,null,null,0,0]
[0,null,"",null,null,null,null,null,null,0,0]
[0,null,"",null,null,null,null,null,null,0,0]
[0,null,"",null,null,null,null,null,null,0,0]
[0,null,"",null,null,null,null,null,null,0,0]
[0,null,"",null,null,null,null,null,null,0,0]
[0,null,"",null,null,null,null,null,null,0,0]
[0,null,"",null,null,null,null,null,null,0,0]
[0,null,"",null,null,null,null,null,null,0,0]
[0,null,"",null,null,null,null,null,null,0,0]
[0,null,"",null,null,null,null,null,null,0,0]
[0,null,"",null,null,null,null,null,null,0,0]
[0,null,"",null,null,null,null,null,null,0,0]
[0,null,"",null,null,null,null,null,null,0,0]
[0,null,"",null,null,null,null,null,null,0,0]
[0,null,"",null,null,null,null,null,null,{"$f":"L141+N141+P141+R141+T141","v":0},{"$f":"M141+O141+Q141+S141+U141","v":0}]
[0,null,"",null,null,null,null,null,null,{"$f":"L142+N142+P142+R142+T142","v":0},{"$f":"M142+O142+Q142+S142+U142","v":0}]
[null,null,"* Nota :","Los totales de esta tabla deben ser iguales a los subtotales del item \"Ocho horas semanales o más de Educación para el Trabajo\" reportado en la Tabla 206."]

{"sheet":"C300","index":4,"n_rows":520,"n_cols":110,"rows_kept":520,"cut":false,"hidden":false,"merged":[[15,15,15,16],[1,14,1,23],[2,14,2,23],[16,30,18,30],[16,33,18,33],[16,28,18,28],[16,32,18,32],[16,20,18,20],[16,22,18,22],[16,21,17,21],[16,23,18,23],[16,24,18,24],[16,25,18,25],[16,26,18,26],[16,27,18,27],[6,11,6,25],[16,47,17,51],[16,11,18,11],[16,15,16,16],[16,17,18,17],[16,18,18,18],[16,19,18,19],[16,12,18,12],[16,13,18,13],[16,14,18,14],[16,29,18,29],[16,31,18,31],[16,34,18,34],[16,35,17,39],[16,41,17,45],[16,83,17,87],[16,89,17,93],[16,95,17,99],[16,101,17,105],[16,109,18,109],[16,107,17,107],[16,108,17,108],[16,53,17,57],[16,59,17,63],[16,65,17,69],[16,71,17,75],[16,77,17,81]]}
[]
[null,null,null,null,null,null,null,null,null,null,null,null,null,null,"CENSO EDUCATIVO 2025"]
[null,null,null,null,null,null,null,null,null,null,null,null,null,null,"MATRÍCULA, DOCENTES Y MATERIALES EDUCATIVOS"]
[]
["PERSONAL",{"$f":"P10+V10+Y10","v":0}]
[]
["DOCENTES",{"$f":"COUNTIF(R20:R319,\"01: Docente\")","v":0},null,null,null,null,null,null,null,null,null,"300. PERSONAL DOCENTE, AUXILIARES DE EDUCACIÓN Y ADMINISTRATIVOS (Para II.EE. Públicas y Privadas)"]
["AUXILIARES",{"$f":"COUNTIF(R20:R319,\"03: Aux. de Educación\")","v":0},null,null,null,null,null,null,null,null,null,"Anote los totales de personal que labora en su institución educativa."]
["ADMINISTRATIVOS",{"$f":"COUNTIF(R20:R319,\"02: Administrativo\")","v":0}]
["DOCENTE DE AULA",{"$f":"COUNTIF(AH20:AH319,\"05: (111)-Docente por horas\")","v":0},null,null,null,null,null,null,null,null,null,null,null,"Total Docentes : ",null,null,null,"Docentes por horas :",null,null,"Auxiliares de Educación : ",null,null,"Administrativos : "]
["DOCENTES CON SECCIÓN",{"$f":"COUNTIF(AI20:AI319,\"SI\")","v":0}]
[null,{"$f":"B7+B8+B9","v":0},null,null,null,null,null,null,null,null,null,"A continuación, REGISTRE a todo el personal docente, auxiliares de educación y personal administrativo que se encuentre laborando en el servicio/nivel educativo durante el periodo de reporte del censo educativo."]
["DOCENTES DE INGLES",{"$f":"COUNTIF(AV20:AZ319,\"X\")","v":0},null,null,null,null,null,null,null,null,null,"(EXCLUYA al personal que se encuentre haciendo uso de licencia y a los que han sido destacados a otra IE/DRE/UGEL)"]
["DOCENTES DE ARTE Y CULTURA",{"$f":"COUNTIF(BB20:BF319,\"X\")","v":0},null,null,null,null,null,null,null,10]
["LENGUA ORIGINARIA",{"$f":"SUM(J20:J319)","v":0},null,null,null,null,null,null,null,null,null,null,null,null,null,null,null,null,null,null,null,null,null,null,"G. Pública"]
["GESTIÓN",{"$f":"IF(OR(UPPER('C100'!K31)=\"X\",UPPER('C100'!Q31)=\"X\"),1,IF(UPPER('C100'!Y31)=\"X\",3,\"\"))","v":""},null,null,null,null,null,null,null,null,null,null,301.10000000000002,301.2,301.3,302,null,303,304,305,306,307,308,309,310,311,312,313,314,315,316,317,318,319,320,"321. Grados Atendidos por cada área curricular a cargo (Marque con una “X”, según corresponda)",null,null,null,null,null,null,null,null,null,null,null,null,null,null,null,null,null,null,null,null,null,null,null,null,null,null,null,null,null,null,null,null,null,null,null,null,null,null,null,null,null,null,null,null,null,null,null,null,null,null,null,null,null,null,null,null,null,null,null,null,null,null,null,null,null,null,null,null,null,null,null,322.10000000000002,322.2,322.3]
[null,null,null,null,null,null,null,null,null,null,null,"Nº","Apellido Paterno","Apellido Materno","Nombres","Documento de Identidad",null,"Tipo de\nPersonal","Edad","Sexo","Lengua\nmaterna","¿Domina una\nlengua\noriginaria?","Lengua originaria\nque domina","Fuente de\nfinanciamiento","Condición\nLaboral","Modalidad de Contrato","Máximo nivel\neducativo alcanzado","Especialidad Pedagógica\nque ha estudiado","Tipo de institución donde obtuvo su formación pedagógica","Estudios de Postgrado\nen Pedagogía","Años de Experiencia Laboral","Años de\nexperiencia\nlaboral en\neste servicio/nivel\neducativo","Función o cargo","Situación en cargo\ndirectivo","¿Tiene secciones a cargo?","01\nMatemática",null,null,null,null,null,"02\nComunicación",null,null,null,null,null,"03\nIngles como lengua extranjera",null,null,null,null,null,"04\nArte y cultura",null,null,null,null,null,"05\nCiencias Sociales",null,null,null,null,null,"06\nDesarrollo personal, ciudadanía y cívica",null,null,null,null,null,"07\nEducación Física",null,null,null,null,null,"08\nCiencia y\nTecnología",null,null,null,null,null,"09\nCastellano como\nsegunda lengua",null,null,null,null,null,"10\nEducación para el trabajo",null,null,null,null,null,"11\nEducación religiosa",null,null,null,null,null,"12\nTutoría y Orientación Educativa",null,null,null,null,null,"¿Atiende a estudiantes con NEE asociadas a discapacidad?","¿Presenta alguna discapacidad?","Solo si respondió Sí en la pregunta 322.2 ¿Cúal es el tipo de discapacidad?"]
[null,null,"Exp1","Exp2","Exp3","Exp4","Exp5","Exp6","Exp7","Exp8",null,null,null,null,null,302.10000000000002,302.2]
["302.1 Tipo de documento de Identidad","314. Tipo de institución","Corr","Escala","Gest","Secc","Fun cion","Duplex","Fmt","Leng",null,null,null,null,null,"Tipo","Número",null,null,null,null,"SI / NO",null,null,null,null,null,null,null,null,null,null,null,null,null,"1º","2º","3º","4º","5º","Nro. Horas","1º","2º","3º","4º","5º","Nro. Horas","1º","2º","3º","4º","5º","Nro. Horas","1º","2º","3º","4º","5º","Nro. Horas","1º","2º","3º","4º","5º","Nro. Horas","1º","2º","3º","4º","5º","Nro. Horas","1º","2º","3º","4º","5º","Nro. Horas","1º","2º","3º","4º","5º","Nro. Horas","1º","2º","3º","4º","5º","Nro. Horas","1º","2º","3º","4º","5º","Nro. Horas","1º","2º","3º","4º","5º","Nro. Horas","1º","2º","3º","4º","5º","Nro. Horas","SI / NO","SI / NO"]
["01: DNI.","01: IESP (Público)",1,{"$f":"IF(AND(LEFT(R20,2)=\"01\",LEFT(Y20,2)=\"01\",LEFT(X20,2)=\"01\",E20=1),1,0)","v":0},{"$f":"$B$16","v":""},{"$f":"COUNTIF(AJ20:DB20,\"X\")","v":0},{"$f":"IF(R20<>\"\",VALUE(LEFT(R20,2)),0)","v":0},{"$f":"IF(Q20<>\"\",COUNTIF($Q$20:$Q$319,Q20),0)","v":0},{"$f":"IF(L20<>\"\",1,0)","v":0},{"$f":"IF(AND(R20=\"01: Docente\",V20=\"SI\"),1,0)","v":0},null,{"$f":"IF($C20<=$B$5,C20,\"\")","v":""}]
["02: Carnet Ext.","02: IESP (Privado)",2,0,{"$f":"$B$16","v":""},0,{"$f":"IF(R21<>\"\",VALUE(LEFT(R21,2)),0)","v":0},{"$f":"IF(Q21<>\"\",COUNTIF($Q$20:$Q$319,Q21),0)","v":0},0,{"$f":"IF(AND(R21=\"01: Docente\",V21=\"SI\"),1,0)","v":0},null,{"$f":"IF($C21<=$B$5,C21,\"\")","v":""}]
["03: Pasaporte","03: Universidad Privada",3,0,"",0,0,0,0,0,null,""]
[null,"04: Universidad Pública",4,0,"",0,0,0,0,0,null,""]
["303. Tipo de Personal",null,5,0,"",0,0,0,0,0,null,""]
["01: Docente",null,6,0,"",0,0,0,0,0,null,""]
["02: Administrativo",null,7,0,"",0,0,0,0,0,null,""]
["03: Aux. de Educación",null,8,0,"",0,0,0,0,0,null,""]
[null,"315. Estudios de Postgrado en Pedagogía",9,0,"",0,0,0,0,0,null,""]
["305. Sexo","Estudios de Maestría y doctorado",10,0,"",0,0,0,0,0,null,""]
["Hombre","01: Maestria concluida con grado",11,0,"",0,0,0,0,0,null,""]
["Mujer","02: Maestria concluida sin grado",12,0,"",0,0,0,0,0,null,""]
[null,"03: Maestria en proceso / No concluidos",13,0,"",0,0,0,0,0,null,""]
["306. Tabla de Lenguas","04: Doctorado concluido con grado",14,0,"",0,0,0,0,0,null,""]
["0100: Castellano","05: Doctorado concluido sin grado",15,0,"",0,0,0,0,0,null,""]
["0200: Achuar","06: Doctorado en proceso / No concluidos",16,0,"",0,0,0,0,0,null,""]
["0300: Aimara","07: Sin Postgrado",17,0,"",0,0,0,0,0,null,""]
["0400: Amahuaca",null,18,0,"",0,0,0,0,0,null,""]
["0500: Arabela",null,19,0,"",0,0,0,0,0,null,""]
["0600: Asháninka","SI / NO",20,0,"",0,0,0,0,0,null,""]
["0610: Asheninka","SI",21,0,"",0,0,0,0,0,null,""]
["0700: Awajún","NO",22,0,"",0,0,0,0,0,null,""]
["0800: Bora",null,23,0,"",0,0,0,0,0,null,""]
["0900: Kapanawa","316. Años de Experiencia Laboral",24,0,"",0,0,0,0,0,null,""]
["1000: Cashinahua","Registre el total de años que tiene como experiencia",25,0,"",0,0,0,0,0,null,""]
["1100: Kawki","en el Tipo de Personal que se está registrando (Tabla 301.)",26,0,"",0,0,0,0,0,null,""]
["1200: Chamikuro",null,27,0,"",0,0,0,0,0,null,""]
["1300: Ese eja","317. Años de experiencia laboral en este servicio/ nivel educativo",28,0,"",0,0,0,0,0,null,""]
["1400: Harakbut","Anote el N° de años de experiencia prestando servicios",29,0,"",0,0,0,0,0,null,""]
["1500: Iñapari","en este servicio/nivel educativo por el tipo de personal",30,0,"",0,0,0,0,0,null,""]
["1600: Ikuitu","que se está registrando (Tabla 301.)",31,0,"",0,0,0,0,0,null,""]
["1700: Iskonawa",null,32,0,"",0,0,0,0,0,null,""]
["1800: Jaqaru",null,33,0,"",0,0,0,0,0,null,""]
["1900: Kakataibo",null,34,0,"",0,0,0,0,0,null,""]
["2000: Kakinte (caquinte)",null,35,0,"",0,0,0,0,0,null,""]
["2110: Kandozi (Chapra)",null,36,0,"",0,0,0,0,0,null,""]
["2120: Kandozi (Kandozi)",null,37,0,"",0,0,0,0,0,null,""]
["2200: Kukama-Kukamiria",null,38,0,"",0,0,0,0,0,null,""]
["2300: Madija (culina)",null,39,0,"",0,0,0,0,0,null,""]
["2400: Maijiki",null,40,0,"",0,0,0,0,0,null,""]
["2500: Matsés",null,41,0,"",0,0,0,0,0,null,""]
["2600: Matsigenka","318. Función o Cargo",42,0,"",0,0,0,0,0,null,""]
["2700: Munichi","(Desempeñado a la fecha de reporte)",43,0,"",0,0,0,0,0,null,""]
["2800: Murui-muinanɨ","Docentes",44,0,"",0,0,0,0,0,null,""]
["2900: Matsigenka-montetokunirira","01: (102)-Director",45,0,"",0,0,0,0,0,null,""]
["3000: Nomatsigenga","02: (103)-Sub Director",46,0,"",0,0,0,0,0,null,""]
["3100: Ocaina","03: (106)-Coordinador, Asesor",47,0,"",0,0,0,0,0,null,""]
["3200: Omagua","04: (111)-Docente por horas",48,0,"",0,0,0,0,0,null,""]
["3310: Quechua amazónico (Kichwa)","05: (117)-Docente de Educación Física",49,0,"",0,0,0,0,0,null,""]
["3321: Quechua central (Ancash)","06: (118)-Docente de Computación",50,0,"",0,0,0,0,0,null,""]
["3322: Quechua central (Huánuco)","07: (119)-Profesor de Innovación Pedagógica",51,0,"",0,0,0,0,0,null,""]
["3323: Quechua central (Wanka)","08: (139)-Otro Docente",52,0,"",0,0,0,0,0,null,""]
["3324: Quechua central (Pasco)","09: (104)-Director Académico",53,0,"",0,0,0,0,0,null,""]
["3331: Quechua norteño (Cajamarca)","10: (105)-Director de Bienestar y Desarrollo",54,0,"",0,0,0,0,0,null,""]
["3332: Quechua norteño (Inkawasi kañaris)","11: (107)-Coordinador Psicopedagógico",55,0,"",0,0,0,0,0,null,""]
["3341: Quechua sureño (Chanka)","12: (133)-Asistente de Dirección General",56,0,"",0,0,0,0,0,null,""]
["3342: Quechua sureño (Collao)","13: (134)-Asistente de Dirección Académica",57,0,"",0,0,0,0,0,null,""]
["3400: Resígaro","14: (135)-Asistente de Dirección de Bienestar Estudiantil",58,0,"",0,0,0,0,0,null,""]
["3500: Secoya","15: (120)-Docente COAR*",59,0,"",0,0,0,0,0,null,""]
["3600: Sharanahua","16: (144)-Docente Tutor",60,0,"",0,0,0,0,0,null,""]
["3700: Shawi","17: (121)-Docente Acompañante Especializado",61,0,"",0,0,0,0,0,null,""]
["3800: Shipibo-Konibo","18: (122)-Docente Coordinador de Monografía",62,0,"",0,0,0,0,0,null,""]
["3900: Shiwilu","19: (140)-Docente monitor",63,0,"",0,0,0,0,0,null,""]
["4000: Taushiro","20: (145)-Coordinador Pedagógico – JEC",64,0,"",0,0,0,0,0,null,""]
["4100: Ticuna","21: (146)-Coordinador Tutoría – JEC",65,{"$f":"IF(AND(LEFT(R84,2)=\"01\",LEFT(Y84,2)=\"01\",LEFT(X84,2)=\"01\",E84=1),1,0)","v":0},"",{"$f":"COUNTIF(AJ84:DB84,\"X\")","v":0},0,0,{"$f":"IF(L84<>\"\",1,0)","v":0},0,null,""]
["4200: Urarina","22: (147)-Jefe de Taller - SFT",66,0,{"$f":"$B$16","v":""},0,{"$f":"IF(R85<>\"\",VALUE(LEFT(R85,2)),0)","v":0},{"$f":"IF(Q85<>\"\",COUNTIF($Q$20:$Q$319,Q85),0)","v":0},0,{"$f":"IF(AND(R85=\"01: Docente\",V85=\"SI\"),1,0)","v":0},null,{"$f":"IF($C85<=$B$5,C85,\"\")","v":""}]
["4300: Wampis","Administrativos",67,0,"",0,0,0,0,0,null,""]
["4400: Yagua","23: (501)-Psicólogo",68,0,"",0,0,0,0,0,null,""]
["4500: Yaminahua","24: (502)-Trabajo Social / Servicio Social",69,0,"",0,0,0,0,0,null,""]
["4600: Yanesha","25: (503)-Personal de Salud",70,0,"",0,0,0,0,0,null,""]
["4700: Yine","26: (504)-Administrador / Contador",71,0,"",0,0,0,0,0,null,""]
["4800: Nahua","27: (506)-Auxiliar de Biblioteca",72,0,"",0,0,0,0,0,null,""]
["4900: Lengua de señas peruana ","28: (507)-Auxiliar de Laboratorio",73,0,"",0,0,0,0,0,null,""]
["5100: Alemán","29: (508)-Secretaria u Oficinista",74,0,"",0,0,0,0,0,null,""]
["5200: Ingles","30: (511)-Asistente Administrativo",75,0,"",0,0,0,0,0,null,""]
["5300: Italiano","31: (537)-Guía intérprete de sordoceguera",76,0,"",0,0,0,0,0,null,""]
["5400: Japones","32: (538)-Intérprete de Lengua de Señas Peruana",77,0,"",0,0,0,0,0,null,""]
["5500: Portugués","33: (539)-Modelo Lingüistico",78,0,"",0,0,0,0,0,null,""]
["5600: Ruso","34: (512)-Personal de Servicio - Mantenimiento",79,0,"",0,0,0,0,0,null,""]
["5700: Francés","35: (513)-Personal de Servicio - Cocina",80,0,"",0,0,0,0,0,null,""]
["5800: Otra","36: (514)-Personal de Servicio - Limpieza",81,0,"",0,0,0,0,0,null,""]
[null,"37: (515)-Personal de Servicio - Portero",82,0,"",0,0,0,0,0,null,""]
[null,"38: (516)-Personal de Servicio - Vigilante",83,0,"",0,0,0,0,0,null,""]
["308. Lengua Originaria","39: (517)-Otro personal de servicio",84,0,"",0,0,0,0,0,null,""]
["De: 0200 a 4800","40: (505)-Otro personal profesional",85,0,"",0,0,0,0,0,null,""]
[null,"41: (518)-Otro personal no profesional",86,0,"",0,0,0,0,0,null,""]
["309. Fuente de Financiamiento","42: (524)-Coordinador de bienestar estudiantil",87,0,"",0,0,0,0,0,null,""]
["01: Sector Educación","43: (527)-Responsable de convivencia",88,0,"",0,0,0,0,0,null,""]
["02: Otro sector-ffaa salud","44: (522)-Bibliotecólogo",89,0,"",0,0,0,0,0,null,""]
["03: Municipalidad","45: (523)-Técnico en Biblioteca/ Archivista",90,0,"",0,0,0,0,0,null,""]
["04: Gobierno Regional","46: (521)-Monitores de salud",91,0,"",0,0,0,0,0,null,""]
["05: APAFA","47: (519)-Auxiliar Académico",92,0,"",0,0,0,0,0,null,""]
["06: Otra fuente Privada","48: (520)-Auxiliar de Convivencia",93,0,"",0,0,0,0,0,null,""]
[null,"49: (528)-Soporte Técnico-Informático",94,0,"",0,0,0,0,0,null,""]
["310. Condición Laboral","50: (525)-Coordinador administrativo de residencia",95,0,"",0,0,0,0,0,null,""]
["01: Nombrado","51: (526)-Coordinador de bienestar y residencia",96,0,"",0,0,0,0,0,null,""]
["02: Contratado","52: (529)-Gestores educativos",97,0,"",0,0,0,0,0,null,""]
["03: No aplica","53: (530)-Promotor de bienestar",98,0,"",0,0,0,0,0,null,""]
[null,"54: (531)-Coordinador de CRFA",99,0,"",0,0,0,0,0,null,""]
["311. Modalidad de Contrato",null,100,0,"",0,0,0,0,0,null,""]
["Contrato Público",null,101,0,"",0,0,0,0,0,null,""]
["01: A plazo fijo D. Leg. 728","99: (999)-Auxiliar de Educación",102,0,"",0,0,0,0,0,null,""]
["02: Locación de Serv. / Honorarios",null,103,0,"",0,0,0,0,0,null,""]
["03: CAS - D. Leg. 1057","319. Situación en el Cargo Directivo",104,0,"",0,0,0,0,0,null,""]
["04: Contrato D. Leg. 276","01: Designado",105,0,"",0,0,0,0,0,null,""]
["05: Contrato Ley 30328","02: Encargado",106,0,"",0,0,0,0,0,null,""]
["06: Otra modalidad",null,107,0,"",0,0,0,0,0,null,""]
["Contrato Privado",null,108,0,"",0,0,0,0,0,null,""]
["07: A plazo indefinido (Permanente)",null,109,0,"",0,0,0,0,0,null,""]
["08: Plazo fijo (Tiempo determinado)",null,110,0,"",0,0,0,0,0,null,""]
["09: A tiempo parcial (por horas)",null,111,0,"",0,0,0,0,0,null,""]
["10: Locación de Serv. / Honorarios",null,112,0,"",0,0,0,0,0,null,""]
["11: Otra modalidad",null,113,0,"",0,0,0,0,0,null,""]
[null,null,114,0,"",0,0,0,0,0,null,""]
["312. Máximo Nivel Educativo Alcanzado",null,115,0,"",0,0,0,0,0,null,""]
["01: EP.Concluidos con título",null,116,0,"",0,0,0,0,0,null,""]
["02: EP.Concluidos sin título",null,117,0,"",0,0,0,0,0,null,""]
["03: EP.No concluidos",null,118,0,"",0,0,0,0,0,null,""]
["04: NP.Concluidos con título",null,119,0,"",0,0,0,0,0,null,""]
["05: NP.Concluidos sin título",null,120,0,"",0,0,0,0,0,null,""]
["06: NP.No concluidos",null,121,0,"",0,0,0,0,0,null,""]
["07: Secundaria",null,122,0,"",0,0,0,0,0,null,""]
["08: Primaria",null,123,0,"",0,0,0,0,0,null,""]
[null,null,124,0,"",0,0,0,0,0,null,""]
["313. Especialidad del Título",null,125,0,"",0,0,0,0,0,null,""]
["01: Educación Inicial",null,126,0,"",0,0,0,0,0,null,""]
["02: Educación Primaria",null,127,0,"",0,0,0,0,0,null,""]
["03: E.I. Intercultural Bilingüe",null,128,0,"",0,0,0,0,0,null,""]
["04: E.P. Intercultural Bilingüe",null,129,{"$f":"IF(AND(LEFT(R148,2)=\"01\",LEFT(Y148,2)=\"01\",LEFT(X148,2)=\"01\",E148=1),1,0)","v":0},"",{"$f":"COUNTIF(AJ148:DB148,\"X\")","v":0},0,0,{"$f":"IF(L148<>\"\",1,0)","v":0},0,null,""]
["05: Educación Básica Alternativa",null,130,0,{"$f":"$B$16","v":""},0,{"$f":"IF(R149<>\"\",VALUE(LEFT(R149,2)),0)","v":0},{"$f":"IF(Q149<>\"\",COUNTIF($Q$20:$Q$319,Q149),0)","v":0},0,{"$f":"IF(AND(R149=\"01: Docente\",V149=\"SI\"),1,0)","v":0},null,{"$f":"IF($C149<=$B$5,C149,\"\")","v":""}]
["06: Educación Especial",null,131,0,"",0,0,0,0,0,null,""]
["07: Educación Física",null,132,0,"",0,0,0,0,0,null,""]
["08: Educación Artística",null,133,0,"",0,0,0,0,0,null,""]
["09: E.S. Lengua y Literatura",null,134,0,"",0,0,0,0,0,null,""]
["10: E.S. Comunicación","322.2. Tipo de discapacidad",135,0,"",0,0,0,0,0,null,""]
["11: E.S. Matemática y Física","01: Auditiva",136,0,"",0,0,0,0,0,null,""]
["12: E.S. Matemática","02: Visual",137,0,"",0,0,0,0,0,null,""]
["13: E.S. CC.SS. y Filosofía","03: Física o Motora",138,0,"",0,0,0,0,0,null,""]
["14: E.S. Ciencias Sociales","04: Otras",139,0,"",0,0,0,0,0,null,""]
["15: E.S. Ciencias Naturales",null,140,0,"",0,0,0,0,0,null,""]
["16: E.S. Ciencia Tecnología y Ambiente",null,141,0,"",0,0,0,0,0,null,""]
["17: E.S. Alimentación y Nutrición",null,142,0,"",0,0,0,0,0,null,""]
["18: E.S. Biología y Química",null,143,0,"",0,0,0,0,0,null,""]
["19: E.S. Historia y Geografía",null,144,0,"",0,0,0,0,0,null,""]
["20: E.S. CC.HH. Sociales",null,145,0,"",0,0,0,0,0,null,""]
["21: E.S. Idioma Inglés",null,146,0,"",0,0,0,0,0,null,""]
["22: E.S. Educación Religiosa",null,147,0,"",0,0,0,0,0,null,""]
["23: E.S. Educación Familiar",null,148,0,"",0,0,0,0,0,null,""]
["24: E.T. Artes Industriales","323.3. Tipo de estudios en EIB",149,0,"",0,0,0,0,0,null,""]
["25: E.T. Artesanía","01: Doctorado",150,0,"",0,0,0,0,0,null,""]
["26: E.T. Agropecuaria","02: Maestría",151,0,"",0,0,0,0,0,null,""]
["27: E.T. Construcción en Madera","03: Segunda especialidad",152,0,"",0,0,0,0,0,null,""]
["28: E.T. Computación e Informática","04: Especialización",153,0,"",0,0,0,0,0,null,""]
["29: E.T. Carpintería / Ebanista","05: Actualización",154,0,"",0,0,0,0,0,null,""]
["30: E.T. Electricidad","06: Otro",155,0,"",0,0,0,0,0,null,""]
["31: E.T. Electrónica",null,156,0,"",0,0,0,0,0,null,""]
["32: E.T. Ebanistería","Parroquiales",157,0,"",0,0,0,0,0,null,""]
["33: E.T. Industria del Vestido","05: APAFA",158,0,"",0,0,0,0,0,null,""]
["34: E.T. Industria del Vestido, Alimentación y Alta Costura","06: Otra fuente Privada",159,0,"",0,0,0,0,0,null,""]
["35: E.T. Industria del Vestido y Alta Costura","01: Sector Educación",160,0,"",0,0,0,0,0,null,""]
["36: E.T. Industria del Vestido, Alimentación y Artes",null,161,0,"",0,0,0,0,0,null,""]
["37: E.T. Industria Alimentaria",null,162,0,"",0,0,0,0,0,null,""]
["38: E.T. Mecánica Automotriz",null,163,0,"",0,0,0,0,0,null,""]
["39: E.T. Mecánica de Producción","323.3. Tipo de estudios en EIB",164,0,"",0,0,0,0,0,null,""]
["40: E.T. Mecánica de Producción y Soldadura",null,165,0,"",0,0,0,0,0,null,""]
["41: E.T. Textilería",null,166,0,"",0,0,0,0,0,null,""]
["42: Otra Pedagógica",null,167,0,"",0,0,0,0,0,null,""]
[null,null,168,0,"",0,0,0,0,0,null,""]
[null,null,169,0,"",0,0,0,0,0,null,""]
["Area curriculares",null,170,0,"",0,0,0,0,0,null,""]
["01: Matemática",null,171,0,"",0,0,0,0,0,null,""]
["02: Comunicación",null,172,0,"",0,0,0,0,0,null,""]
["03: Ingles",null,173,0,"",0,0,0,0,0,null,""]
["04: Arte y cultura",null,174,0,"",0,0,0,0,0,null,""]
["05: Ciencias Sociales",null,175,0,"",0,0,0,0,0,null,""]
["06: Desarrollo personal ciudadania …",null,176,0,"",0,0,0,0,0,null,""]
["07: Educación Física",null,177,0,"",0,0,0,0,0,null,""]
["08: Ciencia y Tecnología",null,178,0,"",0,0,0,0,0,null,""]
["09: Castellano como segunda lengua",null,179,0,"",0,0,0,0,0,null,""]
["10: Educación para el trabajo",null,180,0,"",0,0,0,0,0,null,""]
["11: Educación religiosa",null,181,0,"",0,0,0,0,0,null,""]
["12: Tutoría y Orientación Educativa",null,182,0,"",0,0,0,0,0,null,""]
[null,null,183,0,"",0,0,0,0,0,null,""]
[null,null,184,0,"",0,0,0,0,0,null,""]
[null,null,185,0,"",0,0,0,0,0,null,""]
[null,null,186,0,"",0,0,0,0,0,null,""]
[null,null,187,0,"",0,0,0,0,0,null,""]
[null,null,188,0,"",0,0,0,0,0,null,""]
[null,null,189,0,"",0,0,0,0,0,null,""]
[null,null,190,0,"",0,0,0,0,0,null,""]
[null,null,191,0,"",0,0,0,0,0,null,""]
[null,null,192,0,"",0,0,0,0,0,null,""]
[null,null,193,{"$f":"IF(AND(LEFT(R212,2)=\"01\",LEFT(Y212,2)=\"01\",LEFT(X212,2)=\"01\",E212=1),1,0)","v":0},"",{"$f":"COUNTIF(AJ212:DB212,\"X\")","v":0},0,0,{"$f":"IF(L212<>\"\",1,0)","v":0},0,null,""]
[null,null,194,0,{"$f":"$B$16","v":""},0,{"$f":"IF(R213<>\"\",VALUE(LEFT(R213,2)),0)","v":0},{"$f":"IF(Q213<>\"\",COUNTIF($Q$20:$Q$319,Q213),0)","v":0},0,{"$f":"IF(AND(R213=\"01: Docente\",V213=\"SI\"),1,0)","v":0},null,{"$f":"IF($C213<=$B$5,C213,\"\")","v":""}]
[null,null,195,0,"",0,0,0,0,0,null,""]
[null,null,196,0,"",0,0,0,0,0,null,""]
[null,null,197,0,"",0,0,0,0,0,null,""]
[null,null,198,0,"",0,0,0,0,0,null,""]
[null,null,199,0,"",0,0,0,0,0,null,""]
[null,null,200,0,"",0,{"$f":"IF(R219<>\"\",VALUE(LEFT(R219,2)),0)","v":0},0,{"$f":"IF(L219<>\"\",1,0)","v":0},0,null,""]
[null,null,201,0,"",0,{"$f":"IF(R220<>\"\",VALUE(LEFT(R220,2)),0)","v":0},0,{"$f":"IF(L220<>\"\",1,0)","v":0},0,null,""]
[null,null,202,0,"",0,0,0,0,0,null,""]
[null,null,203,0,"",0,0,0,0,0,null,""]
[null,null,204,0,"",0,0,0,0,0,null,""]
[null,null,205,0,"",0,0,0,0,0,null,""]
[null,null,206,0,"",0,0,0,0,0,null,""]
[null,null,207,0,"",0,0,0,0,0,null,""]
[null,null,208,0,"",0,0,0,0,0,null,""]
[null,null,209,0,"",0,0,0,0,0,null,""]
[null,null,210,0,"",0,0,0,0,0,null,""]
[null,null,211,0,"",0,0,0,0,0,null,""]
[null,null,212,0,"",0,0,0,0,0,null,""]
[null,null,213,0,"",0,0,0,0,0,null,""]
[null,null,214,0,"",0,0,0,0,0,null,""]
[null,null,215,0,"",0,0,0,0,0,null,""]
[null,null,216,0,"",0,0,0,0,0,null,""]
[null,null,217,0,"",0,0,0,0,0,null,""]
[null,null,218,0,"",0,0,0,0,0,null,""]
[null,null,219,0,"",0,0,0,0,0,null,""]
[null,null,220,0,"",0,0,0,0,0,null,""]
[null,null,221,0,"",0,0,0,0,0,null,""]
[null,null,222,0,"",0,0,0,0,0,null,""]
[null,null,223,0,"",0,0,0,0,0,null,""]
[null,null,224,0,"",0,0,0,0,0,null,""]
[null,null,225,0,"",0,0,0,0,0,null,""]
[null,null,226,0,"",0,0,0,0,0,null,""]
[null,null,227,0,"",0,0,0,0,0,null,""]
[null,null,228,0,"",0,0,0,0,0,null,""]
[null,null,229,0,"",0,0,0,0,0,null,""]
[null,null,230,0,"",0,0,0,0,0,null,""]
[null,null,231,0,"",0,0,0,0,0,null,""]
[null,null,232,0,"",0,0,0,0,0,null,""]
[null,null,233,0,"",0,0,0,0,0,null,""]
[null,null,234,0,"",0,0,0,0,0,null,""]
[null,null,235,0,"",0,0,0,0,0,null,""]
[null,null,236,0,"",0,0,0,0,0,null,""]
[null,null,237,0,"",0,0,0,0,0,null,""]
[null,null,238,0,"",0,0,0,0,0,null,""]
[null,null,239,0,"",0,0,0,0,0,null,""]
[null,null,240,0,"",0,0,0,0,0,null,""]
[null,null,241,0,"",0,0,0,0,0,null,""]
[null,null,242,0,"",0,0,0,0,0,null,""]
[null,null,243,0,"",0,0,0,0,0,null,""]
[null,null,244,0,"",0,0,0,0,0,null,""]
[null,null,245,0,"",0,0,0,0,0,null,""]
[null,null,246,0,"",0,0,0,0,0,null,""]
[null,null,247,0,"",0,0,0,0,0,null,""]
[null,null,248,0,"",0,0,0,0,0,null,""]
[null,null,249,0,"",0,0,0,0,0,null,""]
[null,null,250,0,"",0,0,0,0,0,null,""]
[null,null,251,0,"",0,0,0,0,0,null,""]
[null,null,252,0,"",0,0,0,0,0,null,""]
[null,null,253,0,"",0,0,0,0,0,null,""]
[null,null,254,0,"",0,0,0,0,0,null,""]
[null,null,255,0,"",0,0,0,0,0,null,""]
[null,null,256,0,"",0,0,0,0,0,null,""]
[null,null,257,{"$f":"IF(AND(LEFT(R276,2)=\"01\",LEFT(Y276,2)=\"01\",LEFT(X276,2)=\"01\",E276=1),1,0)","v":0},"",{"$f":"COUNTIF(AJ276:DB276,\"X\")","v":0},0,0,0,0,null,""]
[null,null,258,0,{"$f":"$B$16","v":""},0,0,{"$f":"IF(Q277<>\"\",COUNTIF($Q$20:$Q$319,Q277),0)","v":0},0,{"$f":"IF(AND(R277=\"01: Docente\",V277=\"SI\"),1,0)","v":0},null,{"$f":"IF($C277<=$B$5,C277,\"\")","v":""}]
[null,null,259,0,"",0,0,0,0,0,null,""]
[null,null,260,0,"",0,0,0,0,0,null,""]
[null,null,261,0,"",0,0,0,0,0,null,""]
[null,null,262,0,"",0,0,0,0,0,null,""]
[null,null,263,0,"",0,0,0,0,0,null,""]
[null,null,264,0,"",0,0,0,0,0,null,""]
[null,null,265,0,"",0,{"$f":"IF(R284<>\"\",VALUE(LEFT(R284,2)),0)","v":0},0,{"$f":"IF(L284<>\"\",1,0)","v":0},0,null,""]
[null,null,266,0,"",0,0,0,0,0,null,""]
[null,null,267,0,"",0,0,0,0,0,null,""]
[null,null,268,0,"",0,0,0,0,0,null,""]
[null,null,269,0,"",0,0,0,0,0,null,""]
[null,null,270,0,"",0,0,0,0,0,null,""]
[null,null,271,0,"",0,0,0,0,0,null,""]
[null,null,272,0,"",0,0,0,0,0,null,""]
[null,null,273,0,"",0,0,0,0,0,null,""]
[null,null,274,0,"",0,0,0,0,0,null,""]
[null,null,275,0,"",0,0,0,0,0,null,""]
[null,null,276,0,"",0,0,0,0,0,null,""]
[null,null,277,0,"",0,0,0,0,0,null,""]
[null,null,278,0,"",0,0,0,0,0,null,""]
[null,null,279,0,"",0,0,0,0,0,null,""]
[null,null,280,0,"",0,0,0,0,0,null,""]
[null,null,281,0,"",0,0,0,0,0,null,""]
[null,null,282,0,"",0,0,0,0,0,null,""]
[null,null,283,0,"",0,0,0,0,0,null,""]
[null,null,284,0,"",0,0,0,0,0,null,""]
[null,null,285,0,"",0,0,0,0,0,null,""]
[null,null,286,0,"",0,0,0,0,0,null,""]
[null,null,287,0,"",0,0,0,0,0,null,""]
[null,null,288,0,"",0,0,0,0,0,null,""]
[null,null,289,0,"",0,0,0,0,0,null,""]
[null,null,290,0,"",0,0,0,0,0,null,""]
[null,null,291,0,"",0,0,0,0,0,null,""]
[null,null,292,0,"",0,0,0,0,0,null,""]
[null,null,293,0,"",0,0,0,0,0,null,""]
[null,null,294,0,"",0,0,0,0,0,null,""]
[null,null,295,0,"",0,0,0,0,0,null,""]
[null,null,296,0,"",0,0,0,0,0,null,""]
[null,null,297,0,"",0,0,0,0,0,null,""]
[null,null,298,0,"",0,0,0,0,0,null,""]
[null,null,299,0,"",0,0,0,0,0,null,""]
[null,null,300,0,"",0,{"$f":"IF(R319<>\"\",VALUE(LEFT(R319,2)),0)","v":0},0,{"$f":"IF(L319<>\"\",1,0)","v":0},0,null,""]
[]
[null,null,null,null,null,null,null,null,null,null,null,null,"---","---","---","---","---","---","---","---","---","---","---","---","---","---","---","---","---","---","---","---","---","---","---","---","---","---","---","---","---","---","---","---","---","---","---","---","---","---","---","---","---","---","---","---","---","---","---","---","---","---","---","---","---","---","---","---","---","---","---","---","---","---","---","---","---","---","---","---","---","---","---","---","---","---","---","---","---","---","---","---","---","---","---","---","---","---","---","---","---","---","---","---","---","---","---","---",null,"---"]
[null,null,null,null,null,null,null,null,null,null,null,null,null,null,null,null,null,"","","","",null,"","","",null,"","",null,null,"",null,"","","","",null,null,null,null,null,null,null,null,null,null,null,null,null,null,null,null,null,null,null,null,null,null,null,null,null,null,null,null,null,null,null,null,null,null,null,null,null,null,"","",null,"",null,null,null,null,null,null,null,null,null,null,null,null,null,null,null,"",null,"","",null,null,"",null,"",""]
[null,null,null,null,null,null,null,null,null,null,null,null,null,null,null,null,null,"","","","",null,"","","",null,"","",null,null,"",null,"","","","",null,null,null,null,null,null,null,null,null,null,null,null,null,null,null,null,null,null,null,null,null,null,null,null,null,null,null,null,null,null,null,null,null,null,null,null,null,null,"","",null,"",null,null,null,null,null,null,null,null,null,null,null,null,null,null,null,"",null,"","",null,null,"",null,"",""]
[null,null,null,null,null,null,null,null,null,null,null,null,null,null,null,null,null,"","","","",null,"","","",null,"","",null,null,"",null,"","","","",null,null,null,null,null,null,null,null,null,null,null,null,null,null,null,null,null,null,null,null,null,null,null,null,null,null,null,null,null,null,null,null,null,null,null,null,null,null,"","",null,"",null,null,null,null,null,null,null,null,null,null,null,null,null,null,null,"",null,"","",null,null,"",null,"",""]
[null,null,null,null,null,null,null,null,null,null,null,null,null,null,null,null,null,"","","","",null,"","","",null,"","",null,null,"",null,"","","","",null,null,null,null,null,null,null,null,null,null,null,null,null,null,null,null,null,null,null,null,null,null,null,null,null,null,null,null,null,null,null,null,null,null,null,null,null,null,"","",null,"",null,null,null,null,null,null,null,null,null,null,null,null,null,null,null,"",null,"","",null,null,"",null,"",""]
[null,null,null,null,null,null,null,null,null,null,null,null,null,null,null,null,null,"","","","",null,"","","",null,"","",null,null,"",null,"","","","",null,null,null,null,null,null,null,null,null,null,null,null,null,null,null,null,null,null,null,null,null,null,null,null,null,null,null,null,null,null,null,null,null,null,null,null,null,null,"","",null,"",null,null,null,null,null,null,null,null,null,null,null,null,null,null,null,"",null,"","",null,null,"",null,"",""]
[null,null,null,null,null,null,null,null,null,null,null,null,null,null,null,null,null,"","","","",null,"","","",null,"","",null,null,"",null,"","","","",null,null,null,null,null,null,null,null,null,null,null,null,null,null,null,null,null,null,null,null,null,null,null,null,null,null,null,null,null,null,null,null,null,null,null,null,null,null,"","",null,"",null,null,null,null,null,null,null,null,null,null,null,null,null,null,null,"",null,"","",null,null,"",null,"",""]
[null,null,null,null,null,null,null,null,null,null,null,null,null,null,null,null,null,"","","","",null,"","","",null,"","",null,null,"",null,"","","","",null,null,null,null,null,null,null,null,null,null,null,null,null,null,null,null,null,null,null,null,null,null,null,null,null,null,null,null,null,null,null,null,null,null,null,null,null,null,"","",null,"",null,null,null,null,null,null,null,null,null,null,null,null,null,null,null,"",null,"","",null,null,"",null,"",""]
[null,null,null,null,null,null,null,null,null,null,null,null,null,null,null,null,null,"","","","",null,"","","",null,"","",null,null,"",null,"","","","",null,null,null,null,null,null,null,null,null,null,null,null,null,null,null,null,null,null,null,null,null,null,null,null,null,null,null,null,null,null,null,null,null,null,null,null,null,null,"","",null,"",null,null,null,null,null,null,null,null,null,null,null,null,null,null,null,"",null,"","",null,null,"",null,"",""]
[null,null,null,null,null,null,null,null,null,null,null,null,null,null,null,null,null,"","","","",null,"","","",null,"","",null,null,"",null,"","","","",null,null,null,null,null,null,null,null,null,null,null,null,null,null,null,null,null,null,null,null,null,null,null,null,null,null,null,null,null,null,null,null,null,null,null,null,null,null,"","",null,"",null,null,null,null,null,null,null,null,null,null,null,null,null,null,null,"",null,"","",null,null,"",null,"",""]
[null,null,null,null,null,null,null,null,null,null,null,null,null,null,null,null,null,"","","","",null,"","","",null,"","",null,null,"",null,"","","","",null,null,null,null,null,null,null,null,null,null,null,null,null,null,null,null,null,null,null,null,null,null,null,null,null,null,null,null,null,null,null,null,null,null,null,null,null,null,"","",null,"",null,null,null,null,null,null,null,null,null,null,null,null,null,null,null,"",null,"","",null,null,"",null,"",""]
[null,null,null,null,null,null,null,null,null,null,null,null,null,null,null,null,null,"","","","",null,"","","",null,"","",null,null,"",null,"","","","",null,null,null,null,null,null,null,null,null,null,null,null,null,null,null,null,null,null,null,null,null,null,null,null,null,null,null,null,null,null,null,null,null,null,null,null,null,null,"","",null,"",null,null,null,null,null,null,null,null,null,null,null,null,null,null,null,"",null,"","",null,null,"",null,"",""]
[null,null,null,null,null,null,null,null,null,null,null,null,null,null,null,null,null,"","","","",null,"","","",null,"","",null,null,"",null,"","","","",null,null,null,null,null,null,null,null,null,null,null,null,null,null,null,null,null,null,null,null,null,null,null,null,null,null,null,null,null,null,null,null,null,null,null,null,null,null,"","",null,"",null,null,null,null,null,null,null,null,null,null,null,null,null,null,null,"",null,"","",null,null,"",null,"",""]
[null,null,null,null,null,null,null,null,null,null,null,null,null,null,null,null,null,"","","","",null,"","","",null,"","",null,null,"",null,"","","","",null,null,null,null,null,null,null,null,null,null,null,null,null,null,null,null,null,null,null,null,null,null,null,null,null,null,null,null,null,null,null,null,null,null,null,null,null,null,"","",null,"",null,null,null,null,null,null,null,null,null,null,null,null,null,null,null,"",null,"","",null,null,"",null,"",""]
[null,null,null,null,null,null,null,null,null,null,null,null,null,null,null,null,null,"","","","",null,"","","",null,"","",null,null,"",null,"","","","",null,null,null,null,null,null,null,null,null,null,null,null,null,null,null,null,null,null,null,null,null,null,null,null,null,null,null,null,null,null,null,null,null,null,null,null,null,null,"","",null,"",null,null,null,null,null,null,null,null,null,null,null,null,null,null,null,"",null,"","",null,null,"",null,"",""]
[null,null,null,null,null,null,null,null,null,null,null,null,null,null,null,null,null,"","","","",null,"","","",null,"","",null,null,"",null,"","","","",null,null,null,null,null,null,null,null,null,null,null,null,null,null,null,null,null,null,null,null,null,null,null,null,null,null,null,null,null,null,null,null,null,null,null,null,null,null,"","",null,"",null,null,null,null,null,null,null,null,null,null,null,null,null,null,null,"",null,"","",null,null,"",null,"",""]
[null,null,null,null,null,null,null,null,null,null,null,null,null,null,null,null,null,"","","","",null,"","","",null,"","",null,null,"",null,"","","","",null,null,null,null,null,null,null,null,null,null,null,null,null,null,null,null,null,null,null,null,null,null,null,null,null,null,null,null,null,null,null,null,null,null,null,null,null,null,"","",null,"",null,null,null,null,null,null,null,null,null,null,null,null,null,null,null,"",null,"","",null,null,"",null,"",""]
[null,null,null,null,null,null,null,null,null,null,null,null,null,null,null,null,null,"","","","",null,"","","",null,"","",null,null,"",null,"","","","",null,null,null,null,null,null,null,null,null,null,null,null,null,null,null,null,null,null,null,null,null,null,null,null,null,null,null,null,null,null,null,null,null,null,null,null,null,null,"","",null,"",null,null,null,null,null,null,null,null,null,null,null,null,null,null,null,"",null,"","",null,null,"",null,"",""]
[null,null,null,null,null,null,null,null,null,null,null,null,null,null,null,null,null,"","","","",null,"","","",null,"","",null,null,"",null,"","","","",null,null,null,null,null,null,null,null,null,null,null,null,null,null,null,null,null,null,null,null,null,null,null,null,null,null,null,null,null,null,null,null,null,null,null,null,null,null,"","",null,"",null,null,null,null,null,null,null,null,null,null,null,null,null,null,null,"",null,"","",null,null,"",null,"",""]
[null,null,null,null,null,null,null,null,null,null,null,null,null,null,null,null,null,"","","","",null,"","","",null,"","",null,null,"",null,"","","","",null,null,null,null,null,null,null,null,null,null,null,null,null,null,null,null,null,null,null,null,null,null,null,null,null,null,null,null,null,null,null,null,null,null,null,null,null,null,"","",null,"",null,null,null,null,null,null,null,null,null,null,null,null,null,null,null,"",null,"","",null,null,"",null,"",""]
[null,null,null,null,null,null,null,null,null,null,null,null,null,null,null,null,null,"","","","",null,"","","",null,"","",null,null,"",null,"","","","",null,null,null,null,null,null,null,null,null,null,null,null,null,null,null,null,null,null,null,null,null,null,null,null,null,null,null,null,null,null,null,null,null,null,null,null,null,null,"","",null,"",null,null,null,null,null,null,null,null,null,null,null,null,null,null,null,"",null,"","",null,null,"",null,"",""]
[null,null,null,null,null,null,null,null,null,null,null,null,null,null,null,null,null,"","","","",null,"","","",null,"","",null,null,"",null,"","","","",null,null,null,null,null,null,null,null,null,null,null,null,null,null,null,null,null,null,null,null,null,null,null,null,null,null,null,null,null,null,null,null,null,null,null,null,null,null,"","",null,"",null,null,null,null,null,null,null,null,null,null,null,null,null,null,null,"",null,"","",null,null,"",null,"",""]
[null,null,null,null,null,null,null,null,null,null,null,null,null,null,null,null,null,"","","","",null,"","","",null,"","",null,null,"",null,"","","","",null,null,null,null,null,null,null,null,null,null,null,null,null,null,null,null,null,null,null,null,null,null,null,null,null,null,null,null,null,null,null,null,null,null,null,null,null,null,"","",null,"",null,null,null,null,null,null,null,null,null,null,null,null,null,null,null,"",null,"","",null,null,"",null,"",""]
[null,null,null,null,null,null,null,null,null,null,null,null,null,null,null,null,null,"","","","",null,"","","",null,"","",null,null,"",null,"","","","",null,null,null,null,null,null,null,null,null,null,null,null,null,null,null,null,null,null,null,null,null,null,null,null,null,null,null,null,null,null,null,null,null,null,null,null,null,null,"","",null,"",null,null,null,null,null,null,null,null,null,null,null,null,null,null,null,"",null,"","",null,null,"",null,"",""]
[null,null,null,null,null,null,null,null,null,null,null,null,null,null,null,null,null,"","","","",null,"","","",null,"","",null,null,"",null,"","","","",null,null,null,null,null,null,null,null,null,null,null,null,null,null,null,null,null,null,null,null,null,null,null,null,null,null,null,null,null,null,null,null,null,null,null,null,null,null,"","",null,"",null,null,null,null,null,null,null,null,null,null,null,null,null,null,null,"",null,"","",null,null,"",null,"",""]
[null,null,null,null,null,null,null,null,null,null,null,null,null,null,null,null,null,"","","","",null,"","","",null,"","",null,null,"",null,"","","","",null,null,null,null,null,null,null,null,null,null,null,null,null,null,null,null,null,null,null,null,null,null,null,null,null,null,null,null,null,null,null,null,null,null,null,null,null,null,"","",null,"",null,null,null,null,null,null,null,null,null,null,null,null,null,null,null,"",null,"","",null,null,"",null,"",""]
[null,null,null,null,null,null,null,null,null,null,null,null,null,null,null,null,null,"","","","",null,"","","",null,"","",null,null,"",null,"","","","",null,null,null,null,null,null,null,null,null,null,null,null,null,null,null,null,null,null,null,null,null,null,null,null,null,null,null,null,null,null,null,null,null,null,null,null,null,null,"","",null,"",null,null,null,null,null,null,null,null,null,null,null,null,null,null,null,"",null,"","",null,null,"",null,"",""]
[null,null,null,null,null,null,null,null,null,null,null,null,null,null,null,null,null,"","","","",null,"","","",null,"","",null,null,"",null,"","","","",null,null,null,null,null,null,null,null,null,null,null,null,null,null,null,null,null,null,null,null,null,null,null,null,null,null,null,null,null,null,null,null,null,null,null,null,null,null,"","",null,"",null,null,null,null,null,null,null,null,null,null,null,null,null,null,null,"",null,"","",null,null,"",null,"",""]
[null,null,null,null,null,null,null,null,null,null,null,null,null,null,null,null,null,"","","","",null,"","","",null,"","",null,null,"",null,"","","","",null,null,null,null,null,null,null,null,null,null,null,null,null,null,null,null,null,null,null,null,null,null,null,null,null,null,null,null,null,null,null,null,null,null,null,null,null,null,"","",null,"",null,null,null,null,null,null,null,null,null,null,null,null,null,null,null,"",null,"","",null,null,"",null,"",""]
[null,null,null,null,null,null,null,null,null,null,null,null,null,null,null,null,null,"","","","",null,"","","",null,"","",null,null,"",null,"","","","",null,null,null,null,null,null,null,null,null,null,null,null,null,null,null,null,null,null,null,null,null,null,null,null,null,null,null,null,null,null,null,null,null,null,null,null,null,null,"","",null,"",null,null,null,null,null,null,null,null,null,null,null,null,null,null,null,"",null,"","",null,null,"",null,"",""]
[null,null,null,null,null,null,null,null,null,null,null,null,null,null,null,null,null,"","","","",null,"","","",null,"","",null,null,"",null,"","","","",null,null,null,null,null,null,null,null,null,null,null,null,null,null,null,null,null,null,null,null,null,null,null,null,null,null,null,null,null,null,null,null,null,null,null,null,null,null,"","",null,"",null,null,null,null,null,null,null,null,null,null,null,null,null,null,null,"",null,"","",null,null,"",null,"",""]
[null,null,null,null,null,null,null,null,null,null,null,null,null,null,null,null,null,"","","","",null,"","","",null,"","",null,null,"",null,"","","","",null,null,null,null,null,null,null,null,null,null,null,null,null,null,null,null,null,null,null,null,null,null,null,null,null,null,null,null,null,null,null,null,null,null,null,null,null,null,"","",null,"",null,null,null,null,null,null,null,null,null,null,null,null,null,null,null,"",null,"","",null,null,"",null,"",""]
[null,null,null,null,null,null,null,null,null,null,null,null,null,null,null,null,null,"","","","",null,"","","",null,"","",null,null,"",null,"","","","",null,null,null,null,null,null,null,null,null,null,null,null,null,null,null,null,null,null,null,null,null,null,null,null,null,null,null,null,null,null,null,null,null,null,null,null,null,null,"","",null,"",null,null,null,null,null,null,null,null,null,null,null,null,null,null,null,"",null,"","",null,null,"",null,"",""]
[null,null,null,null,null,null,null,null,null,null,null,null,null,null,null,null,null,"","","","",null,"","","",null,"","",null,null,"",null,"","","","",null,null,null,null,null,null,null,null,null,null,null,null,null,null,null,null,null,null,null,null,null,null,null,null,null,null,null,null,null,null,null,null,null,null,null,null,null,null,"","",null,"",null,null,null,null,null,null,null,null,null,null,null,null,null,null,null,"",null,"","",null,null,"",null,"",""]
[null,null,null,null,null,null,null,null,null,null,null,null,null,null,null,null,null,"","","","",null,"","","",null,"","",null,null,"",null,"","","","",null,null,null,null,null,null,null,null,null,null,null,null,null,null,null,null,null,null,null,null,null,null,null,null,null,null,null,null,null,null,null,null,null,null,null,null,null,null,"","",null,"",null,null,null,null,null,null,null,null,null,null,null,null,null,null,null,"",null,"","",null,null,"",null,"",""]
[null,null,null,null,null,null,null,null,null,null,null,null,null,null,null,null,null,"","","","",null,"","","",null,"","",null,null,"",null,"","","","",null,null,null,null,null,null,null,null,null,null,null,null,null,null,null,null,null,null,null,null,null,null,null,null,null,null,null,null,null,null,null,null,null,null,null,null,null,null,"","",null,"",null,null,null,null,null,null,null,null,null,null,null,null,null,null,null,"",null,"","",null,null,"",null,"",""]
[null,null,null,null,null,null,null,null,null,null,null,null,null,null,null,null,null,"","","","",null,"","","",null,"","",null,null,"",null,"","","","",null,null,null,null,null,null,null,null,null,null,null,null,null,null,null,null,null,null,null,null,null,null,null,null,null,null,null,null,null,null,null,null,null,null,null,null,null,null,"","",null,"",null,null,null,null,null,null,null,null,null,null,null,null,null,null,null,"",null,"","",null,null,"",null,"",""]
[null,null,null,null,null,null,null,null,null,null,null,null,null,null,null,null,null,"","","","",null,"","","",null,"","",null,null,"",null,"","","","",null,null,null,null,null,null,null,null,null,null,null,null,null,null,null,null,null,null,null,null,null,null,null,null,null,null,null,null,null,null,null,null,null,null,null,null,null,null,"","",null,"",null,null,null,null,null,null,null,null,null,null,null,null,null,null,null,"",null,"","",null,null,"",null,"",""]
[null,null,null,null,null,null,null,null,null,null,null,null,null,null,null,null,null,"","","","",null,"","","",null,"","",null,null,"",null,"","","","",null,null,null,null,null,null,null,null,null,null,null,null,null,null,null,null,null,null,null,null,null,null,null,null,null,null,null,null,null,null,null,null,null,null,null,null,null,null,"","",null,"",null,null,null,null,null,null,null,null,null,null,null,null,null,null,null,"",null,"","",null,null,"",null,"",""]
[null,null,null,null,null,null,null,null,null,null,null,null,null,null,null,null,null,"","","","",null,"","","",null,"","",null,null,"",null,"","","","",null,null,null,null,null,null,null,null,null,null,null,null,null,null,null,null,null,null,null,null,null,null,null,null,null,null,null,null,null,null,null,null,null,null,null,null,null,null,"","",null,"",null,null,null,null,null,null,null,null,null,null,null,null,null,null,null,"",null,"","",null,null,"",null,"",""]
[null,null,null,null,null,null,null,null,null,null,null,null,null,null,null,null,null,"","","","",null,"","","",null,"","",null,null,"",null,"","","","",null,null,null,null,null,null,null,null,null,null,null,null,null,null,null,null,null,null,null,null,null,null,null,null,null,null,null,null,null,null,null,null,null,null,null,null,null,null,"","",null,"",null,null,null,null,null,null,null,null,null,null,null,null,null,null,null,"",null,"","",null,null,"",null,"",""]
[null,null,null,null,null,null,null,null,null,null,null,null,null,null,null,null,null,"","","","",null,"","","",null,"","",null,null,"",null,"","","","",null,null,null,null,null,null,null,null,null,null,null,null,null,null,null,null,null,null,null,null,null,null,null,null,null,null,null,null,null,null,null,null,null,null,null,null,null,null,"","",null,"",null,null,null,null,null,null,null,null,null,null,null,null,null,null,null,"",null,"","",null,null,"",null,"",""]
[null,null,null,null,null,null,null,null,null,null,null,null,null,null,null,null,null,"","","","",null,"","","",null,"","",null,null,"",null,"","","","",null,null,null,null,null,null,null,null,null,null,null,null,null,null,null,null,null,null,null,null,null,null,null,null,null,null,null,null,null,null,null,null,null,null,null,null,null,null,"","",null,"",null,null,null,null,null,null,null,null,null,null,null,null,null,null,null,"",null,"","",null,null,"",null,"",""]
[null,null,null,null,null,null,null,null,null,null,null,null,null,null,null,null,null,"","","","",null,"","","",null,"","",null,null,"",null,"","","","",null,null,null,null,null,null,null,null,null,null,null,null,null,null,null,null,null,null,null,null,null,null,null,null,null,null,null,null,null,null,null,null,null,null,null,null,null,null,"","",null,"",null,null,null,null,null,null,null,null,null,null,null,null,null,null,null,"",null,"","",null,null,"",null,"",""]
[null,null,null,null,null,null,null,null,null,null,null,null,null,null,null,null,null,"","","","",null,"","","",null,"","",null,null,"",null,"","","","",null,null,null,null,null,null,null,null,null,null,null,null,null,null,null,null,null,null,null,null,null,null,null,null,null,null,null,null,null,null,null,null,null,null,null,null,null,null,"","",null,"",null,null,null,null,null,null,null,null,null,null,null,null,null,null,null,"",null,"","",null,null,"",null,"",""]
[null,null,null,null,null,null,null,null,null,null,null,null,null,null,null,null,null,"","","","",null,"","","",null,"","",null,null,"",null,"","","","",null,null,null,null,null,null,null,null,null,null,null,null,null,null,null,null,null,null,null,null,null,null,null,null,null,null,null,null,null,null,null,null,null,null,null,null,null,null,"","",null,"",null,null,null,null,null,null,null,null,null,null,null,null,null,null,null,"",null,"","",null,null,"",null,"",""]
[null,null,null,null,null,null,null,null,null,null,null,null,null,null,null,null,null,"","","","",null,"","","",null,"","",null,null,"",null,"","","","",null,null,null,null,null,null,null,null,null,null,null,null,null,null,null,null,null,null,null,null,null,null,null,null,null,null,null,null,null,null,null,null,null,null,null,null,null,null,"","",null,"",null,null,null,null,null,null,null,null,null,null,null,null,null,null,null,"",null,"","",null,null,"",null,"",""]
[null,null,null,null,null,null,null,null,null,null,null,null,null,null,null,null,null,"","","","",null,"","","",null,"","",null,null,"",null,"","","","",null,null,null,null,null,null,null,null,null,null,null,null,null,null,null,null,null,null,null,null,null,null,null,null,null,null,null,null,null,null,null,null,null,null,null,null,null,null,"","",null,"",null,null,null,null,null,null,null,null,null,null,null,null,null,null,null,"",null,"","",null,null,"",null,"",""]
[null,null,null,null,null,null,null,null,null,null,null,null,null,null,null,null,null,"","","","",null,"","","",null,"","",null,null,"",null,"","","","",null,null,null,null,null,null,null,null,null,null,null,null,null,null,null,null,null,null,null,null,null,null,null,null,null,null,null,null,null,null,null,null,null,null,null,null,null,null,"","",null,"",null,null,null,null,null,null,null,null,null,null,null,null,null,null,null,"",null,"","",null,null,"",null,"",""]
[null,null,null,null,null,null,null,null,null,null,null,null,null,null,null,null,null,"","","","",null,"","","",null,"","",null,null,"",null,"","","","",null,null,null,null,null,null,null,null,null,null,null,null,null,null,null,null,null,null,null,null,null,null,null,null,null,null,null,null,null,null,null,null,null,null,null,null,null,null,"","",null,"",null,null,null,null,null,null,null,null,null,null,null,null,null,null,null,"",null,"","",null,null,"",null,"",""]
[null,null,null,null,null,null,null,null,null,null,null,null,null,null,null,null,null,"","","","",null,"","","",null,"","",null,null,"",null,"","","","",null,null,null,null,null,null,null,null,null,null,null,null,null,null,null,null,null,null,null,null,null,null,null,null,null,null,null,null,null,null,null,null,null,null,null,null,null,null,"","",null,"",null,null,null,null,null,null,null,null,null,null,null,null,null,null,null,"",null,"","",null,null,"",null,"",""]
[null,null,null,null,null,null,null,null,null,null,null,null,null,null,null,null,null,"","","","",null,"","","",null,"","",null,null,"",null,"","","","",null,null,null,null,null,null,null,null,null,null,null,null,null,null,null,null,null,null,null,null,null,null,null,null,null,null,null,null,null,null,null,null,null,null,null,null,null,null,"","",null,"",null,null,null,null,null,null,null,null,null,null,null,null,null,null,null,"",null,"","",null,null,"",null,"",""]
[null,null,null,null,null,null,null,null,null,null,null,null,null,null,null,null,null,"","","","",null,"","","",null,"","",null,null,"",null,"","","","",null,null,null,null,null,null,null,null,null,null,null,null,null,null,null,null,null,null,null,null,null,null,null,null,null,null,null,null,null,null,null,null,null,null,null,null,null,null,"","",null,"",null,null,null,null,null,null,null,null,null,null,null,null,null,null,null,"",null,"","",null,null,"",null,"",""]
[null,null,null,null,null,null,null,null,null,null,null,null,null,null,null,null,null,"","","","",null,"","","",null,"","",null,null,"",null,"","","","",null,null,null,null,null,null,null,null,null,null,null,null,null,null,null,null,null,null,null,null,null,null,null,null,null,null,null,null,null,null,null,null,null,null,null,null,null,null,"","",null,"",null,null,null,null,null,null,null,null,null,null,null,null,null,null,null,"",null,"","",null,null,"",null,"",""]
[null,null,null,null,null,null,null,null,null,null,null,null,null,null,null,null,null,"","","","",null,"","","",null,"","",null,null,"",null,"","","","",null,null,null,null,null,null,null,null,null,null,null,null,null,null,null,null,null,null,null,null,null,null,null,null,null,null,null,null,null,null,null,null,null,null,null,null,null,null,"","",null,"",null,null,null,null,null,null,null,null,null,null,null,null,null,null,null,"",null,"","",null,null,"",null,"",""]
[null,null,null,null,null,null,null,null,null,null,null,null,null,null,null,null,null,"","","","",null,"","","",null,"","",null,null,"",null,"","","","",null,null,null,null,null,null,null,null,null,null,null,null,null,null,null,null,null,null,null,null,null,null,null,null,null,null,null,null,null,null,null,null,null,null,null,null,null,null,"","",null,"",null,null,null,null,null,null,null,null,null,null,null,null,null,null,null,"",null,"","",null,null,"",null,"",""]
[null,null,null,null,null,null,null,null,null,null,null,null,null,null,null,null,null,"","","","",null,"","","",null,"","",null,null,"",null,"","","","",null,null,null,null,null,null,null,null,null,null,null,null,null,null,null,null,null,null,null,null,null,null,null,null,null,null,null,null,null,null,null,null,null,null,null,null,null,null,"","",null,"",null,null,null,null,null,null,null,null,null,null,null,null,null,null,null,"",null,"","",null,null,"",null,"",""]
[null,null,null,null,null,null,null,null,null,null,null,null,null,null,null,null,null,"","","","",null,"","","",null,"","",null,null,"",null,"","","","",null,null,null,null,null,null,null,null,null,null,null,null,null,null,null,null,null,null,null,null,null,null,null,null,null,null,null,null,null,null,null,null,null,null,null,null,null,null,"","",null,"",null,null,null,null,null,null,null,null,null,null,null,null,null,null,null,"",null,"","",null,null,"",null,"",""]
[null,null,null,null,null,null,null,null,null,null,null,null,null,null,null,null,null,"","","","",null,"","","",null,"","",null,null,"",null,"","","","",null,null,null,null,null,null,null,null,null,null,null,null,null,null,null,null,null,null,null,null,null,null,null,null,null,null,null,null,null,null,null,null,null,null,null,null,null,null,"","",null,"",null,null,null,null,null,null,null,null,null,null,null,null,null,null,null,"",null,"","",null,null,"",null,"",""]
[null,null,null,null,null,null,null,null,null,null,null,null,null,null,null,null,null,"","","","",null,"","","",null,"","",null,null,"",null,"","","","",null,null,null,null,null,null,null,null,null,null,null,null,null,null,null,null,null,null,null,null,null,null,null,null,null,null,null,null,null,null,null,null,null,null,null,null,null,null,"","",null,"",null,null,null,null,null,null,null,null,null,null,null,null,null,null,null,"",null,"","",null,null,"",null,"",""]
[null,null,null,null,null,null,null,null,null,null,null,null,null,null,null,null,null,"","","","",null,"","","",null,"","",null,null,"",null,"","","","",null,null,null,null,null,null,null,null,null,null,null,null,null,null,null,null,null,null,null,null,null,null,null,null,null,null,null,null,null,null,null,null,null,null,null,null,null,null,"","",null,"",null,null,null,null,null,null,null,null,null,null,null,null,null,null,null,"",null,"","",null,null,"",null,"",""]
[null,null,null,null,null,null,null,null,null,null,null,null,null,null,null,null,null,"","","","",null,"","","",null,"","",null,null,"",null,"","","","",null,null,null,null,null,null,null,null,null,null,null,null,null,null,null,null,null,null,null,null,null,null,null,null,null,null,null,null,null,null,null,null,null,null,null,null,null,null,"","",null,"",null,null,null,null,null,null,null,null,null,null,null,null,null,null,null,"",null,"","",null,null,"",null,"",""]
[null,null,null,null,null,null,null,null,null,null,null,null,null,null,null,null,null,"","","","",null,"","","",null,"","",null,null,"",null,"","","","",null,null,null,null,null,null,null,null,null,null,null,null,null,null,null,null,null,null,null,null,null,null,null,null,null,null,null,null,null,null,null,null,null,null,null,null,null,null,"","",null,"",null,null,null,null,null,null,null,null,null,null,null,null,null,null,null,"",null,"","",null,null,"",null,"",""]
[null,null,null,null,null,null,null,null,null,null,null,null,null,null,null,null,null,"","","","",null,"","","",null,"","",null,null,"",null,"","","","",null,null,null,null,null,null,null,null,null,null,null,null,null,null,null,null,null,null,null,null,null,null,null,null,null,null,null,null,null,null,null,null,null,null,null,null,null,null,"","",null,"",null,null,null,null,null,null,null,null,null,null,null,null,null,null,null,"",null,"","",null,null,"",null,"",""]
[null,null,null,null,null,null,null,null,null,null,null,null,null,null,null,null,null,"","","","",null,"","","",null,"","",null,null,"",null,"","","","",null,null,null,null,null,null,null,null,null,null,null,null,null,null,null,null,null,null,null,null,null,null,null,null,null,null,null,null,null,null,null,null,null,null,null,null,null,null,"","",null,"",null,null,null,null,null,null,null,null,null,null,null,null,null,null,null,"",null,"","",null,null,"",null,"",""]
[null,null,null,null,null,null,null,null,null,null,null,null,null,null,null,null,null,"","","","",null,"","","",null,"","",null,null,"",null,"","","","",null,null,null,null,null,null,null,null,null,null,null,null,null,null,null,null,null,null,null,null,null,null,null,null,null,null,null,null,null,null,null,null,null,null,null,null,null,null,"","",null,"",null,null,null,null,null,null,null,null,null,null,null,null,null,null,null,"",null,"","",null,null,"",null,"",""]
[null,null,null,null,null,null,null,null,null,null,null,null,null,null,null,null,null,"","","","",null,"","","",null,"","",null,null,"",null,"","","","",null,null,null,null,null,null,null,null,null,null,null,null,null,null,null,null,null,null,null,null,null,null,null,null,null,null,null,null,null,null,null,null,null,null,null,null,null,null,"","",null,"",null,null,null,null,null,null,null,null,null,null,null,null,null,null,null,"",null,"","",null,null,"",null,"",""]
[null,null,null,null,null,null,null,null,null,null,null,null,null,null,null,null,null,"","","","",null,"","","",null,"","",null,null,"",null,"","","","",null,null,null,null,null,null,null,null,null,null,null,null,null,null,null,null,null,null,null,null,null,null,null,null,null,null,null,null,null,null,null,null,null,null,null,null,null,null,"","",null,"",null,null,null,null,null,null,null,null,null,null,null,null,null,null,null,"",null,"","",null,null,"",null,"",""]
[null,null,null,null,null,null,null,null,null,null,null,null,null,null,null,null,null,"","","","",null,"","","",null,"","",null,null,"",null,"","","","",null,null,null,null,null,null,null,null,null,null,null,null,null,null,null,null,null,null,null,null,null,null,null,null,null,null,null,null,null,null,null,null,null,null,null,null,null,null,"","",null,"",null,null,null,null,null,null,null,null,null,null,null,null,null,null,null,"",null,"","",null,null,"",null,"",""]
[null,null,null,null,null,null,null,null,null,null,null,null,null,null,null,null,null,"","","","",null,"","","",null,"","",null,null,"",null,"","","","",null,null,null,null,null,null,null,null,null,null,null,null,null,null,null,null,null,null,null,null,null,null,null,null,null,null,null,null,null,null,null,null,null,null,null,null,null,null,"","",null,"",null,null,null,null,null,null,null,null,null,null,null,null,null,null,null,"",null,"","",null,null,"",null,"",""]
[null,null,null,null,null,null,null,null,null,null,null,null,null,null,null,null,null,"","","","",null,"","","",null,"","",null,null,"",null,"","","","",null,null,null,null,null,null,null,null,null,null,null,null,null,null,null,null,null,null,null,null,null,null,null,null,null,null,null,null,null,null,null,null,null,null,null,null,null,null,"","",null,"",null,null,null,null,null,null,null,null,null,null,null,null,null,null,null,"",null,"","",null,null,"",null,"",""]
[null,null,null,null,null,null,null,null,null,null,null,null,null,null,null,null,null,"","","","",null,"","","",null,"","",null,null,"",null,"","","","",null,null,null,null,null,null,null,null,null,null,null,null,null,null,null,null,null,null,null,null,null,null,null,null,null,null,null,null,null,null,null,null,null,null,null,null,null,null,"","",null,"",null,null,null,null,null,null,null,null,null,null,null,null,null,null,null,"",null,"","",null,null,"",null,"",""]
[null,null,null,null,null,null,null,null,null,null,null,null,null,null,null,null,null,"","","","",null,"","","",null,"","",null,null,"",null,"","","","",null,null,null,null,null,null,null,null,null,null,null,null,null,null,null,null,null,null,null,null,null,null,null,null,null,null,null,null,null,null,null,null,null,null,null,null,null,null,"","",null,"",null,null,null,null,null,null,null,null,null,null,null,null,null,null,null,"",null,"","",null,null,"",null,"",""]
[null,null,null,null,null,null,null,null,null,null,null,null,null,null,null,null,null,"","","","",null,"","","",null,"","",null,null,"",null,"","","","",null,null,null,null,null,null,null,null,null,null,null,null,null,null,null,null,null,null,null,null,null,null,null,null,null,null,null,null,null,null,null,null,null,null,null,null,null,null,"","",null,"",null,null,null,null,null,null,null,null,null,null,null,null,null,null,null,"",null,"","",null,null,"",null,"",""]
[null,null,null,null,null,null,null,null,null,null,null,null,null,null,null,null,null,"","","","",null,"","","",null,"","",null,null,"",null,"","","","",null,null,null,null,null,null,null,null,null,null,null,null,null,null,null,null,null,null,null,null,null,null,null,null,null,null,null,null,null,null,null,null,null,null,null,null,null,null,"","",null,"",null,null,null,null,null,null,null,null,null,null,null,null,null,null,null,"",null,"","",null,null,"",null,"",""]
[null,null,null,null,null,null,null,null,null,null,null,null,null,null,null,null,null,"","","","",null,"","","",null,"","",null,null,"",null,"","","","",null,null,null,null,null,null,null,null,null,null,null,null,null,null,null,null,null,null,null,null,null,null,null,null,null,null,null,null,null,null,null,null,null,null,null,null,null,null,"","",null,"",null,null,null,null,null,null,null,null,null,null,null,null,null,null,null,"",null,"","",null,null,"",null,"",""]
[null,null,null,null,null,null,null,null,null,null,null,null,null,null,null,null,null,"","","","",null,"","","",null,"","",null,null,"",null,"","","","",null,null,null,null,null,null,null,null,null,null,null,null,null,null,null,null,null,null,null,null,null,null,null,null,null,null,null,null,null,null,null,null,null,null,null,null,null,null,"","",null,"",null,null,null,null,null,null,null,null,null,null,null,null,null,null,null,"",null,"","",null,null,"",null,"",""]
[null,null,null,null,null,null,null,null,null,null,null,null,null,null,null,null,null,"","","","",null,"","","",null,"","",null,null,"",null,"","","","",null,null,null,null,null,null,null,null,null,null,null,null,null,null,null,null,null,null,null,null,null,null,null,null,null,null,null,null,null,null,null,null,null,null,null,null,null,null,"","",null,"",null,null,null,null,null,null,null,null,null,null,null,null,null,null,null,"",null,"","",null,null,"",null,"",""]
[null,null,null,null,null,null,null,null,null,null,null,null,null,null,null,null,null,"","","","",null,"","","",null,"","",null,null,"",null,"","","","",null,null,null,null,null,null,null,null,null,null,null,null,null,null,null,null,null,null,null,null,null,null,null,null,null,null,null,null,null,null,null,null,null,null,null,null,null,null,"","",null,"",null,null,null,null,null,null,null,null,null,null,null,null,null,null,null,"",null,"","",null,null,"",null,"",""]
[null,null,null,null,null,null,null,null,null,null,null,null,null,null,null,null,null,"","","","",null,"","","",null,"","",null,null,"",null,"","","","",null,null,null,null,null,null,null,null,null,null,null,null,null,null,null,null,null,null,null,null,null,null,null,null,null,null,null,null,null,null,null,null,null,null,null,null,null,null,"","",null,"",null,null,null,null,null,null,null,null,null,null,null,null,null,null,null,"",null,"","",null,null,"",null,"",""]
[null,null,null,null,null,null,null,null,null,null,null,null,null,null,null,null,null,"","","","",null,"","","",null,"","",null,null,"",null,"","","","",null,null,null,null,null,null,null,null,null,null,null,null,null,null,null,null,null,null,null,null,null,null,null,null,null,null,null,null,null,null,null,null,null,null,null,null,null,null,"","",null,"",null,null,null,null,null,null,null,null,null,null,null,null,null,null,null,"",null,"","",null,null,"",null,"",""]
[null,null,null,null,null,null,null,null,null,null,null,null,null,null,null,null,null,"","","","",null,"","","",null,"","",null,null,"",null,"","","","",null,null,null,null,null,null,null,null,null,null,null,null,null,null,null,null,null,null,null,null,null,null,null,null,null,null,null,null,null,null,null,null,null,null,null,null,null,null,"","",null,"",null,null,null,null,null,null,null,null,null,null,null,null,null,null,null,"",null,"","",null,null,"",null,"",""]
[null,null,null,null,null,null,null,null,null,null,null,null,null,null,null,null,null,"","","","",null,"","","",null,"","",null,null,"",null,"","","","",null,null,null,null,null,null,null,null,null,null,null,null,null,null,null,null,null,null,null,null,null,null,null,null,null,null,null,null,null,null,null,null,null,null,null,null,null,null,"","",null,"",null,null,null,null,null,null,null,null,null,null,null,null,null,null,null,"",null,"","",null,null,"",null,"",""]
[null,null,null,null,null,null,null,null,null,null,null,null,null,null,null,null,null,"","","","",null,"","","",null,"","",null,null,"",null,"","","","",null,null,null,null,null,null,null,null,null,null,null,null,null,null,null,null,null,null,null,null,null,null,null,null,null,null,null,null,null,null,null,null,null,null,null,null,null,null,"","",null,"",null,null,null,null,null,null,null,null,null,null,null,null,null,null,null,"",null,"","",null,null,"",null,"",""]
[null,null,null,null,null,null,null,null,null,null,null,null,null,null,null,null,null,"","","","",null,"","","",null,"","",null,null,"",null,"","","","",null,null,null,null,null,null,null,null,null,null,null,null,null,null,null,null,null,null,null,null,null,null,null,null,null,null,null,null,null,null,null,null,null,null,null,null,null,null,"","",null,"",null,null,null,null,null,null,null,null,null,null,null,null,null,null,null,"",null,"","",null,null,"",null,"",""]
[null,null,null,null,null,null,null,null,null,null,null,null,null,null,null,null,null,"","","","",null,"","","",null,"","",null,null,"",null,"","","","",null,null,null,null,null,null,null,null,null,null,null,null,null,null,null,null,null,null,null,null,null,null,null,null,null,null,null,null,null,null,null,null,null,null,null,null,null,null,"","",null,"",null,null,null,null,null,null,null,null,null,null,null,null,null,null,null,"",null,"","",null,null,"",null,"",""]
[null,null,null,null,null,null,null,null,null,null,null,null,null,null,null,null,null,"","","","",null,"","","",null,"","",null,null,"",null,"","","","",null,null,null,null,null,null,null,null,null,null,null,null,null,null,null,null,null,null,null,null,null,null,null,null,null,null,null,null,null,null,null,null,null,null,null,null,null,null,"","",null,"",null,null,null,null,null,null,null,null,null,null,null,null,null,null,null,"",null,"","",null,null,"",null,"",""]
[null,null,null,null,null,null,null,null,null,null,null,null,null,null,null,null,null,"","","","",null,"","","",null,"","",null,null,"",null,"","","","",null,null,null,null,null,null,null,null,null,null,null,null,null,null,null,null,null,null,null,null,null,null,null,null,null,null,null,null,null,null,null,null,null,null,null,null,null,null,"","",null,"",null,null,null,null,null,null,null,null,null,null,null,null,null,null,null,"",null,"","",null,null,"",null,"",""]
[null,null,null,null,null,null,null,null,null,null,null,null,null,null,null,null,null,"","","","",null,"","","",null,"","",null,null,"",null,"","","","",null,null,null,null,null,null,null,null,null,null,null,null,null,null,null,null,null,null,null,null,null,null,null,null,null,null,null,null,null,null,null,null,null,null,null,null,null,null,"","",null,"",null,null,null,null,null,null,null,null,null,null,null,null,null,null,null,"",null,"","",null,null,"",null,"",""]
[null,null,null,null,null,null,null,null,null,null,null,null,null,null,null,null,null,"","","","",null,"","","",null,"","",null,null,"",null,"","","","",null,null,null,null,null,null,null,null,null,null,null,null,null,null,null,null,null,null,null,null,null,null,null,null,null,null,null,null,null,null,null,null,null,null,null,null,null,null,"","",null,"",null,null,null,null,null,null,null,null,null,null,null,null,null,null,null,"",null,"","",null,null,"",null,"",""]
[null,null,null,null,null,null,null,null,null,null,null,null,null,null,null,null,null,"","","","",null,"","","",null,"","",null,null,"",null,"","","","",null,null,null,null,null,null,null,null,null,null,null,null,null,null,null,null,null,null,null,null,null,null,null,null,null,null,null,null,null,null,null,null,null,null,null,null,null,null,"","",null,"",null,null,null,null,null,null,null,null,null,null,null,null,null,null,null,"",null,"","",null,null,"",null,"",""]
[null,null,null,null,null,null,null,null,null,null,null,null,null,null,null,null,null,"","","","",null,"","","",null,"","",null,null,"",null,"","","","",null,null,null,null,null,null,null,null,null,null,null,null,null,null,null,null,null,null,null,null,null,null,null,null,null,null,null,null,null,null,null,null,null,null,null,null,null,null,"","",null,"",null,null,null,null,null,null,null,null,null,null,null,null,null,null,null,"",null,"","",null,null,"",null,"",""]
[null,null,null,null,null,null,null,null,null,null,null,null,null,null,null,null,null,"","","","",null,"","","",null,"","",null,null,"",null,"","","","",null,null,null,null,null,null,null,null,null,null,null,null,null,null,null,null,null,null,null,null,null,null,null,null,null,null,null,null,null,null,null,null,null,null,null,null,null,null,"","",null,"",null,null,null,null,null,null,null,null,null,null,null,null,null,null,null,"",null,"","",null,null,"",null,"",""]
[null,null,null,null,null,null,null,null,null,null,null,null,null,null,null,null,null,"","","","",null,"","","",null,"","",null,null,"",null,"","","","",null,null,null,null,null,null,null,null,null,null,null,null,null,null,null,null,null,null,null,null,null,null,null,null,null,null,null,null,null,null,null,null,null,null,null,null,null,null,"","",null,"",null,null,null,null,null,null,null,null,null,null,null,null,null,null,null,"",null,"","",null,null,"",null,"",""]
[null,null,null,null,null,null,null,null,null,null,null,null,null,null,null,null,null,"","","","",null,"","","",null,"","",null,null,"",null,"","","","",null,null,null,null,null,null,null,null,null,null,null,null,null,null,null,null,null,null,null,null,null,null,null,null,null,null,null,null,null,null,null,null,null,null,null,null,null,null,"","",null,"",null,null,null,null,null,null,null,null,null,null,null,null,null,null,null,"",null,"","",null,null,"",null,"",""]
[null,null,null,null,null,null,null,null,null,null,null,null,null,null,null,null,null,"","","","",null,"","","",null,"","",null,null,"",null,"","","","",null,null,null,null,null,null,null,null,null,null,null,null,null,null,null,null,null,null,null,null,null,null,null,null,null,null,null,null,null,null,null,null,null,null,null,null,null,null,"","",null,"",null,null,null,null,null,null,null,null,null,null,null,null,null,null,null,"",null,"","",null,null,"",null,"",""]
[null,null,null,null,null,null,null,null,null,null,null,null,null,null,null,null,null,"","","","",null,"","","",null,"","",null,null,"",null,"","","","",null,null,null,null,null,null,null,null,null,null,null,null,null,null,null,null,null,null,null,null,null,null,null,null,null,null,null,null,null,null,null,null,null,null,null,null,null,null,"","",null,"",null,null,null,null,null,null,null,null,null,null,null,null,null,null,null,"",null,"","",null,null,"",null,"",""]
[null,null,null,null,null,null,null,null,null,null,null,null,null,null,null,null,null,"","","","",null,"","","",null,"","",null,null,"",null,"","","","",null,null,null,null,null,null,null,null,null,null,null,null,null,null,null,null,null,null,null,null,null,null,null,null,null,null,null,null,null,null,null,null,null,null,null,null,null,null,"","",null,"",null,null,null,null,null,null,null,null,null,null,null,null,null,null,null,"",null,"","",null,null,"",null,"",""]
[null,null,null,null,null,null,null,null,null,null,null,null,null,null,null,null,null,"","","","",null,"","","",null,"","",null,null,"",null,"","","","",null,null,null,null,null,null,null,null,null,null,null,null,null,null,null,null,null,null,null,null,null,null,null,null,null,null,null,null,null,null,null,null,null,null,null,null,null,null,"","",null,"",null,null,null,null,null,null,null,null,null,null,null,null,null,null,null,"",null,"","",null,null,"",null,"",""]
[null,null,null,null,null,null,null,null,null,null,null,null,null,null,null,null,null,"","","","",null,"","","",null,"","",null,null,"",null,"","","","",null,null,null,null,null,null,null,null,null,null,null,null,null,null,null,null,null,null,null,null,null,null,null,null,null,null,null,null,null,null,null,null,null,null,null,null,null,null,"","",null,"",null,null,null,null,null,null,null,null,null,null,null,null,null,null,null,"",null,"","",null,null,"",null,"",""]
[null,null,null,null,null,null,null,null,null,null,null,null,null,null,null,null,null,"","","","",null,"","","",null,"","",null,null,"",null,"","","","",null,null,null,null,null,null,null,null,null,null,null,null,null,null,null,null,null,null,null,null,null,null,null,null,null,null,null,null,null,null,null,null,null,null,null,null,null,null,"","",null,"",null,null,null,null,null,null,null,null,null,null,null,null,null,null,null,"",null,"","",null,null,"",null,"",""]
[null,null,null,null,null,null,null,null,null,null,null,null,null,null,null,null,null,"","","","",null,"","","",null,"","",null,null,"",null,"","","","",null,null,null,null,null,null,null,null,null,null,null,null,null,null,null,null,null,null,null,null,null,null,null,null,null,null,null,null,null,null,null,null,null,null,null,null,null,null,"","",null,"",null,null,null,null,null,null,null,null,null,null,null,null,null,null,null,"",null,"","",null,null,"",null,"",""]
[null,null,null,null,null,null,null,null,null,null,null,null,null,null,null,null,null,"","","","",null,"","","",null,"","",null,null,"",null,"","","","",null,null,null,null,null,null,null,null,null,null,null,null,null,null,null,null,null,null,null,null,null,null,null,null,null,null,null,null,null,null,null,null,null,null,null,null,null,null,"","",null,"",null,null,null,null,null,null,null,null,null,null,null,null,null,null,null,"",null,"","",null,null,"",null,"",""]
[null,null,null,null,null,null,null,null,null,null,null,null,null,null,null,null,null,"","","","",null,"","","",null,"","",null,null,"",null,"","","","",null,null,null,null,null,null,null,null,null,null,null,null,null,null,null,null,null,null,null,null,null,null,null,null,null,null,null,null,null,null,null,null,null,null,null,null,null,null,"","",null,"",null,null,null,null,null,null,null,null,null,null,null,null,null,null,null,"",null,"","",null,null,"",null,"",""]
[null,null,null,null,null,null,null,null,null,null,null,null,null,null,null,null,null,"","","","",null,"","","",null,"","",null,null,"",null,"","","","",null,null,null,null,null,null,null,null,null,null,null,null,null,null,null,null,null,null,null,null,null,null,null,null,null,null,null,null,null,null,null,null,null,null,null,null,null,null,"","",null,"",null,null,null,null,null,null,null,null,null,null,null,null,null,null,null,"",null,"","",null,null,"",null,"",""]
[null,null,null,null,null,null,null,null,null,null,null,null,null,null,null,null,null,"","","","",null,"","","",null,"","",null,null,"",null,"","","","",null,null,null,null,null,null,null,null,null,null,null,null,null,null,null,null,null,null,null,null,null,null,null,null,null,null,null,null,null,null,null,null,null,null,null,null,null,null,"","",null,"",null,null,null,null,null,null,null,null,null,null,null,null,null,null,null,"",null,"","",null,null,"",null,"",""]
[null,null,null,null,null,null,null,null,null,null,null,null,null,null,null,null,null,"","","","",null,"","","",null,"","",null,null,"",null,"","","","",null,null,null,null,null,null,null,null,null,null,null,null,null,null,null,null,null,null,null,null,null,null,null,null,null,null,null,null,null,null,null,null,null,null,null,null,null,null,"","",null,"",null,null,null,null,null,null,null,null,null,null,null,null,null,null,null,"",null,"","",null,null,"",null,"",""]
[null,null,null,null,null,null,null,null,null,null,null,null,null,null,null,null,null,"","","","",null,"","","",null,"","",null,null,"",null,"","","","",null,null,null,null,null,null,null,null,null,null,null,null,null,null,null,null,null,null,null,null,null,null,null,null,null,null,null,null,null,null,null,null,null,null,null,null,null,null,"","",null,"",null,null,null,null,null,null,null,null,null,null,null,null,null,null,null,"",null,"","",null,null,"",null,"",""]
[null,null,null,null,null,null,null,null,null,null,null,null,null,null,null,null,null,"","","","",null,"","","",null,"","",null,null,"",null,"","","","",null,null,null,null,null,null,null,null,null,null,null,null,null,null,null,null,null,null,null,null,null,null,null,null,null,null,null,null,null,null,null,null,null,null,null,null,null,null,"","",null,"",null,null,null,null,null,null,null,null,null,null,null,null,null,null,null,"",null,"","",null,null,"",null,"",""]
[null,null,null,null,null,null,null,null,null,null,null,null,null,null,null,null,null,"","","","",null,"","","",null,"","",null,null,"",null,"","","","",null,null,null,null,null,null,null,null,null,null,null,null,null,null,null,null,null,null,null,null,null,null,null,null,null,null,null,null,null,null,null,null,null,null,null,null,null,null,"","",null,"",null,null,null,null,null,null,null,null,null,null,null,null,null,null,null,"",null,"","",null,null,"",null,"",""]
[null,null,null,null,null,null,null,null,null,null,null,null,null,null,null,null,null,"","","","",null,"","","",null,"","",null,null,"",null,"","","","",null,null,null,null,null,null,null,null,null,null,null,null,null,null,null,null,null,null,null,null,null,null,null,null,null,null,null,null,null,null,null,null,null,null,null,null,null,null,"","",null,"",null,null,null,null,null,null,null,null,null,null,null,null,null,null,null,"",null,"","",null,null,"",null,"",""]
[null,null,null,null,null,null,null,null,null,null,null,null,null,null,null,null,null,"","","","",null,"","","",null,"","",null,null,"",null,"","","","",null,null,null,null,null,null,null,null,null,null,null,null,null,null,null,null,null,null,null,null,null,null,null,null,null,null,null,null,null,null,null,null,null,null,null,null,null,null,"","",null,"",null,null,null,null,null,null,null,null,null,null,null,null,null,null,null,"",null,"","",null,null,"",null,"",""]
[null,null,null,null,null,null,null,null,null,null,null,null,null,null,null,null,null,"","","","",null,"","","",null,"","",null,null,"",null,"","","","",null,null,null,null,null,null,null,null,null,null,null,null,null,null,null,null,null,null,null,null,null,null,null,null,null,null,null,null,null,null,null,null,null,null,null,null,null,null,"","",null,"",null,null,null,null,null,null,null,null,null,null,null,null,null,null,null,"",null,"","",null,null,"",null,"",""]
[null,null,null,null,null,null,null,null,null,null,null,null,null,null,null,null,null,"","","","",null,"","","",null,"","",null,null,"",null,"","","","",null,null,null,null,null,null,null,null,null,null,null,null,null,null,null,null,null,null,null,null,null,null,null,null,null,null,null,null,null,null,null,null,null,null,null,null,null,null,"","",null,"",null,null,null,null,null,null,null,null,null,null,null,null,null,null,null,"",null,"","",null,null,"",null,"",""]
[null,null,null,null,null,null,null,null,null,null,null,null,null,null,null,null,null,"","","","",null,"","","",null,"","",null,null,"",null,"","","","",null,null,null,null,null,null,null,null,null,null,null,null,null,null,null,null,null,null,null,null,null,null,null,null,null,null,null,null,null,null,null,null,null,null,null,null,null,null,"","",null,"",null,null,null,null,null,null,null,null,null,null,null,null,null,null,null,"",null,"","",null,null,"",null,"",""]
[null,null,null,null,null,null,null,null,null,null,null,null,null,null,null,null,null,"","","","",null,"","","",null,"","",null,null,"",null,"","","","",null,null,null,null,null,null,null,null,null,null,null,null,null,null,null,null,null,null,null,null,null,null,null,null,null,null,null,null,null,null,null,null,null,null,null,null,null,null,"","",null,"",null,null,null,null,null,null,null,null,null,null,null,null,null,null,null,"",null,"","",null,null,"",null,"",""]
[null,null,null,null,null,null,null,null,null,null,null,null,null,null,null,null,null,"","","","",null,"","","",null,"","",null,null,"",null,"","","","",null,null,null,null,null,null,null,null,null,null,null,null,null,null,null,null,null,null,null,null,null,null,null,null,null,null,null,null,null,null,null,null,null,null,null,null,null,null,"","",null,"",null,null,null,null,null,null,null,null,null,null,null,null,null,null,null,"",null,"","",null,null,"",null,"",""]
[null,null,null,null,null,null,null,null,null,null,null,null,null,null,null,null,null,"","","","",null,"","","",null,"","",null,null,"",null,"","","","",null,null,null,null,null,null,null,null,null,null,null,null,null,null,null,null,null,null,null,null,null,null,null,null,null,null,null,null,null,null,null,null,null,null,null,null,null,null,"","",null,"",null,null,null,null,null,null,null,null,null,null,null,null,null,null,null,"",null,"","",null,null,"",null,"",""]
[null,null,null,null,null,null,null,null,null,null,null,null,null,null,null,null,null,"","","","",null,"","","",null,"","",null,null,"",null,"","","","",null,null,null,null,null,null,null,null,null,null,null,null,null,null,null,null,null,null,null,null,null,null,null,null,null,null,null,null,null,null,null,null,null,null,null,null,null,null,"","",null,"",null,null,null,null,null,null,null,null,null,null,null,null,null,null,null,"",null,"","",null,null,"",null,"",""]
[null,null,null,null,null,null,null,null,null,null,null,null,null,null,null,null,null,"","","","",null,"","","",null,"","",null,null,"",null,"","","","",null,null,null,null,null,null,null,null,null,null,null,null,null,null,null,null,null,null,null,null,null,null,null,null,null,null,null,null,null,null,null,null,null,null,null,null,null,null,"","",null,"",null,null,null,null,null,null,null,null,null,null,null,null,null,null,null,"",null,"","",null,null,"",null,"",""]
[null,null,null,null,null,null,null,null,null,null,null,null,null,null,null,null,null,"","","","",null,"","","",null,"","",null,null,"",null,"","","","",null,null,null,null,null,null,null,null,null,null,null,null,null,null,null,null,null,null,null,null,null,null,null,null,null,null,null,null,null,null,null,null,null,null,null,null,null,null,"","",null,"",null,null,null,null,null,null,null,null,null,null,null,null,null,null,null,"",null,"","",null,null,"",null,"",""]
[null,null,null,null,null,null,null,null,null,null,null,null,null,null,null,null,null,"","","","",null,"","","",null,"","",null,null,"",null,"","","","",null,null,null,null,null,null,null,null,null,null,null,null,null,null,null,null,null,null,null,null,null,null,null,null,null,null,null,null,null,null,null,null,null,null,null,null,null,null,"","",null,"",null,null,null,null,null,null,null,null,null,null,null,null,null,null,null,"",null,"","",null,null,"",null,"",""]
[null,null,null,null,null,null,null,null,null,null,null,null,null,null,null,null,null,"","","","",null,"","","",null,"","",null,null,"",null,"","","","",null,null,null,null,null,null,null,null,null,null,null,null,null,null,null,null,null,null,null,null,null,null,null,null,null,null,null,null,null,null,null,null,null,null,null,null,null,null,"","",null,"",null,null,null,null,null,null,null,null,null,null,null,null,null,null,null,"",null,"","",null,null,"",null,"",""]
[null,null,null,null,null,null,null,null,null,null,null,null,null,null,null,null,null,"","","","",null,"","","",null,"","",null,null,"",null,"","","","",null,null,null,null,null,null,null,null,null,null,null,null,null,null,null,null,null,null,null,null,null,null,null,null,null,null,null,null,null,null,null,null,null,null,null,null,null,null,"","",null,"",null,null,null,null,null,null,null,null,null,null,null,null,null,null,null,"",null,"","",null,null,"",null,"",""]
[null,null,null,null,null,null,null,null,null,null,null,null,null,null,null,null,null,"","","","",null,"","","",null,"","",null,null,"",null,"","","","",null,null,null,null,null,null,null,null,null,null,null,null,null,null,null,null,null,null,null,null,null,null,null,null,null,null,null,null,null,null,null,null,null,null,null,null,null,null,"","",null,"",null,null,null,null,null,null,null,null,null,null,null,null,null,null,null,"",null,"","",null,null,"",null,"",""]
[null,null,null,null,null,null,null,null,null,null,null,null,null,null,null,null,null,"","","","",null,"","","",null,"","",null,null,"",null,"","","","",null,null,null,null,null,null,null,null,null,null,null,null,null,null,null,null,null,null,null,null,null,null,null,null,null,null,null,null,null,null,null,null,null,null,null,null,null,null,"","",null,"",null,null,null,null,null,null,null,null,null,null,null,null,null,null,null,"",null,"","",null,null,"",null,"",""]
[null,null,null,null,null,null,null,null,null,null,null,null,null,null,null,null,null,"","","","",null,"","","",null,"","",null,null,"",null,"","","","",null,null,null,null,null,null,null,null,null,null,null,null,null,null,null,null,null,null,null,null,null,null,null,null,null,null,null,null,null,null,null,null,null,null,null,null,null,null,"","",null,"",null,null,null,null,null,null,null,null,null,null,null,null,null,null,null,"",null,"","",null,null,"",null,"",""]
[null,null,null,null,null,null,null,null,null,null,null,null,null,null,null,null,null,"","","","",null,"","","",null,"","",null,null,"",null,"","","","",null,null,null,null,null,null,null,null,null,null,null,null,null,null,null,null,null,null,null,null,null,null,null,null,null,null,null,null,null,null,null,null,null,null,null,null,null,null,"","",null,"",null,null,null,null,null,null,null,null,null,null,null,null,null,null,null,"",null,"","",null,null,"",null,"",""]
[null,null,null,null,null,null,null,null,null,null,null,null,null,null,null,null,null,"","","","",null,"","","",null,"","",null,null,"",null,"","","","",null,null,null,null,null,null,null,null,null,null,null,null,null,null,null,null,null,null,null,null,null,null,null,null,null,null,null,null,null,null,null,null,null,null,null,null,null,null,"","",null,"",null,null,null,null,null,null,null,null,null,null,null,null,null,null,null,"",null,"","",null,null,"",null,"",""]
[null,null,null,null,null,null,null,null,null,null,null,null,null,null,null,null,null,"","","","",null,"","","",null,"","",null,null,"",null,"","","","",null,null,null,null,null,null,null,null,null,null,null,null,null,null,null,null,null,null,null,null,null,null,null,null,null,null,null,null,null,null,null,null,null,null,null,null,null,null,"","",null,"",null,null,null,null,null,null,null,null,null,null,null,null,null,null,null,"",null,"","",null,null,"",null,"",""]
[null,null,null,null,null,null,null,null,null,null,null,null,null,null,null,null,null,"","","","",null,"","","",null,"","",null,null,"",null,"","","","",null,null,null,null,null,null,null,null,null,null,null,null,null,null,null,null,null,null,null,null,null,null,null,null,null,null,null,null,null,null,null,null,null,null,null,null,null,null,"","",null,"",null,null,null,null,null,null,null,null,null,null,null,null,null,null,null,"",null,"","",null,null,"",null,"",""]
[null,null,null,null,null,null,null,null,null,null,null,null,null,null,null,null,null,"","","","",null,"","","",null,"","",null,null,"",null,"","","","",null,null,null,null,null,null,null,null,null,null,null,null,null,null,null,null,null,null,null,null,null,null,null,null,null,null,null,null,null,null,null,null,null,null,null,null,null,null,"","",null,"",null,null,null,null,null,null,null,null,null,null,null,null,null,null,null,"",null,"","",null,null,"",null,"",""]
[null,null,null,null,null,null,null,null,null,null,null,null,null,null,null,null,null,"","","","",null,"","","",null,"","",null,null,"",null,"","","","",null,null,null,null,null,null,null,null,null,null,null,null,null,null,null,null,null,null,null,null,null,null,null,null,null,null,null,null,null,null,null,null,null,null,null,null,null,null,"","",null,"",null,null,null,null,null,null,null,null,null,null,null,null,null,null,null,"",null,"","",null,null,"",null,"",""]
[null,null,null,null,null,null,null,null,null,null,null,null,null,null,null,null,null,"","","","",null,"","","",null,"","",null,null,"",null,"","","","",null,null,null,null,null,null,null,null,null,null,null,null,null,null,null,null,null,null,null,null,null,null,null,null,null,null,null,null,null,null,null,null,null,null,null,null,null,null,"","",null,"",null,null,null,null,null,null,null,null,null,null,null,null,null,null,null,"",null,"","",null,null,"",null,"",""]
[null,null,null,null,null,null,null,null,null,null,null,null,null,null,null,null,null,"","","","",null,"","","",null,"","",null,null,"",null,"","","","",null,null,null,null,null,null,null,null,null,null,null,null,null,null,null,null,null,null,null,null,null,null,null,null,null,null,null,null,null,null,null,null,null,null,null,null,null,null,"","",null,"",null,null,null,null,null,null,null,null,null,null,null,null,null,null,null,"",null,"","",null,null,"",null,"",""]
[null,null,null,null,null,null,null,null,null,null,null,null,null,null,null,null,null,"","","","",null,"","","",null,"","",null,null,"",null,"","","","",null,null,null,null,null,null,null,null,null,null,null,null,null,null,null,null,null,null,null,null,null,null,null,null,null,null,null,null,null,null,null,null,null,null,null,null,null,null,"","",null,"",null,null,null,null,null,null,null,null,null,null,null,null,null,null,null,"",null,"","",null,null,"",null,"",""]
[null,null,null,null,null,null,null,null,null,null,null,null,null,null,null,null,null,"","","","",null,"","","",null,"","",null,null,"",null,"","","","",null,null,null,null,null,null,null,null,null,null,null,null,null,null,null,null,null,null,null,null,null,null,null,null,null,null,null,null,null,null,null,null,null,null,null,null,null,null,"","",null,"",null,null,null,null,null,null,null,null,null,null,null,null,null,null,null,"",null,"","",null,null,"",null,"",""]
[null,null,null,null,null,null,null,null,null,null,null,null,null,null,null,null,null,"","","","",null,"","","",null,"","",null,null,"",null,"","","","",null,null,null,null,null,null,null,null,null,null,null,null,null,null,null,null,null,null,null,null,null,null,null,null,null,null,null,null,null,null,null,null,null,null,null,null,null,null,"","",null,"",null,null,null,null,null,null,null,null,null,null,null,null,null,null,null,"",null,"","",null,null,"",null,"",""]
[null,null,null,null,null,null,null,null,null,null,null,null,null,null,null,null,null,"","","","",null,"","","",null,"","",null,null,"",null,"","","","",null,null,null,null,null,null,null,null,null,null,null,null,null,null,null,null,null,null,null,null,null,null,null,null,null,null,null,null,null,null,null,null,null,null,null,null,null,null,"","",null,"",null,null,null,null,null,null,null,null,null,null,null,null,null,null,null,"",null,"","",null,null,"",null,"",""]
[null,null,null,null,null,null,null,null,null,null,null,null,null,null,null,null,null,"","","","",null,"","","",null,"","",null,null,"",null,"","","","",null,null,null,null,null,null,null,null,null,null,null,null,null,null,null,null,null,null,null,null,null,null,null,null,null,null,null,null,null,null,null,null,null,null,null,null,null,null,"","",null,"",null,null,null,null,null,null,null,null,null,null,null,null,null,null,null,"",null,"","",null,null,"",null,"",""]
[null,null,null,null,null,null,null,null,null,null,null,null,null,null,null,null,null,"","","","",null,"","","",null,"","",null,null,"",null,"","","","",null,null,null,null,null,null,null,null,null,null,null,null,null,null,null,null,null,null,null,null,null,null,null,null,null,null,null,null,null,null,null,null,null,null,null,null,null,null,"","",null,"",null,null,null,null,null,null,null,null,null,null,null,null,null,null,null,"",null,"","",null,null,"",null,"",""]
[null,null,null,null,null,null,null,null,null,null,null,null,null,null,null,null,null,"","","","",null,"","","",null,"","",null,null,"",null,"","","","",null,null,null,null,null,null,null,null,null,null,null,null,null,null,null,null,null,null,null,null,null,null,null,null,null,null,null,null,null,null,null,null,null,null,null,null,null,null,"","",null,"",null,null,null,null,null,null,null,null,null,null,null,null,null,null,null,"",null,"","",null,null,"",null,"",""]
[null,null,null,null,null,null,null,null,null,null,null,null,null,null,null,null,null,"","","","",null,"","","",null,"","",null,null,"",null,"","","","",null,null,null,null,null,null,null,null,null,null,null,null,null,null,null,null,null,null,null,null,null,null,null,null,null,null,null,null,null,null,null,null,null,null,null,null,null,null,"","",null,"",null,null,null,null,null,null,null,null,null,null,null,null,null,null,null,"",null,"","",null,null,"",null,"",""]
[null,null,null,null,null,null,null,null,null,null,null,null,null,null,null,null,null,"","","","",null,"","","",null,"","",null,null,"",null,"","","","",null,null,null,null,null,null,null,null,null,null,null,null,null,null,null,null,null,null,null,null,null,null,null,null,null,null,null,null,null,null,null,null,null,null,null,null,null,null,"","",null,"",null,null,null,null,null,null,null,null,null,null,null,null,null,null,null,"",null,"","",null,null,"",null,"",""]
[null,null,null,null,null,null,null,null,null,null,null,null,null,null,null,null,null,"","","","",null,"","","",null,"","",null,null,"",null,"","","","",null,null,null,null,null,null,null,null,null,null,null,null,null,null,null,null,null,null,null,null,null,null,null,null,null,null,null,null,null,null,null,null,null,null,null,null,null,null,"","",null,"",null,null,null,null,null,null,null,null,null,null,null,null,null,null,null,"",null,"","",null,null,"",null,"",""]
[null,null,null,null,null,null,null,null,null,null,null,null,null,null,null,null,null,"","","","",null,"","","",null,"","",null,null,"",null,"","","","",null,null,null,null,null,null,null,null,null,null,null,null,null,null,null,null,null,null,null,null,null,null,null,null,null,null,null,null,null,null,null,null,null,null,null,null,null,null,"","",null,"",null,null,null,null,null,null,null,null,null,null,null,null,null,null,null,"",null,"","",null,null,"",null,"",""]
[null,null,null,null,null,null,null,null,null,null,null,null,null,null,null,null,null,"","","","",null,"","","",null,"","",null,null,"",null,"","","","",null,null,null,null,null,null,null,null,null,null,null,null,null,null,null,null,null,null,null,null,null,null,null,null,null,null,null,null,null,null,null,null,null,null,null,null,null,null,"","",null,"",null,null,null,null,null,null,null,null,null,null,null,null,null,null,null,"",null,"","",null,null,"",null,"",""]
[null,null,null,null,null,null,null,null,null,null,null,null,null,null,null,null,null,"","","","",null,"","","",null,"","",null,null,"",null,"","","","",null,null,null,null,null,null,null,null,null,null,null,null,null,null,null,null,null,null,null,null,null,null,null,null,null,null,null,null,null,null,null,null,null,null,null,null,null,null,"","",null,"",null,null,null,null,null,null,null,null,null,null,null,null,null,null,null,"",null,"","",null,null,"",null,"",""]
[null,null,null,null,null,null,null,null,null,null,null,null,null,null,null,null,null,"","","","",null,"","","",null,"","",null,null,"",null,"","","","",null,null,null,null,null,null,null,null,null,null,null,null,null,null,null,null,null,null,null,null,null,null,null,null,null,null,null,null,null,null,null,null,null,null,null,null,null,null,"","",null,"",null,null,null,null,null,null,null,null,null,null,null,null,null,null,null,"",null,"","",null,null,"",null,"",""]
[null,null,null,null,null,null,null,null,null,null,null,null,null,null,null,null,null,"","","","",null,"","","",null,"","",null,null,"",null,"","","","",null,null,null,null,null,null,null,null,null,null,null,null,null,null,null,null,null,null,null,null,null,null,null,null,null,null,null,null,null,null,null,null,null,null,null,null,null,null,"","",null,"",null,null,null,null,null,null,null,null,null,null,null,null,null,null,null,"",null,"","",null,null,"",null,"",""]
[null,null,null,null,null,null,null,null,null,null,null,null,null,null,null,null,null,"","","","",null,"","","",null,"","",null,null,"",null,"","","","",null,null,null,null,null,null,null,null,null,null,null,null,null,null,null,null,null,null,null,null,null,null,null,null,null,null,null,null,null,null,null,null,null,null,null,null,null,null,"","",null,"",null,null,null,null,null,null,null,null,null,null,null,null,null,null,null,"",null,"","",null,null,"",null,"",""]
[null,null,null,null,null,null,null,null,null,null,null,null,null,null,null,null,null,"","","","",null,"","","",null,"","",null,null,"",null,"","","","",null,null,null,null,null,null,null,null,null,null,null,null,null,null,null,null,null,null,null,null,null,null,null,null,null,null,null,null,null,null,null,null,null,null,null,null,null,null,"","",null,"",null,null,null,null,null,null,null,null,null,null,null,null,null,null,null,"",null,"","",null,null,"",null,"",""]
[null,null,null,null,null,null,null,null,null,null,null,null,null,null,null,null,null,"","","","",null,"","","",null,"","",null,null,"",null,"","","","",null,null,null,null,null,null,null,null,null,null,null,null,null,null,null,null,null,null,null,null,null,null,null,null,null,null,null,null,null,null,null,null,null,null,null,null,null,null,"","",null,"",null,null,null,null,null,null,null,null,null,null,null,null,null,null,null,"",null,"","",null,null,"",null,"",""]
[null,null,null,null,null,null,null,null,null,null,null,null,null,null,null,null,null,"","","","",null,"","","",null,"","",null,null,"",null,"","","","",null,null,null,null,null,null,null,null,null,null,null,null,null,null,null,null,null,null,null,null,null,null,null,null,null,null,null,null,null,null,null,null,null,null,null,null,null,null,"","",null,"",null,null,null,null,null,null,null,null,null,null,null,null,null,null,null,"",null,"","",null,null,"",null,"",""]
[null,null,null,null,null,null,null,null,null,null,null,null,null,null,null,null,null,"","","","",null,"","","",null,"","",null,null,"",null,"","","","",null,null,null,null,null,null,null,null,null,null,null,null,null,null,null,null,null,null,null,null,null,null,null,null,null,null,null,null,null,null,null,null,null,null,null,null,null,null,"","",null,"",null,null,null,null,null,null,null,null,null,null,null,null,null,null,null,"",null,"","",null,null,"",null,"",""]
[null,null,null,null,null,null,null,null,null,null,null,null,null,null,null,null,null,"","","","",null,"","","",null,"","",null,null,"",null,"","","","",null,null,null,null,null,null,null,null,null,null,null,null,null,null,null,null,null,null,null,null,null,null,null,null,null,null,null,null,null,null,null,null,null,null,null,null,null,null,"","",null,"",null,null,null,null,null,null,null,null,null,null,null,null,null,null,null,"",null,"","",null,null,"",null,"",""]
[null,null,null,null,null,null,null,null,null,null,null,null,null,null,null,null,null,"","","","",null,"","","",null,"","",null,null,"",null,"","","","",null,null,null,null,null,null,null,null,null,null,null,null,null,null,null,null,null,null,null,null,null,null,null,null,null,null,null,null,null,null,null,null,null,null,null,null,null,null,"","",null,"",null,null,null,null,null,null,null,null,null,null,null,null,null,null,null,"",null,"","",null,null,"",null,"",""]
[null,null,null,null,null,null,null,null,null,null,null,null,null,null,null,null,null,"","","","",null,"","","",null,"","",null,null,"",null,"","","","",null,null,null,null,null,null,null,null,null,null,null,null,null,null,null,null,null,null,null,null,null,null,null,null,null,null,null,null,null,null,null,null,null,null,null,null,null,null,"","",null,"",null,null,null,null,null,null,null,null,null,null,null,null,null,null,null,"",null,"","",null,null,"",null,"",""]
[null,null,null,null,null,null,null,null,null,null,null,null,null,null,null,null,null,"","","","",null,"","","",null,"","",null,null,"",null,"","","","",null,null,null,null,null,null,null,null,null,null,null,null,null,null,null,null,null,null,null,null,null,null,null,null,null,null,null,null,null,null,null,null,null,null,null,null,null,null,"","",null,"",null,null,null,null,null,null,null,null,null,null,null,null,null,null,null,"",null,"","",null,null,"",null,"",""]
[null,null,null,null,null,null,null,null,null,null,null,null,null,null,null,null,null,"","","","",null,"","","",null,"","",null,null,"",null,"","","","",null,null,null,null,null,null,null,null,null,null,null,null,null,null,null,null,null,null,null,null,null,null,null,null,null,null,null,null,null,null,null,null,null,null,null,null,null,null,"","",null,"",null,null,null,null,null,null,null,null,null,null,null,null,null,null,null,"",null,"","",null,null,"",null,"",""]
[null,null,null,null,null,null,null,null,null,null,null,null,null,null,null,null,null,"","","","",null,"","","",null,"","",null,null,"",null,"","","","",null,null,null,null,null,null,null,null,null,null,null,null,null,null,null,null,null,null,null,null,null,null,null,null,null,null,null,null,null,null,null,null,null,null,null,null,null,null,"","",null,"",null,null,null,null,null,null,null,null,null,null,null,null,null,null,null,"",null,"","",null,null,"",null,"",""]
[null,null,null,null,null,null,null,null,null,null,null,null,null,null,null,null,null,"","","","",null,"","","",null,"","",null,null,"",null,"","","","",null,null,null,null,null,null,null,null,null,null,null,null,null,null,null,null,null,null,null,null,null,null,null,null,null,null,null,null,null,null,null,null,null,null,null,null,null,null,"","",null,"",null,null,null,null,null,null,null,null,null,null,null,null,null,null,null,"",null,"","",null,null,"",null,"",""]
[null,null,null,null,null,null,null,null,null,null,null,null,null,null,null,null,null,"","","","",null,"","","",null,"","",null,null,"",null,"","","","",null,null,null,null,null,null,null,null,null,null,null,null,null,null,null,null,null,null,null,null,null,null,null,null,null,null,null,null,null,null,null,null,null,null,null,null,null,null,"","",null,"",null,null,null,null,null,null,null,null,null,null,null,null,null,null,null,"",null,"","",null,null,"",null,"",""]
[null,null,null,null,null,null,null,null,null,null,null,null,null,null,null,null,null,"","","","",null,"","","",null,"","",null,null,"",null,"","","","",null,null,null,null,null,null,null,null,null,null,null,null,null,null,null,null,null,null,null,null,null,null,null,null,null,null,null,null,null,null,null,null,null,null,null,null,null,null,"","",null,"",null,null,null,null,null,null,null,null,null,null,null,null,null,null,null,"",null,"","",null,null,"",null,"",""]
[null,null,null,null,null,null,null,null,null,null,null,null,null,null,null,null,null,"","","","",null,"","","",null,"","",null,null,"",null,"","","","",null,null,null,null,null,null,null,null,null,null,null,null,null,null,null,null,null,null,null,null,null,null,null,null,null,null,null,null,null,null,null,null,null,null,null,null,null,null,"","",null,"",null,null,null,null,null,null,null,null,null,null,null,null,null,null,null,"",null,"","",null,null,"",null,"",""]
[null,null,null,null,null,null,null,null,null,null,null,null,null,null,null,null,null,"","","","",null,"","","",null,"","",null,null,"",null,"","","","",null,null,null,null,null,null,null,null,null,null,null,null,null,null,null,null,null,null,null,null,null,null,null,null,null,null,null,null,null,null,null,null,null,null,null,null,null,null,"","",null,"",null,null,null,null,null,null,null,null,null,null,null,null,null,null,null,"",null,"","",null,null,"",null,"",""]
[null,null,null,null,null,null,null,null,null,null,null,null,null,null,null,null,null,"","","","",null,"","","",null,"","",null,null,"",null,"","","","",null,null,null,null,null,null,null,null,null,null,null,null,null,null,null,null,null,null,null,null,null,null,null,null,null,null,null,null,null,null,null,null,null,null,null,null,null,null,"","",null,"",null,null,null,null,null,null,null,null,null,null,null,null,null,null,null,"",null,"","",null,null,"",null,"",""]
[null,null,null,null,null,null,null,null,null,null,null,null,null,null,null,null,null,"","","","",null,"","","",null,"","",null,null,"",null,"","","","",null,null,null,null,null,null,null,null,null,null,null,null,null,null,null,null,null,null,null,null,null,null,null,null,null,null,null,null,null,null,null,null,null,null,null,null,null,null,"","",null,"",null,null,null,null,null,null,null,null,null,null,null,null,null,null,null,"",null,"","",null,null,"",null,"",""]
[null,null,null,null,null,null,null,null,null,null,null,null,null,null,null,null,null,"","","","",null,"","","",null,"","",null,null,"",null,"","","","",null,null,null,null,null,null,null,null,null,null,null,null,null,null,null,null,null,null,null,null,null,null,null,null,null,null,null,null,null,null,null,null,null,null,null,null,null,null,"","",null,"",null,null,null,null,null,null,null,null,null,null,null,null,null,null,null,"",null,"","",null,null,"",null,"",""]
[null,null,null,null,null,null,null,null,null,null,null,null,null,null,null,null,null,"","","","",null,"","","",null,"","",null,null,"",null,"","","","",null,null,null,null,null,null,null,null,null,null,null,null,null,null,null,null,null,null,null,null,null,null,null,null,null,null,null,null,null,null,null,null,null,null,null,null,null,null,"","",null,"",null,null,null,null,null,null,null,null,null,null,null,null,null,null,null,"",null,"","",null,null,"",null,"",""]
[null,null,null,null,null,null,null,null,null,null,null,null,null,null,null,null,null,"","","","",null,"","","",null,"","",null,null,"",null,"","","","",null,null,null,null,null,null,null,null,null,null,null,null,null,null,null,null,null,null,null,null,null,null,null,null,null,null,null,null,null,null,null,null,null,null,null,null,null,null,"","",null,"",null,null,null,null,null,null,null,null,null,null,null,null,null,null,null,"",null,"","",null,null,"",null,"",""]
[null,null,null,null,null,null,null,null,null,null,null,null,null,null,null,null,null,"","","","",null,"","","",null,"","",null,null,"",null,"","","","",null,null,null,null,null,null,null,null,null,null,null,null,null,null,null,null,null,null,null,null,null,null,null,null,null,null,null,null,null,null,null,null,null,null,null,null,null,null,"","",null,"",null,null,null,null,null,null,null,null,null,null,null,null,null,null,null,"",null,"","",null,null,"",null,"",""]
[null,null,null,null,null,null,null,null,null,null,null,null,null,null,null,null,null,"","","","",null,"","","",null,"","",null,null,"",null,"","","","",null,null,null,null,null,null,null,null,null,null,null,null,null,null,null,null,null,null,null,null,null,null,null,null,null,null,null,null,null,null,null,null,null,null,null,null,null,null,"","",null,"",null,null,null,null,null,null,null,null,null,null,null,null,null,null,null,"",null,"","",null,null,"",null,"",""]
[null,null,null,null,null,null,null,null,null,null,null,null,null,null,null,null,null,"","","","",null,"","","",null,"","",null,null,"",null,"","","","",null,null,null,null,null,null,null,null,null,null,null,null,null,null,null,null,null,null,null,null,null,null,null,null,null,null,null,null,null,null,null,null,null,null,null,null,null,null,"","",null,"",null,null,null,null,null,null,null,null,null,null,null,null,null,null,null,"",null,"","",null,null,"",null,"",""]
[null,null,null,null,null,null,null,null,null,null,null,null,null,null,null,null,null,"","","","",null,"","","",null,"","",null,null,"",null,"","","","",null,null,null,null,null,null,null,null,null,null,null,null,null,null,null,null,null,null,null,null,null,null,null,null,null,null,null,null,null,null,null,null,null,null,null,null,null,null,"","",null,"",null,null,null,null,null,null,null,null,null,null,null,null,null,null,null,"",null,"","",null,null,"",null,"",""]
[null,null,null,null,null,null,null,null,null,null,null,null,null,null,null,null,null,"","","","",null,"","","",null,"","",null,null,"",null,"","","","",null,null,null,null,null,null,null,null,null,null,null,null,null,null,null,null,null,null,null,null,null,null,null,null,null,null,null,null,null,null,null,null,null,null,null,null,null,null,"","",null,"",null,null,null,null,null,null,null,null,null,null,null,null,null,null,null,"",null,"","",null,null,"",null,"",""]
[null,null,null,null,null,null,null,null,null,null,null,null,null,null,null,null,null,"","","","",null,"","","",null,"","",null,null,"",null,"","","","",null,null,null,null,null,null,null,null,null,null,null,null,null,null,null,null,null,null,null,null,null,null,null,null,null,null,null,null,null,null,null,null,null,null,null,null,null,null,"","",null,"",null,null,null,null,null,null,null,null,null,null,null,null,null,null,null,"",null,"","",null,null,"",null,"",""]
[null,null,null,null,null,null,null,null,null,null,null,null,null,null,null,null,null,"","","","",null,"","","",null,"","",null,null,"",null,"","","","",null,null,null,null,null,null,null,null,null,null,null,null,null,null,null,null,null,null,null,null,null,null,null,null,null,null,null,null,null,null,null,null,null,null,null,null,null,null,"","",null,"",null,null,null,null,null,null,null,null,null,null,null,null,null,null,null,"",null,"","",null,null,"",null,"",""]
[null,null,null,null,null,null,null,null,null,null,null,null,null,null,null,null,null,"","","","",null,"","","",null,"","",null,null,"",null,"","","","",null,null,null,null,null,null,null,null,null,null,null,null,null,null,null,null,null,null,null,null,null,null,null,null,null,null,null,null,null,null,null,null,null,null,null,null,null,null,"","",null,"",null,null,null,null,null,null,null,null,null,null,null,null,null,null,null,"",null,"","",null,null,"",null,"",""]
[null,null,null,null,null,null,null,null,null,null,null,null,null,null,null,null,null,"","","","",null,"","","",null,"","",null,null,"",null,"","","","",null,null,null,null,null,null,null,null,null,null,null,null,null,null,null,null,null,null,null,null,null,null,null,null,null,null,null,null,null,null,null,null,null,null,null,null,null,null,"","",null,"",null,null,null,null,null,null,null,null,null,null,null,null,null,null,null,"",null,"","",null,null,"",null,"",""]
[null,null,null,null,null,null,null,null,null,null,null,null,null,null,null,null,null,"","","","",null,"","","",null,"","",null,null,"",null,"","","","",null,null,null,null,null,null,null,null,null,null,null,null,null,null,null,null,null,null,null,null,null,null,null,null,null,null,null,null,null,null,null,null,null,null,null,null,null,null,"","",null,"",null,null,null,null,null,null,null,null,null,null,null,null,null,null,null,"",null,"","",null,null,"",null,"",""]
[null,null,null,null,null,null,null,null,null,null,null,null,null,null,null,null,null,"","","","",null,"","","",null,"","",null,null,"",null,"","","","",null,null,null,null,null,null,null,null,null,null,null,null,null,null,null,null,null,null,null,null,null,null,null,null,null,null,null,null,null,null,null,null,null,null,null,null,null,null,"","",null,"",null,null,null,null,null,null,null,null,null,null,null,null,null,null,null,"",null,"","",null,null,"",null,"",""]
[null,null,null,null,null,null,null,null,null,null,null,null,null,null,null,null,null,"","","","",null,"","","",null,"","",null,null,"",null,"","","","",null,null,null,null,null,null,null,null,null,null,null,null,null,null,null,null,null,null,null,null,null,null,null,null,null,null,null,null,null,null,null,null,null,null,null,null,null,null,"","",null,"",null,null,null,null,null,null,null,null,null,null,null,null,null,null,null,"",null,"","",null,null,"",null,"",""]
[null,null,null,null,null,null,null,null,null,null,null,null,null,null,null,null,null,"","","","",null,"","","",null,"","",null,null,"",null,"","","","",null,null,null,null,null,null,null,null,null,null,null,null,null,null,null,null,null,null,null,null,null,null,null,null,null,null,null,null,null,null,null,null,null,null,null,null,null,null,"","",null,"",null,null,null,null,null,null,null,null,null,null,null,null,null,null,null,"",null,"","",null,null,"",null,"",""]
[null,null,null,null,null,null,null,null,null,null,null,null,null,null,null,null,null,"","","","",null,"","","",null,"","",null,null,"",null,"","","","",null,null,null,null,null,null,null,null,null,null,null,null,null,null,null,null,null,null,null,null,null,null,null,null,null,null,null,null,null,null,null,null,null,null,null,null,null,null,"","",null,"",null,null,null,null,null,null,null,null,null,null,null,null,null,null,null,"",null,"","",null,null,"",null,"",""]
[null,null,null,null,null,null,null,null,null,null,null,null,null,null,null,null,null,"","","","",null,"","","",null,"","",null,null,"",null,"","","","",null,null,null,null,null,null,null,null,null,null,null,null,null,null,null,null,null,null,null,null,null,null,null,null,null,null,null,null,null,null,null,null,null,null,null,null,null,null,"","",null,"",null,null,null,null,null,null,null,null,null,null,null,null,null,null,null,"",null,"","",null,null,"",null,"",""]
[null,null,null,null,null,null,null,null,null,null,null,null,null,null,null,null,null,"","","","",null,"","","",null,"","",null,null,"",null,"","","","",null,null,null,null,null,null,null,null,null,null,null,null,null,null,null,null,null,null,null,null,null,null,null,null,null,null,null,null,null,null,null,null,null,null,null,null,null,null,"","",null,"",null,null,null,null,null,null,null,null,null,null,null,null,null,null,null,"",null,"","",null,null,"",null,"",""]
[null,null,null,null,null,null,null,null,null,null,null,null,null,null,null,null,null,"","","","",null,"","","",null,"","",null,null,"",null,"","","","",null,null,null,null,null,null,null,null,null,null,null,null,null,null,null,null,null,null,null,null,null,null,null,null,null,null,null,null,null,null,null,null,null,null,null,null,null,null,"","",null,"",null,null,null,null,null,null,null,null,null,null,null,null,null,null,null,"",null,"","",null,null,"",null,"",""]
[null,null,null,null,null,null,null,null,null,null,null,null,null,null,null,null,null,"","","","",null,"","","",null,"","",null,null,"",null,"","","","",null,null,null,null,null,null,null,null,null,null,null,null,null,null,null,null,null,null,null,null,null,null,null,null,null,null,null,null,null,null,null,null,null,null,null,null,null,null,"","",null,"",null,null,null,null,null,null,null,null,null,null,null,null,null,null,null,"",null,"","",null,null,"",null,"",""]
[null,null,null,null,null,null,null,null,null,null,null,null,null,null,null,null,null,"","","","",null,"","","",null,"","",null,null,"",null,"","","","",null,null,null,null,null,null,null,null,null,null,null,null,null,null,null,null,null,null,null,null,null,null,null,null,null,null,null,null,null,null,null,null,null,null,null,null,null,null,"","",null,"",null,null,null,null,null,null,null,null,null,null,null,null,null,null,null,"",null,"","",null,null,"",null,"",""]
[null,null,null,null,null,null,null,null,null,null,null,null,null,null,null,null,null,"","","","",null,"","","",null,"","",null,null,"",null,"","","","",null,null,null,null,null,null,null,null,null,null,null,null,null,null,null,null,null,null,null,null,null,null,null,null,null,null,null,null,null,null,null,null,null,null,null,null,null,null,"","",null,"",null,null,null,null,null,null,null,null,null,null,null,null,null,null,null,"",null,"","",null,null,"",null,"",""]
[null,null,null,null,null,null,null,null,null,null,null,null,null,null,null,null,null,"","","","",null,"","","",null,"","",null,null,"",null,"","","","",null,null,null,null,null,null,null,null,null,null,null,null,null,null,null,null,null,null,null,null,null,null,null,null,null,null,null,null,null,null,null,null,null,null,null,null,null,null,"","",null,"",null,null,null,null,null,null,null,null,null,null,null,null,null,null,null,"",null,"","",null,null,"",null,"",""]
[null,null,null,null,null,null,null,null,null,null,null,null,null,null,null,null,null,"","","","",null,"","","",null,"","",null,null,"",null,"","","","",null,null,null,null,null,null,null,null,null,null,null,null,null,null,null,null,null,null,null,null,null,null,null,null,null,null,null,null,null,null,null,null,null,null,null,null,null,null,"","",null,"",null,null,null,null,null,null,null,null,null,null,null,null,null,null,null,"",null,"","",null,null,"",null,"",""]
[null,null,null,null,null,null,null,null,null,null,null,null,null,null,null,null,null,"","","","",null,"","","",null,"","",null,null,"",null,"","","","",null,null,null,null,null,null,null,null,null,null,null,null,null,null,null,null,null,null,null,null,null,null,null,null,null,null,null,null,null,null,null,null,null,null,null,null,null,null,"","",null,"",null,null,null,null,null,null,null,null,null,null,null,null,null,null,null,"",null,"","",null,null,"",null,"",""]
[null,null,null,null,null,null,null,null,null,null,null,null,null,null,null,null,null,"","","","",null,"","","",null,"","",null,null,"",null,"","","","",null,null,null,null,null,null,null,null,null,null,null,null,null,null,null,null,null,null,null,null,null,null,null,null,null,null,null,null,null,null,null,null,null,null,null,null,null,null,"","",null,"",null,null,null,null,null,null,null,null,null,null,null,null,null,null,null,"",null,"","",null,null,"",null,"",""]
[null,null,null,null,null,null,null,null,null,null,null,null,null,null,null,null,null,"","","","",null,"","","",null,"","",null,null,"",null,"","","","",null,null,null,null,null,null,null,null,null,null,null,null,null,null,null,null,null,null,null,null,null,null,null,null,null,null,null,null,null,null,null,null,null,null,null,null,null,null,"","",null,"",null,null,null,null,null,null,null,null,null,null,null,null,null,null,null,"",null,"","",null,null,"",null,"",""]
[null,null,null,null,null,null,null,null,null,null,null,null,null,null,null,null,null,"","","","",null,"","","",null,"","",null,null,"",null,"","","","",null,null,null,null,null,null,null,null,null,null,null,null,null,null,null,null,null,null,null,null,null,null,null,null,null,null,null,null,null,null,null,null,null,null,null,null,null,null,"","",null,"",null,null,null,null,null,null,null,null,null,null,null,null,null,null,null,"",null,"","",null,null,"",null,"",""]
[null,null,null,null,null,null,null,null,null,null,null,null,null,null,null,null,null,"","","","",null,"","","",null,"","",null,null,"",null,"","","","",null,null,null,null,null,null,null,null,null,null,null,null,null,null,null,null,null,null,null,null,null,null,null,null,null,null,null,null,null,null,null,null,null,null,null,null,null,null,"","",null,"",null,null,null,null,null,null,null,null,null,null,null,null,null,null,null,"",null,"","",null,null,"",null,"",""]
[null,null,null,null,null,null,null,null,null,null,null,null,null,null,null,null,null,"","","","",null,"","","",null,"","",null,null,"",null,"","","","",null,null,null,null,null,null,null,null,null,null,null,null,null,null,null,null,null,null,null,null,null,null,null,null,null,null,null,null,null,null,null,null,null,null,null,null,null,null,"","",null,"",null,null,null,null,null,null,null,null,null,null,null,null,null,null,null,"",null,"","",null,null,"",null,"",""]
[null,null,null,null,null,null,null,null,null,null,null,null,null,null,null,null,null,"","","","",null,"","","",null,"","",null,null,"",null,"","","","",null,null,null,null,null,null,null,null,null,null,null,null,null,null,null,null,null,null,null,null,null,null,null,null,null,null,null,null,null,null,null,null,null,null,null,null,null,null,"","",null,"",null,null,null,null,null,null,null,null,null,null,null,null,null,null,null,"",null,"","",null,null,"",null,"",""]

{"sheet":"C323","index":5,"n_rows":121,"n_cols":23,"rows_kept":121,"cut":false,"hidden":false,"merged":[[17,6,18,6],[17,8,18,8],[17,9,17,11],[1,8,1,16],[2,8,2,16],[17,12,18,12],[17,13,18,13],[17,7,18,7],[16,9,16,11],[6,5,6,18]]}
[]
[null,null,null,null,null,null,null,null,"CENSO EDUCATIVO 2025"]
[null,null,null,null,null,null,null,null,"MATRÍCULA, DOCENTES Y MATERIALES EDUCATIVOS"]
[]
[]
[]
[null,null,null,null,null,"DOCENTES QUE DOMINAN LENGUA ORIGINARIA  (Solo para II.EE. Públicas)"]
[]
[null,null,null,null,null,null,"DOCENTES QUE DOMINAN LENGUA ORIGINARIA - SÓLO PARA SS.EE. PÚBLICOS"]
["GESTIÓN",null,null,null,null,"323. SEGÚN LO ANOTADO EN LA PREGUNTA 307 ¿CUENTA CON DOCENTE(s) QUE DOMINE(N) UNA LENGUA ORIGINARIA?"]
[{"$f":"IF(OR(UPPER('C100'!K31)=\"X\",UPPER('C100'!Q31)=\"X\"),\"X\",IF(UPPER('C100'!Y31)=\"X\",\"\",\"\"))","v":""}]
[{"$f":"IF(OR(UPPER('C100'!K31)=\"X\",UPPER('C100'!Q31)=\"X\"),1,IF(UPPER('C100'!Y31)=\"X\",3,\"\"))","v":""},null,null,null,null,null,null,"  Sí","¿Cuántos?",null,null,null,null,"Para revisar los docentes que dominan una lengua originaria"]
[]
[null,null,null,null,null,null,"","  No",null,"Pase a la sección 324.",null,null,null,"hacer click en el botón [Verificar]"]
[]
[]
[null,null,null,null,null,null,null,null,null,"323.1",null,null,"323.2","323.3","323.4","323.5","323.6","323.7"]
["323.3 ¿Cuál fue el tipo de estudios en EIB?",null,null,null,null,null,"Nº","Nº de fila registrado en la Sección 300, pregunta 307","Documento de Identidad","¿Qué nivel de conocimiento tiene respecto a la lengua originaria que domina?",null,null,"¿Cuenta con estudios en Educación Intercultural Bilingüe?","Solo si respondió SÍ en la pregunta 323.2. ¿Cuál fue el tipo de estudios en EIB?","¿Ha recibido capacita- ción en EIB?","¿El docente enseña en lengua originaria?","¿El material recibido coincide con la lengua que enseña?","¿En la actualidad el Docente se encuentra en el Registro de Docentes Bilingües?"]
[null,"Corr","Gest","Fmt",null,null,null,null,null,"Habla","Lee","Escribe",null,null," SI - NO"," SI - NO"," SI - NO","SI - NO"]
["01: Doctorado",1,{"$f":"$A$12","v":""},{"$f":"IF(G20<>\"\",1,0)","v":0},null,null,{"$f":"IF(AND($B20<=$L$12,$C20=1),$B20,\"\")","v":""},null,"","","","","","","","","","","",""]
["02: Maestría",{"$f":"B20+1","v":2},{"$f":"$A$12","v":""},0,null,null,{"$f":"IF(AND($B21<=$L$12,$C21=1),$B21,\"\")","v":""},null,"","","","","","","","","","","",""]
["03: Segunda especialidad",{"$f":"B21+1","v":3},"",0,null,null,{"$f":"IF(AND($B22<=$L$12,$C22=1),$B22,\"\")","v":""},null,"","","","","","","","","","","",""]
["04: Especialización",4,"",0,null,null,"",null,"","","","","","","","","","","",""]
["05: Actualización",5,"",0,null,null,"",null,"","","","","","","","","","","",""]
["06: Otro",6,"",0,null,null,"",null,"","","","","","","","","","","","","","",""]
[null,7,"",0,null,null,"",null,"","","","","","","","","","","","","","",""]
[null,8,"",0,null,null,"",null,"","","","","","","","","","","","","","",""]
["SI",9,"",0,null,null,"",null,"","","","","","","","","","","","","","",""]
["NO",10,"",0,null,null,"",null,"","","","","","","","","","","","","","",""]
[null,11,"",0,null,null,"",null,"","","","","","","","","","","","","","",""]
[null,12,"",0,null,null,"",null,"","","","","","","","","","","","","","",""]
[null,13,"",0,null,null,"",null,"","","","","","","","","","","","","","",""]
[null,14,"",0,null,null,"",null,"","","","","","","","","","","","","","",""]
[null,15,"",0,null,null,"",null,"","","","","","","","","","","","","","",""]
[null,16,"",0,null,null,"",null,"","","","","","","","","","","","","","",""]
[null,17,"",0,null,null,"",null,"","","","","","","","","","","","","","",""]
[null,18,"",0,null,null,"",null,"","","","","","","","","","","","","","",""]
[null,19,"",0,null,null,"",null,"","","","","","","","","","","","","","",""]
[null,20,"",0,null,null,"",null,"","","","","","","","","","","","","","",""]
[null,21,"",0,null,null,"",null,"","","","","","","","","","","","","","",""]
[null,22,"",0,null,null,"",null,"","","","","","","","","","","","","","",""]
[null,23,"",0,null,null,"",null,"","","","","","","","","","","","","","",""]
[null,24,"",0,null,null,"",null,"","","","","","","","","","","","","","",""]
[null,25,"",0,null,null,"",null,"","","","","","","","","","","","","","",""]
[null,26,"",0,null,null,"",null,"","","","","","","","","","","","","","",""]
[null,27,"",0,null,null,"",null,"","","","","","","","","","","","","","",""]
[null,28,"",0,null,null,"",null,"","","","","","","","","","","","","","",""]
[null,29,"",0,null,null,"",null,"","","","","","","","","","","","","","",""]
[null,30,"",0,null,null,"",null,"","","","","","","","","","","","","","",""]
[null,31,"",0,null,null,"",null,"","","","","","","","","","","","","","",""]
[null,32,"",0,null,null,"",null,"","","","","","","","","","","","","","",""]
[null,33,"",{"$f":"IF(G52<>\"\",1,0)","v":0},null,null,"",null,"","","","","","","","","","","","","","",""]
[null,34,"",0,null,null,"",null,"","","","","","","","","","","","","","",""]
[null,35,"",0,null,null,"",null,"","","","","","","","","","","","","","",""]
[null,36,"",0,null,null,"",null,"","","","","","","","","","","","","","",""]
[null,37,"",0,null,null,"",null,"","","","","","","","","","","","","","",""]
[null,38,"",0,null,null,"",null,"","","","","","","","","","","","","","",""]
[null,39,"",0,null,null,"",null,"","","","","","","","","","","","","","",""]
[null,40,"",0,null,null,"",null,"","","","","","","","","","","","","","",""]
[null,41,"",0,null,null,"",null,"","","","","","","","","","","","","","",""]
[null,42,"",0,null,null,"",null,"","","","","","","","","","","","","","",""]
[null,43,"",0,null,null,"",null,"","","","","","","","","","","","","","",""]
[null,44,"",0,null,null,"",null,"","","","","","","","","","","","","","",""]
[null,45,"",0,null,null,"",null,"","","","","","","","","","","","","","",""]
[null,46,"",0,null,null,"",null,"","","","","","","","","","","","","","",""]
[null,47,"",0,null,null,"",null,"","","","","","","","","","","","","","",""]
[null,48,"",0,null,null,"",null,"","","","","","","","","","","","","","",""]
[null,49,"",0,null,null,"",null,"","","","","","","","","","","","","","",""]
[null,50,"",0,null,null,"",null,"","","","","","","","","","","","","","",""]
[null,51,"",0,null,null,"",null,"","","","","","","","","","","","","","",""]
[null,52,"",0,null,null,"",null,"","","","","","","","","","","","","","",""]
[null,53,"",0,null,null,"",null,"","","","","","","","","","","","","","",""]
[null,54,"",0,null,null,"",null,"","","","","","","","","","","","","","",""]
[null,55,"",0,null,null,"",null,"","","","","","","","","","","","","","",""]
[null,56,"",0,null,null,"",null,"","","","","","","","","","","","","","",""]
[null,57,"",0,null,null,"",null,"","","","","","","","","","","","","","",""]
[null,58,"",0,null,null,"",null,"","","","","","","","","","","","","","",""]
[null,59,"",0,null,null,"",null,"","","","","","","","","","","","","","",""]
[null,60,"",0,null,null,"",null,"","","","","","","","","","","","","","",""]
[null,61,"",0,null,null,"",null,"","","","","","","","","","","","","","",""]
[null,62,"",0,null,null,"",null,"","","","","","","","","","","","","","",""]
[null,63,"",0,null,null,"",null,"","","","","","","","","","","","","","",""]
[null,64,"",0,null,null,"",null,"","","","","","","","","","","","","","",""]
[null,65,"",{"$f":"IF(G84<>\"\",1,0)","v":0},null,null,"",null,"","","","","","","","","","","","","","",""]
[null,66,{"$f":"$A$12","v":""},0,null,null,"",null,"","","","","","","","","","","","","","",""]
[null,{"$f":"B85+1","v":67},"",0,null,null,{"$f":"IF(AND($B86<=$L$12,$C86=1),$B86,\"\")","v":""},null,"","","","","","","","","","","","","","",""]
[null,68,"",0,null,null,"",null,"","","","","","","","","","","","","","",""]
[null,69,"",0,null,null,"",null,"","","","","","","","","","","","","","",""]
[null,70,"",0,null,null,"",null,"","","","","","","","","","","","","","",""]
[null,71,"",0,null,null,"",null,"","","","","","","","","","","","","","",""]
[null,72,"",0,null,null,"",null,"","","","","","","","","","","","","","",""]
[null,73,"",0,null,null,"",null,"","","","","","","","","","","","","","",""]
[null,74,"",0,null,null,"",null,"","","","","","","","","","","","","","",""]
[null,75,"",0,null,null,"",null,"","","","","","","","","","","","","","",""]
[null,76,"",0,null,null,"",null,"","","","","","","","","","","","","","",""]
[null,77,"",0,null,null,"",null,"","","","","","","","","","","","","","",""]
[null,78,"",0,null,null,"",null,"","","","","","","","","","","","","","",""]
[null,79,"",0,null,null,"",null,"","","","","","","","","","","","","","",""]
[null,80,"",0,null,null,"",null,"","","","","","","","","","","","","","",""]
[null,81,"",0,null,null,"",null,"","","","","","","","","","","","","","",""]
[null,82,"",0,null,null,"",null,"","","","","","","","","","","","","","",""]
[null,83,"",0,null,null,"",null,"","","","","","","","","","","","","","",""]
[null,84,"",0,null,null,"",null,"","","","","","","","","","","","","","",""]
[null,85,"",0,null,null,"",null,"","","","","","","","","","","","","","",""]
[null,86,"",0,null,null,"",null,"","","","","","","","","",""]
[null,87,"",0,null,null,"",null,"","","","","","","","","",""]
[null,88,"",0,null,null,"",null,"","","","","","","","","",""]
[null,89,"",0,null,null,"",null,"","","","","","","","","",""]
[null,90,"",0,null,null,"",null,"","","","","","","","","",""]
[null,91,"",0,null,null,"",null,"","","","","","","","","",""]
[null,92,"",0,null,null,"",null,"","","","","","","","","",""]
[null,93,"",0,null,null,"",null,"","","","","","","","","",""]
[null,94,"",0,null,null,"",null,"","","","","","","","","",""]
[null,95,"",0,null,null,"",null,"","","","","","","","","",""]
[null,96,"",0,null,null,"",null,"","","","","","","","","",""]
[null,97,"",0,null,null,"",null,"","","","","","","","","",""]
[null,98,"",0,null,null,"",null,"","","","","","","","","",""]
[null,99,"",0,null,null,"",null,"","","","","","","","","",""]
[null,100,"",0,null,null,"",null,"","","","","","","","","","","","","","",""]
[]
[null,null,null,null,null,null,"-----"]

{"sheet":"C400","index":6,"n_rows":97,"n_cols":31,"rows_kept":97,"cut":false,"hidden":false,"merged":[[32,12,32,16],[1,5,1,15],[2,5,2,15],[35,2,35,18],[49,3,50,4],[47,12,48,12],[47,13,47,17],[47,18,48,18],[46,12,46,17],[46,18,46,23],[46,3,46,4],[46,5,46,7],[46,9,47,9],[46,10,47,10],[46,11,47,11],[46,24,46,29],[94,12,94,15],[81,4,83,5],[47,19,47,23],[47,24,48,24],[47,25,47,29],[51,3,53,4],[54,3,57,4],[77,12,77,15],[81,7,82,8]]}
[]
[null,null,null,null,null,"CENSO EDUCATIVO 2025"]
[null,null,null,null,null,"MATRÍCULA, DOCENTES Y MATERIALES EDUCATIVOS"]
[]
[]
[]
[null,null,null,"ARTE Y CULTURA"]
[null,null,null,"324. EN ESTE SERVICIO/NIVEL EDUCATIVO, ¿SE DESARROLLAN LAS COMPETENCIAS",null,null,null,null,null,null,"325. ¿EL SERVICIO/NIVEL EDUCATIVO CUENTA CON PROFESOR DE BANDA?"]
[null,null,null,"DE ARTE Y CULTURA?"]
[null,null,null,null,null,null,null,null,null,null,null,null,null,"Sí  ","",null,"No  "]
[null,null,null,"Sí  ",null,null,"No  "]
[]
[]
[null,null,null,"¿Cuántos docentes están asignados"]
[null,null,null,"al dictado de la asignatura?"]
[]
[]
[null,null,null,"¿El desarrollo de las competencias en",null,null,"Sí  "]
[null,null,null,"Arte y Cultura se realizan dentro del"]
[null,null,null,"horario regular?",null,null,"No  "]
[]
[]
[null,null,null,"ÁREA DE PSICOLOGÍA"]
[null,null,"326 EN EL PRESENTE AÑO, ¿SE CUENTA CON ALGÚN PROFESIONAL DE PSICOLOGÍA",null,null,null,null,null,null,null,"  327. ¿A TRAVÉS DE QUÉ MECANISMO SE INCORPORÓ AL PROFESIONAL DE PSICOLOGÍA"]
[null,null,null,"INCORPORADO AL SERVICIO/NIVEL EDUCATIVO?",null,null,null,null,null,null,"EN ESTE SERVICIO/NIVEL EDUCATIVO?"]
[null,null,null,null,null,null,null,null,null,null,"Marque con una “X”, una opcion"]
[]
[null,null,null,null,null,null,null,null,null,null,"Contratación a través de UGEL (alguna intervención o estrategia)"]
[null,null,null,"Sí  ",null,null,null,null,null,null,"Contratación a través de UGEL (identificación de necesidad)"]
[null,null,null,null,null,null,null,null,null,null,"Prácticas profesionales"]
[null,null,null,null,null,null,null,null,null,null,"Servicio Rural y Urbano Marginal de Salud (Serums)"]
[null,null,null,"No  ",null,null,"Pase a la SECCIÓN 400",null,null,null,"Pasantias"]
[null,null,null,null,null,null,null,null,null,null,"Otros"]
[]
[]
["",null,"400. MATERIALES EDUCATIVOS"]
[""]
["GESTIÓN",null,null,"SOLO PARA GESTIÓN PÚBLICA"]
[{"$f":"IF(OR(UPPER('C100'!K31)=\"X\",UPPER('C100'!Q31)=\"X\"),\"X\",IF(UPPER('C100'!Y31)=\"X\",\"\",\"\"))","v":""},null,"401. ¿DURANTE LOS ÚLTIMOS MESES DEL AÑO 2024 O INICIOS DEL AÑO 2025, EL SERVICIO/NIVEL EDUCATIVO RECIBIÓ LA DOTACIÓN DE MATERIALES EDUCATIVOS 2025,"]
[null,null,null,"PROVISTOS POR EL MINISTERIO DE EDUCACIÓN PARA SU USO EN EL PRESENTE AÑO ESCOLAR?"]
[]
[null,null,null," Sí  ",null,"No    ",null,null,"Pase a la pregunta 404"]
[]
[]
[null,null,"402. DETALLE DE CUADERNOS DE TRABAJO Y FICHAS CORRESPONDIENTES A LA DOTACIÓN 2025 POR GRADO DE ESTUDIO"]
[]
[null,null,null,"BENEFICIARIO",null,"MATERIAL EDUCATIVO",null,null,null,"¿Recibió los materiales?","Primera Fecha de Recepción","Última Fecha de Recepción","CANTIDAD DE MATERIAL RECIBIDO",null,null,null,null,null,"CANTIDAD DE MATERIAL SOBRANTE",null,null,null,null,null,"CANTIDAD DE MATERIAL FALTANTE"]
[null,null,null,null,null,null,null,null,{"$f":"COUNTIF(J50:J58,\"NO\")","v":0},null,null,null,"TOTAL RECIBIDO","GRADO DE ESTUDIO",null,null,null,null,"TOTAL SOBRANTE","GRADO DE ESTUDIO",null,null,null,null,"TOTAL FALTANTE","GRADO DE ESTUDIO"]
[null,null,null,null,null,null,null,null,{"$f":"COUNTIF(J50:J58,\"SI\")+COUNTIF(J50:J58,\"NO\")","v":0}," SI - NO","DD/MM/AAAA","DD/MM/AAAA",null,"1º","2º","3º","4º","5º",null,"1º","2º","3º","4º","5º",null,"1º","2º","3º","4º","5º"]
["01",null,{"$f":"COUNTIF(J50:J58,\"NO\")","v":0},"ESTUDIANTES",null,"Fichas de aprendizaje de Comunicación",null,null,null,null,null,null,{"$f":"SUM(N50:R50)","v":0},null,null,null,null,null,{"$f":"SUM(T50:X50)","v":0},null,null,null,null,null,{"$f":"SUM(Z50:AD50)","v":0},null,null,null,null,null,"01"]
["02",null,null,null,null,"Fichas de aprendizaje de Matemática",null,null,null,null,null,null,{"$f":"SUM(N51:R51)","v":0},null,null,null,null,null,{"$f":"SUM(T51:X51)","v":0},null,null,null,null,null,{"$f":"SUM(Z51:AD51)","v":0},null,null,null,null,null,"02"]
["03",null,null,"ESTUDIANTES EIB",null,"Textos de Comunicación en lengua originaria",null,null,null,null,null,null,0,null,null,null,null,null,0,null,null,null,null,null,0,null,null,null,null,null,"03"]
["04",null,null,null,null,"Cuadernos de trabajo",null,null,null,null,null,null,0,null,null,null,null,null,0,null,null,null,null,null,0]
["05",null,null,null,null,"Material impreso de biblioteca de aula en lenguas originarias",null,null,null,null,null,null,0,null,null,null,null,null,0,null,null,null,null,null,0,null,null,null,null,null,"04"]
["06",null,null,"ESTUDIANTE DE SECUNDARIA EN ÁMBITO RURAL (MSE)",null,"Cuaderno de trabajo un tiempo para mi tutoría",null,null,null,null,null,null,0,null,null,null,null,null,0,null,null,null,null,null,0,null,null,null,null,null,"05"]
["07",null,null,null,null,"El encanto de las palabras - cuaderno de nivelación de Com.",null,null,null,null,null,null,0,null,null,null,null,null,0,null,null,null,null,null,0,null,null,null,null,null,"06"]
["08",null,null,null,null,"Mi desafío matemático - cuaderno de nivelación de Matemática",null,null,null,null,null,null,0,null,null,null,null,null,0,null,null,null,null,null,0,null,null,null,null,null,"07"]
["09",null,null,null,null,"Cuaderno de relación para secundaria en alternancia",null,null,null,null,null,null,0,null,null,null,null,null,0,null,null,null,null,null,0,null,null,null,null,null,"10"]
[null,null,null,null,null,null,null,null,null,null,null,null,{"$f":"SUM(M50:M58)","v":0},null,null,null,null,null,{"$f":"SUM(S50:S58)","v":0},null,null,null,null,null,{"$f":"SUM(Y50:Y58)","v":0}]
[]
[null,null,null,"SOLO PARA IIEE EIB(Educación Intercultural Bilingüe)"]
[null,null,"403. ¿EL MATERIAL EDUCATIVO RECIBIDO CORRESPONDIÓ A LA LENGUA DE LOS ESTUDIANTES DE ESTE SERVICIO/NIVEL EDUCATIVO?"]
[]
[null,null,null," Sí  ",null,"No    "]
[]
[]
[null,null,null,"PARA GESTIÓN PÚBLICA Y PRIVADA"]
[null,null,"404. ¿ESTE SERVICIO/NIVEL EDUCATIVO CUENTA CON BIBLIOTECA?",null,null,null,null,null,null,null,"406. ¿QUIÉN ES LA PERSONA RESPONSABLE DE LA BIBLIOTECA?"]
[null,null,null,null,null,null,null,null,null,null,null,"Marque con una \"X\", una opción"]
[null,null,null," Sí  ",null,"No    ",""," u  Pase a la sección 500"]
[null,null,null,null,null,null,null,null,null,null,null,"El bibliotecario/a "]
[null,null,null,null,null,null,null,null,null,null,null,"El director "]
[null,null,"405. LA BIBLIOTECA, ¿CUENTA CON LIBROS DE DIVERSAS TEMÁTICAS RELACIONADAS",null,null,null,null,null,null,null,null,"Un docente "]
[null,null,null,"A LAS ÁREAS CURRICULARES?",null,null,null,null,null,null,null,"Auxiliar de educación"]
[null,null,null,null,null,null,null,null,null,null,null,"Personal de limpieza"]
[null,null,null," Sí  ",null,"No    ",null,null,null,null,null,"Personal de servicio"]
[null,null,null,null,null,null,null,null,null,null,null,"Auxiliar de biblioteca"]
[null,null,null,null,null,null,null,null,null,null,null,"Otros"]
[null,null,null,"Segun su inventario anote la cantidad de libros, de las"]
[null,null,null,"diversas temáticas, que tiene en su biblioteca"]
[]
[null,null,null,null,"Área Curricular",null,null,"¿Cuenta con libros de diversas temáticas?",null,null,"407. SEÑOR(A) DIRECTOR(A), ¿CONSIDERA USTED QUE LA BIBLIOTECA DE SU"]
[null,null,null,null,null,null,null,null,null,null,"SERVICIO/NIVEL EDUCATIVO CUENTA CON MATERIAL EDUCATIVO QUE ABORDA"]
[null,null,null,null,null,null,{"$f":"COUNTIF(H85:H97,\"SI\")+COUNTIF(H85:H97,\"NO\")","v":0},"SI-NO","Cantidad",null,"LA HISTORIA, SABERES, APORTES Y PRÁCTICAS DEL PUEBLO AFROPERUANO?"]
["01",null,null,"Matemática"]
["02",null,null,"Comunicación",null,null,null,null,null,null,null," Sí  ","",null,null,"No    "]
["03",null,null,"Ingles como lengua extranjera"]
["04",null,null,"Arte y cultura"]
["05",null,null,"Ciencias Sociales",null,null,null,null,null,null,null," Los materiales educativos son:"]
["06",null,null,"Desarrollo personal, ciudadanía y cívica",null,null,null,null,null,null,null,"Marque con una “X”, una o más opciones"]
["07",null,null,"Educación Física"]
["08",null,null,"Ciencia y Tecnología",null,null,null,null,null,null,null,"Del Ministerio de Educación",null,null,null,null,""]
["09",null,null,"Castellano como segunda lengua",null,null,null,null,null,null,null,"Del Ministerio de Cultura",null,null,null,null,""]
["10",null,null,"Educación para el trabajo",null,null,null,null,null,null,null,"De Organización no gubernamental",null,null,null,null,""]
["11",null,null,"Educación Religiosa",null,null,null,null,null,null,null,"Otros","",null,null,null,""]
["12",null,null,"Tutoría y Orientación Educativa"]
["13",null,null,"Otras áreas curriculares"]

{"sheet":"C500","index":7,"n_rows":82,"n_cols":21,"rows_kept":82,"cut":false,"hidden":false,"merged":[[70,16,70,20],[5,1,5,22],[55,7,55,8],[58,1,58,22],[49,9,49,10],[50,9,50,10],[51,9,51,10],[52,9,52,10],[53,9,53,10],[49,7,49,8],[50,7,50,8],[51,7,51,8],[52,7,52,8],[53,7,53,8],[55,16,55,20],[46,9,48,10],[46,7,48,8],[46,4,48,6],[37,11,37,13],[37,14,37,15],[37,16,37,18],[38,11,38,13],[38,14,38,15],[38,16,38,18],[33,11,33,13],[33,14,33,15],[33,16,33,18],[36,11,36,13],[36,14,36,15],[34,11,34,13],[34,14,34,15],[34,16,34,18],[35,11,35,13],[35,14,35,15],[35,16,35,18],[36,16,36,18],[25,11,25,13],[25,14,25,15],[25,16,25,18],[31,11,31,13],[31,14,31,15],[31,16,31,18],[26,11,26,13],[26,14,26,15],[30,11,30,13],[30,14,30,15],[30,16,30,18],[29,11,29,13],[29,14,29,15],[29,16,29,18],[26,16,26,18],[28,11,28,13],[28,14,28,15],[28,16,28,18],[32,11,32,13],[32,14,32,15],[32,16,32,18],[9,16,11,18],[14,16,14,18],[15,16,15,18],[24,11,24,13],[24,14,24,15],[24,16,24,18],[23,11,23,13],[23,14,23,15],[23,16,23,18],[14,14,14,15],[15,11,15,13],[19,11,19,13],[20,11,20,13],[18,14,18,15],[17,14,17,15],[16,14,16,15],[12,16,12,18],[13,16,13,18],[13,14,13,15],[12,14,12,15],[12,11,12,13],[13,11,13,13],[14,11,14,13],[21,11,21,13],[22,14,22,15],[9,4,11,9],[9,11,11,13],[9,14,11,15],[18,11,18,13],[22,16,22,18],[22,11,22,13],[21,16,21,18],[15,14,15,15],[16,16,16,18],[17,16,17,18],[19,14,19,15],[20,14,20,15],[19,16,19,18],[20,16,20,18],[18,16,18,18],[21,14,21,15],[16,11,16,13],[17,11,17,13]]}
[null,null,null,null,null,"CENSO EDUCATIVO 2025"]
["Si",null,null,null,null,"MATRÍCULA, DOCENTES Y MATERIALES EDUCATIVOS"]
["No"]
[]
[]
[null,"500. OTROS RECURSOS DISPONIBLES PARA LA ENSEÑANZA"]
[]
[null,null,"501. EQUIPOS Y SERVICIOS QUE DISPONE EL SERVICIO/NIVEL EDUCATIVO - Para II.EE. Públicas y Privadas"]
[]
[null,null,null,null,"EQUIPOS Y SERVICIOS",null,null,null,null,null,null,"¿Cuántos tiene?",null,null,"¿Cuántos estan operativos?",null,"¿Son utilizados para la enseñanza en interacción con los estudiantes?\nSí - No"]
[null,null,null,null,null,null,null,null,null,null," SI - NO"]
[null,null,null,null,null,null,null,null,null,null,{"$f":"COUNTIF(K13:K39,\"SI\")+COUNTIF(K13:K39,\"NO\")","v":0}]
[null,null,null,null,"01","Televisor(es)",null,null,null,null,null,null,null,null,null,null,null,null,null,null,"SI"]
[null,null,null,null,"02","Computadoras (PC de escritorio)",null,null,null,null,null,null,null,null,null,null,null,null,null,null,"NO"]
[null,null,null,null,"03","Laptop convencionales"]
[null,null,null,null,"04","Laptop XO"]
[null,null,null,null,"05","Servidores (exclusivo del nivel)"]
[null,null,null,null,"06","Tablets"]
[null,null,null,null,"07","Proyector"]
[null,null,null,null,"08","Radiograbadora"]
[null,null,null,null,"09","Reproductor de DVD o Blue Ray"]
[null,null,null,null,"10","Impresoras"]
[null,null,null,null,"11","Impresora multifuncional"]
[null,null,null,null,"12","Pizarras digitales"]
[null,null,null,null,"13","Access Point"]
[null,null,null,null,"14","Servicio de Internet"]
[null,null,null,null,"15","Balanza de peso corporal"]
[null,null,null,null,null,"EQUIPOS DE LABORATORIO"]
[null,null,null,null,"16","Balanza"]
[null,null,null,null,"17","Centrífuga"]
[null,null,null,null,"18","Esterilizador"]
[null,null,null,null,"19","Mechero bunsen"]
[null,null,null,null,"20","Destiladora de agua"]
[null,null,null,null,"21","Equipo para baño maría"]
[null,null,null,null,"22","Microscopios binoculares"]
[null,null,null,null,"23","Microscopio digital"]
[null,null,null,null,"24","Maquetas de circuitos eléctricos"]
[null,null,null,null,"25","Impresora 3D"]
[null,null,null,null,"26","Robótica educativa"]
[]
[]
[null,null,"502. INICIATIVA RUTA SOLIDARIA - Para II.EE. Públicas",null,null,null,null,null,null,null,null,{"$f":"IF(OR(UPPER('C100'!K31)=\"X\",UPPER('C100'!Q31)=\"X\"),\"X\",IF(UPPER('C100'!Y31)=\"X\",\"\",\"\"))","v":""}]
[null,null,"502.1. ¿CUÁL ES EL PRINCIPAL MEDIO DE TRANSPORTE QUE UTILIZAN LOS",null,null,null,null,null,null,null,null,null,null,"502.2. ¿CONSIDERA NECESARIO PARA SU IIEE CONTAR CON UN SERVICIO DE"]
[null,null,null,"ESTUDIANTES PARA LLEGAR A LA ESCUELA Y CUÁNTO TIEMPO,",null,null,null,null,null,null,null,null,null,null,"TRANSPORTE GRATUITO O SUBVENCIONADO POR EL ESTADO PARA"]
[null,null,null,"EN PROMEDIO, DEMORAN EN LLEGAR?",null,null,null,null,null,null,null,null,null,null,"MEJORAR LA ASISTENCIA DIARIA DE LOS ESTUDIANTES?"]
[]
[null,null,null,null,"Medio de Transporte",null,null,"Porcentaje de ESTUDIANTES",null,"Tiempo en Minutos (PROMEDIO)",null,null,null,"Sí",null,null,null,"No  "]
[]
[]
[null,null,null,1,"A pie",null,null,null,null,null,null,null,null,null,"Indique qué tipo de servicio considera necesario"]
[null,null,null,2,"En bicicleta",null,null,null,null,null,null,null,null,null,"Marque con una \"X\", una o más opciones"]
[null,null,null,3,"En bus"]
[null,null,null,4,"En bote o peque peque",null,null,null,null,null,null,null,null,null,null,"Buses"]
[null,null,null,5,"Otros",null,null,null,null,null,null,null,null,null,null,"Bicicletas"]
[null,null,null,null,null,null,null,null,null,null,null,null,null,null,null,"Embarcaciones"]
[null,null,null,null,{"$f":"'C200'!F14+'C200'!G14","v":0},null,null,{"$f":"SUM(H50:I54)","v":0},null,null,null,null,null,null,null,"Otros"]
[]
[]
[null,"600. EDUCACIÓN FÍSICA Y DEPORTE - Para II.EE. Públicas y Privadas"]
[]
[null,null,"A. SITUACIÓN DEL DEPORTE ESCOLAR"]
[null,null,"601. EN EL AÑO 2024, EN ESTE SERVICIO/NIVEL EDUCATIVO, ¿PARTICIPÓ EN",null,null,null,null,null,null,null,null,null,null,"603. ¿QUÉ ACTIVIDADES DESARROLLA ESTE SERVICIO/NIVEL EDUCATIVO"]
[null,null,null,"EN LOS JEDPA (JUEGOS ESCOLARES DEPORTIVOS Y PARADEPORTIVOS)?",null,null,null,null,null,null,null,null,null,null,"DURANTE EL PRESENTE AÑO, ORIENTADAS A LA PROMOCIÓN DE UNA"]
[null,null,null,null,null,null,null,null,null,null,null,null,null,null,"VIDA ACTIVA, CREATIVA Y SALUDABLE?"]
[null,null,null,null,null,null,null,null,null,null,null,null,null,null,"Marque con una “X”, una o más opciones"]
[null,null,null,null,"Sí  ","",null,null,"No  "]
[null,null,null,null,null,null,null,null,null,null,null,null,null,null,null,"10 min de actividad básica diaria"]
[null,null,null,null,null,null,null,null,null,null,null,null,null,null,null,"Pausa activa"]
[null,null,null,null,null,null,null,null,null,null,null,null,null,null,null,"Juego aprendo y me siento saludable"]
[null,null,"602. EN EL PRESENTE AÑO, ¿ESTE SERVICIO/NIVEL EDUCATIVO HA INCORPORADO",null,null,null,null,null,null,null,null,null,null,null,null,"Actividad familiar (carrera familiar, maratón, caminata, etc.)"]
[null,null,null,"EN SU PLAN ANUAL DE TRABAJO ACTIVIDADES ORIENTADAS A LA",null,null,null,null,null,null,null,null,null,null,null,"Otro"]
[null,null,null,"PROMOCIÓN DE UNA VIDA ACTIVA, CREATIVA Y SALUDABLE?"]
[null,null,null,null,null,null,null,null,null,null,null,null,null,"604. SI EN LA PREGUNTA ANTERIOR SELECCIONO LA OPCIÓN “10 MINUTOS DE"]
[null,null,null,null,"Sí  ",null,null,null,null,null,null,null,null,null,"ACTIVIDAD FÍSICA”, ¿CUÁNTOS DÍAS A LA SEMANA DESARROLLA"]
[null,null,null,null,null,null,null,null,null,null,null,null,null,null,"ESTA ACTIVIDAD?"]
[null,null,null,null,"No  ",null,null,null,"Pase a la SECCIÓN 700",null,null,null,null,null,"Marque con una “X”, una opción"]
[]
[null,null,null,null,null,null,null,null,null,null,null,null,null,null,null,"1 Día"]
[null,null,null,null,null,null,null,null,null,null,null,null,null,null,null,"2 Días"]
[null,null,null,null,null,null,null,null,null,null,null,null,null,null,null,"3 Días"]
[null,null,null,null,null,null,null,null,null,null,null,null,null,null,null,"4 Días"]
[null,null,null,null,null,null,null,null,null,null,null,null,null,null,null,"5 Días"]

{"sheet":"C700","index":8,"n_rows":179,"n_cols":28,"rows_kept":179,"cut":false,"hidden":false,"merged":[[177,22,177,26],[151,19,151,23],[147,7,147,12],[139,20,139,24],[129,9,129,13],[117,26,118,26],[144,20,145,21],[2,7,2,25],[1,7,1,25],[82,22,83,22],[82,23,83,26],[89,25,90,26],[89,20,90,21],[117,20,118,21],[6,2,6,27],[112,7,112,12],[107,22,107,26],[97,20,97,24],[18,20,18,25],[19,7,19,11]]}
[]
[null,null,null,null,null,null,null,"CENSO EDUCATIVO 2025"]
[null,"Si",null,null,null,null,null,"MATRÍCULA, DOCENTES Y MATERIALES EDUCATIVOS"]
[null,"No"]
[]
[]
[null,null,"700. FORTALECIMIENTO DE LA GESTIÓN"]
[]
[null,null,null,"701. ¿CUÁLES SON LOS PRINCIPALES TEMAS QUE REQUIERE COMO CAPACITACIÓN",null,null,null,null,null,null,null,null,null,null,null,null,"707. ¿QUÉ INFORMACIÓN LE GUSTARÍA ENCONTRAR EN EL PORTAL WEB DE "]
[null,null,null,null,"PARA MEJORAR SU DESEMPEÑO COMO DIRECTOR(A)? ",null,null,null,null,null,null,null,null,null,null,null,null,"EVALUACIÓN DOCENTE DEL MINEDU? "]
[null,null,null,null,"Marque con una “X”, hasta 4 opciones",null,null,null,null,null,null,null,null,null,null,null,null,"Marque con una “X”, hasta dos opciones"]
[]
[null,null,null,{"$f":"COUNTIF(E13:E20,\"X\")","v":0},null,"Desarrollo de las competencias de las áreas curriculares",null,null,null,null,null,null,null,null,null,null,{"$f":"COUNTIF(R13:R19,\"X\")","v":0},"","Informes de resultados de evaluaciones por región"]
[null,null,null,null,null,"Planificación y evaluación",null,null,null,null,null,null,null,null,null,null,null,"","Informes de resultados de evaluaciones por área Pedagógica"]
[null,null,null,null,null,"Manejo de herramientas TIC y ofimáticas",null,null,null,null,null,null,null,null,null,null,null,"","Infografías sobre resultados en evaluaciones"]
[null,null,null,null,null,"Soporte emocional",null,null,null,null,null,null,null,null,null,null,null,"","Material audiovisual sobre evaluación docente"]
[null,null,null,null,null,"Participación de padres y madres de familias ",null,null,null,null,null,null,null,null,null,null,null,"","Informes dinámicos de resultados"]
[null,null,null,null,null,"Relacionamiento institucional y gestión de alianzas ",null,null,null,null,null,null,null,null,null,null,null,"","Webinars/presentaciones en línea"]
[null,null,null,null,null,"Acompañamiento pedagógico",null,null,null,null,null,null,null,null,null,null,null,"","Otros",null,""]
[null,null,null,null,null,"Otros"]
[]
[null,null,null,"702. DURANTE EL AÑO 2024 Y HASTA LA FECHA DE APLICACIÓN DEL CENSO EDUCATIVO 2025,"]
[null,null,null,null,"¿HA REALIZADO ACCIONES EN FAVOR DEL BIENESTAR SOCIOEMOCIONAL DE LOS",null,null,null,null,null,null,null,null,null,null,null,"708. ¿ACTUALMENTE CUENTA CON ALGÚN ESPACIO EN EL QUE PUEDA DIALOGAR CON DIRECTORES"]
[null,null,null,null,"ESTUDIANTES Y/O DE LOS DOCENTES Y/O FAMILIAS?",null,null,null,null,null,null,null,null,null,null,null,null,"DE OTRAS IIEE PARA COMPARTIR EXPERIENCIAS Y DESARROLLAR ESTRATEGIAS PARA"]
[null,null,null,null,null,null,null,null,null,null,null,null,null,null,null,null,null,"RESOLVER PROBLEMAS DE LA GESTIÓN DE SU SERVICIO/NIVEL EDUCATIVO?"]
[null,null,null,null,"Sí",null,null,null,null,"No  "]
[null,null,null,null,null,null,null,null,null,null,null,null,null,null,null,null,null,"Sí",null,null,null,null,"No  "]
[]
[null,null,null,null,"¿Qué acciones realizó? ",null,null,null,null,null,null,null,null,null,null,null,null,null,null,null,"¿Quién promueve estos espacios?"]
[null,null,null,null,"Marque con una “X”, una o más opciones",null,null,null,null,null,null,null,null,null,null,null,null,null,null,null,"Marque con una “X”, una o más opciones"]
[]
[null,null,null,null,null,"Elaborar un diagnóstico del estado del bienestar socioemocional de estudiantes ",null,null,null,null,null,null,null,null,null,null,null,null,null,null,null,"DRE/GRE"]
[null,null,null,null,null,"Elaborar un diagnóstico del estado del bienestar socioemocional de docentes ",null,null,null,null,null,null,null,null,null,null,null,null,null,null,null,"UGEL"]
[null,null,null,null,null,"Ejecutar acciones en la IIEE para trabajar específicamente gestión de emociones …",null,null,null,null,null,null,null,null,null,null,null,null,null,null,null,"Red educativa "]
[null,null,null,null,null,"Generar espacios de diálogo en la comunidad educativa con docentes y/o familias. ",null,null,null,null,null,null,null,null,null,null,null,null,null,null,null,"Por iniciativa propia"]
[null,null,null,null,null,"Promover espacios específicamente para abordar gestión de emociones con familias ",null,null,null,null,null,null,null,null,null,null,null,null,null,null,null,"Asociaciones varias (ONG, sector privado, universidades) "]
[null,null,null,null,null,"Ejecutar acciones en el marco de la Tutoría y Orientación Educativa (TOE)",null,null,null,null,null,null,null,null,null,null,null,null,null,null,null,"Ninguna de las anteriores"]
[]
[null,null,null,"703. ESTE SERVICIO/NIVEL EDUCATIVO, ¿COORDINA ALGUNA ACCIÓN CON OTROS ACTORES"]
[null,null,null,null,"DE LA LOCALIDAD PARA MEJORAR LA PRESTACIÓN DEL SERVICIO EDUCATIVO?"]
[null,null,null,null,null,null,null,null,null,null,null,null,null,null,null,null,"709. ¿QUÉ TAN INTERESADO SE ENCONTRARÍA DE PARTICIPAR EL AÑO 2026 DE ESPACIOS"]
[null,null,null,null,"Sí",null,null,null,null,"No  ",null,null,null,null,null,null,null,"EN LOS QUE SE REALICE TRABAJO COLABORATIVO CON DIRECTORES DE OTRAS"]
[null,null,null,null,null,null,null,null,null,null,null,null,null,null,null,null,null,"INSTITUCIONES EDUCATIVAS, PARA DIALOGAR SOBRE LOS PROBLEMAS DE LA"]
[null,null,null,null,null,null,null,"Indique a los actores de la localidad",null,null,null,null,null,null,null,null,null,"GESTIÓN ESCOLAR?"]
[null,null,null,null,null,null,null,"Marque con una “X”, una o más opciones",null,null,null,null,null,null,null,null,null,"Marque con una “X”, una opción"]
[]
[null,null,null,null,null,null,null,"","Municipalidad distrital",null,null,null,null,null,null,null,null,null,"Muy interesado"]
[null,null,null,null,null,null,null,"","Municipalidad provincial",null,null,null,null,null,null,null,null,null,"Interesado"]
[null,null,null,null,null,null,null,"","Gobierno regional",null,null,null,null,null,null,null,null,null,"Poco interesado"]
[null,null,null,null,null,null,null,"","Empresa privada",null,null,null,null,null,null,null,null,null,"Nada interesado"]
[null,null,null,null,null,null,null,"","ONG o sociedad civil"]
[]
[null,null,null,"704. USTED SEÑOR(A) DIRECTOR(A), DURANTE EL PRESENTE AÑO ESCOLAR 2025, ¿CON QUÉ"]
[null,null,null,null,"FRECUENCIA HA VISITADO EL PORTAL WEB PARA DIRECTIVO DE IIEE DEL MINEDU?",null,null,null,null,null,null,null,null,null,null,null,"710. DURANTE EL PRESENTE AÑO Y HASTA LA FECHA DE APLICACIÓN DEL CENSO"]
[null,null,null,null,"(https://directivos.minedu.gob.pe/) ",null,null,null,null,null,null,null,null,null,null,null,null,"EDUCATIVO 2025, SELECCIONE UNA O HASTA TRES ACCIONES QUE USTED HA"]
[null,null,null,null,"Marque con una “X”, una opción",null,null,null,null,null,null,null,null,null,null,null,null,"IMPLEMENTADO EN ESTE SERVICIO/NIVEL EDUCATIVO."]
[null,null,null,null,null,null,null,null,null,null,null,null,null,null,null,null,null,"Marque con una “X”, hasta 3 opciones"]
[null,null,null,null,null,"Nunca he ingresado durante este año"]
[null,null,null,null,null,"Casi nunca",null,null,null,null,null,null,null,null,null,null,{"$f":"COUNTIF(R59:R65,\"X\")","v":0},null,"Conducir la planificación institucional"]
[null,null,null,null,null,"A veces",null,null,null,null,null,null,null,null,null,null,null,null,"Promover y sostener la participación democrática de los diversos actores de la IE."]
[null,null,null,null,null,"Frecuentemente ",null,null,null,null,null,null,null,null,null,null,null,null,"Favorecer las condiciones operativas que aseguren aprendizajes de calidad"]
[null,null,null,null,null,"Siempre",null,null,null,null,null,null,null,null,null,null,null,null,"Liderar procesos de evaluación de la gestión de la IE."]
[null,null,null,null,null,null,null,null,null,null,null,null,null,null,null,null,null,null,"Promover y liderar una comunidad de aprendizaje con las y los docentes de su IE."]
[null,null,null,"705. USTED SEÑOR(A) DIRECTOR(A), ¿CONOCE EL PORTAL WEB DE EVALUACIÓN DOCENTE?",null,null,null,null,null,null,null,null,null,null,null,null,null,null,"Gestiona la calidad de los procesos pedagógicos al interior de su IE."]
[null,null,null,null,"https://evaluaciondocente.perueduca.pe/",null,null,null,null,null,null,null,null,null,null,null,null,null,"Ninguna de las anteriores"]
[]
[null,null,null,null,"Sí","",null,null,null,"No  ",null," u   Pase a la pregunta 708."]
[]
[null,null,null,"706. PARA USTED SEÑOR(A) DIRECTOR(A), ¿CUÁN IMPORTANTE CONSIDERA QUE ES LA"]
[null,null,null,null,"INFORMACIÓN QUE ENCUENTRA EN EL PORTAL WEB SOBRE LA EVALUACIÓN DOCENTE?"]
[null,null,null,null,"Marque con una “X”, una opción"]
[]
[null,null,null,null,"","Muy importante"]
[null,null,null,null,"","Importante"]
[null,null,null,null,"","Poco importante"]
[null,null,null,null,"","Nada importante"]
[]
[]
[null,null,null,"711. PARA SU LABOR COMO DIRECTOR(A)/DOCENTE, ¿CONOCE Y USA LOS RESULTADOS DE LAS",null,null,null,null,null,null,null,null,null,null,null,null,"715. DURANTE EL AÑO 2025 ESTE SERVICIO/NIVEL EDUCATIVO, ¿TUVÓ ALGUNA PLAZA DE"]
[null,null,null,null,"ÚLTIMAS EVALUACIONES DE LOGROS DE APRENDIZAJE A ESTUDIANTES,COMO LA",null,null,null,null,null,null,null,null,null,null,null,null,"PERSONAL ADMINISTRATIVO QUE NO HA LOGRADO CUBRIR?"]
[null,null,null,null,"EVALUACIÓN NACIONAL DE LOGROS DE APRENDIZAJE (ENLA) 2023 O 2024?"]
[null,null,null,null,"Marque con una “X”, una opción",null,null,null,null,null,null,null,null,null,null,null,null,null,"Sí"]
[null,null,null,null,null,null,null,null,null,null,null,null,null,null,null,null,null,null,"No",null,null,null,"u","Pase a la pregunta 718"]
[null,null,null,null,null,"No los conozco.",null,null,null,"------------",null,"Pase a la pregunta 714",null,null,null,null,null,null,"No tuve plaza asignada"]
[null,null,null,null,null,"Sí los conozco, pero no los uso.",null,null,null,"------------",null,"Pase a la pregunta 713",null,null,null,null,null,{"$f":"CONCATENATE(R84,R83)","v":""}]
[null,null,null,null,null,"Sí los conozco y los uso."]
[null,null,null,null,null,null,null,null,null,null,null,null,null,null,null,null,"716. ¿CUÁNTAS PLAZAS VACANTES SEGÚN CARGO NO SE LOGRÓ CUBRIR?"]
[null,null,null,"712. ¿CÓMO USA LOS RESULTADOS Y/O LOS INFORMES PEDAGÓGICOS DE LAS EVALUACIONES",null,null,null,null,null,null,null,null,null,null,null,null,null,"Complete según corresponda"]
[null,null,null,null,"NACIONALES DE LOGROS DE APRENDIZAJE A ESTUDIANTES?"]
[null,null,null,null,"Marque con una “X”, una o más opciones",null,null,null,null,null,null,null,null,null,null,null,null,null,null,null,"Cargo",null,null,null,null,"Cargo Cantidad de plazas no cubiertas"]
[null,null,null,null,null,null,null,null,null,null,null,null,null,null,null,null,null,null,null,null,null,null,null,null,{"$f":"SUM(AA92:AA98)","v":0}]
[null,null,null,null,null,"Como insumo para la elaboración de documentos de gestión ",null,null,null,null,null,null,null,null,null,null,null,1,"Secretario/a"]
[null,null,null,null,null,"Como insumo para las sesiones de aprendizaje en el aula.",null,null,null,null,null,null,null,null,null,null,null,2,"Oficinista"]
[null,null,null,null,null,"Como insumo para espacios de intercambio y reflexión en la IE.",null,null,null,null,null,null,null,null,null,null,null,3,"Trabajador de servicio que cumple funciones de guardianía"]
[null,null,null,null,null,"Como insumo para informar los logros y desafíos de aprendizaje a las familias.",null,null,null,null,null,null,null,null,null,null,null,4,"Trabajador de servicio que cumple funciones de limpieza"]
[null,null,null,null,null,"Como insumo para construir alianzas con otras instituciones y/o empresas.",null,null,null,null,null,null,null,null,null,null,null,5,"Auxiliar de Biblioteca"]
[null,null,null,null,null,"Como diagnostico para planificación curricular",null,null,null,null,null,null,null,null,null,null,null,6,"Auxiliar de Laboratorio"]
[null,null,null,null,null,null,null,null,null,null,null,null,null,null,null,null,null,7,"Otro",null,"MOZO"]
[null,null,null,"713. ¿A TRAVÉS DE QUÉ CANALES RECIBE INFORMACIÓN DE LAS EVALUACIONES DE"]
[null,null,null,null,"LOGROS DE APRENDIZAJE?"]
[null,null,null,null,"Marque como máximo hasta 3 opciones",null,null,null,null,null,null,null,null,null,null,null,"717. ¿POR QUÉ NO SE HA LOGRADO CUBRIR LA(S) PLAZA(S)?"]
[null,null,null,null,null,null,null,null,null,null,null,null,null,null,null,null,null,"Marque con una “X”, hasta dos opciones"]
[null,null,null,null,null,"Redes sociales (Facebook, Youtube, Twitter, Instagram, etc.)"]
[null,null,null,null,null,"Correo electrónico",null,null,null,null,null,null,null,null,null,null,null,null,"La Institución Educativa no requiere al personal asignado"]
[null,null,null,null,null,"Mensajes de texto",null,null,null,null,null,null,null,null,null,null,null,null,"No se presentaron postulantes"]
[null,null,null,null,null,"Mensajes por WhatsApp",null,null,null,null,null,null,null,null,null,null,null,null,"Postulantes no cuentan con la experiencia requerida"]
[null,null,null,null,null,"Eventos (conferencias, webinars, charlas, etc)",null,null,null,null,null,null,null,null,null,null,null,null,"UGEL no brinda mayor información"]
[null,null,null,null,null,"Espacios formativos (talleres, capacitaciones, etc.)",null,null,null,null,null,null,null,null,null,null,null,null,"Requiero otro tipo de personal"]
[null,null,null,null,null,"Envío de dispositivos de almacenamiento portátil con recursos"]
[null,null,null,null,null,"Envío de enlaces de almacenamiento en la nube con recursos"]
[null,null,null,null,null,"Programas de radios comunitarias",null,null,null,null,null,null,null,null,null,null,"718. CON RESPECTO A LAS ACTIVIDADES ADMINISTRATIVAS, SELECCIONE LOS DOS PRINCIPALES"]
[null,null,null,null,null,"Portales web de las DRE/GRE y UGEL",null,null,null,null,null,null,null,null,null,null,null,"ÁMBITOS QUE REPRESENTARON MAYOR CARGA LABORAL DURANTE EL PRESENTE"]
[null,null,null,null,null,"Otro",null,"",null,null,null,null,null,null,null,null,null,"AÑO E INDIQUE UN ORDEN DE PRIORIDAD DE “1” O “2” , SIENDO 1 “MAYOR CARGA”"]
[null,null,null,null,null,null,null,null,null,null,null,null,null,null,null,null,null,"Y 2 “MENOR CARGA” ENTRE LA SELECCIONADA"]
[null,null,null,"714. USTED SEÑOR(A) DIRECTOR(A), ¿CUENTA CON PERSONAL ADMINISTRATIVO?"]
[null,null,null,null,null,null,null,null,null,null,null,null,null,null,null,null,null,"Marque hasta dos opciones principales y señale 1 ó 2 según carga priorizada"]
[null,null,null,null,"Sí",null,null,null,null,"No  "]
[null,null,null,null,null,null,null,null,null,null,null,null,null,null,null,null,null,null,null,null,"Ámbito",null,null,null,null,null,"Prioridad\n(*)"]
[null,null,null,null,null,null,null,"¿Qué temáticas considera usted que el personal",null,null,null,null,null,null,null,null,null,null,null,null,null,null,null,null,null,{"$f":"SUM(AB120:AB125)","v":6}]
[null,null,null,null,null,null,null,"administrativo debe ser capacitado?",null,null,null,null,null,null,null,null,null,1,"Gestión de recursos financieros, bienes, servicios e infraestructura",null,null,null,null,null,null,null,null,{"$f":"IF(AA120=\"\",1,0)","v":1}]
[null,null,null,null,null,null,null,"Marque como máximo tres opciones",null,null,null,null,null,null,null,null,null,2,"Gestión de información de la IIEE (registro en sistemas administrativos)",null,null,null,null,null,null,null,null,{"$f":"IF(AA121=\"\",1,0)","v":1}]
[null,null,null,null,null,null,null,null,null,null,null,null,null,null,null,null,null,3,"Gestión y seguimiento del uso de los recursos educativos.",null,null,null,null,null,null,null,null,1]
[null,null,null,null,null,null,null,null,"Trabajo en equipo",null,null,null,null,null,null,null,null,4,"Limpieza y mantenimiento",null,null,null,null,null,null,null,null,1]
[null,null,null,null,null,null,null,null,"Orientación al servicio y comunicación asertiva",null,null,null,null,null,null,null,null,5,"Prevención y atención de situaciones de riesgo",null,null,null,null,null,null,null,null,1]
[null,null,null,null,null,null,null,null,"Primeros auxilios y seguridad y salud en el trabajo ",null,null,null,null,null,null,null,null,6,"Vigilancia y guardianía",null,null,null,null,null,null,null,null,1]
[null,null,null,null,null,null,null,null,"Manejo de herramientas TIC y ofimática"]
[null,null,null,null,null,null,null,null,"Manejo de los sistemas informáticos del MINEDU"]
[null,null,null,null,null,null,null,null,"Mantenimiento (electricidad, gasfitería, carpintería, etc)",null,null,null,null,null,null,null,null,null,"(*) Señale Prioridad, donde:"]
[null,null,null,null,null,null,null,null,"Conocimiento de seguridad básica",null,null,null,null,null,null,null,null,null,null,"1: Más carga"]
[null,null,null,null,null,null,null,null,"Otros","",null,null,null,null,null,null,null,null,null,"2: Menos carga"]
[]
[]
[null,null,null,"719. USTED SEÑOR(A) DIRECTOR(A), ¿CUENTA CON PERSONAL AUXILIAR DE EDUCACIÓN?",null,null,null,null,null,null,null,null,null,null,null,null,"723. ¿A TRAVÉS DE QUÉ INSTRUMENTOS DE GESTIÓN SE HA INCORPORADO?"]
[null,null,null,null,null,null,null,null,null,null,null,null,null,null,null,null,null,"Marque con una “X”, una opción"]
[null,null,null,null,"Sí",null,null,null,null,"No  "]
[null,null,null,null,null,null,null,null,null,null,null,null,null,null,null,null,null,"","Proyecto Educativo Institucional (PEI)"]
[null,null,null,null,null,null,null,null,null,null,null,null,null,null,null,null,null,"","Plan Anual de Trabajo (PAT)"]
[null,null,null,null,"¿Qué temáticas considera usted que el personal auxiliar",null,null,null,null,null,null,null,null,null,null,null,null,"","Proyecto Curricular de la IE (PCI)"]
[null,null,null,null,"de educación debe ser capacitado?",null,null,null,null,null,null,null,null,null,null,null,null,"","Reglamento Interno (RI)"]
[null,null,null,null,"Marque como máximo tres opciones",null,null,null,null,null,null,null,null,null,null,null,null,null,"Otros",null,""]
[]
[null,null,null,{"$f":"COUNTIF(E142:E148,\"X\")","v":0},null,"Comunicación oral",null,null,null,null,null,null,null,null,null,null,"724. ¿CUÁLES SON LOS INSTRUMENTOS DE GESTIÓN ESCOLAR CON QUE CUENTA ESTE"]
[null,null,null,null,null,"Trabajo en equipo y organización",null,null,null,null,null,null,null,null,null,null,null,"SERVICIO/NIVEL EDUCATIVO?"]
[null,null,null,null,null,"Resolución de problemas con agilidad y manejo de conflicto"]
[null,null,null,null,null,"Primeros auxilios y seguridad y salud en el trabajo",null,null,null,null,null,null,null,null,null,null,null,null,null,null,"Ámbito"]
[null,null,null,null,null,"Desarrollo infantil",null,null,null,null,null,null,null,null,null,null,null,null,null,null,null,null,null,{"$f":"COUNTIF(Y147:Y152,\"SI\")+COUNTIF(Y147:Y152,\"NO\")","v":0},"SI - NO"]
[null,null,null,null,null,"Relación con los estudiantes (el juego, soporte socioemocional",null,null,null,null,null,null,null,null,null,null,null,1,"Proyecto Educativo Institucional (PEI)"]
[null,null,null,null,null,"Otro",null,"",null,null,null,null,null,null,null,null,null,2,"Proyecto Currícular Institucional (PCI)"]
[null,null,null,null,null,null,null,null,null,null,null,null,null,null,null,null,null,3,"Reglamento Interno (RI)"]
[null,null,null,"720. ¿EN QUÉ TRIMESTRE CONSIDERA USTED QUE ES IDÓNEA LA FORMACIÓN DEL PERSONAL",null,null,null,null,null,null,null,null,null,null,null,null,null,4,"Plan Anual de Trabajo (PAT)"]
[null,null,null,null,"ADMINISTRATIVO Y/O AUXILIAR DE EDUCACIÓN?",null,null,null,null,null,null,null,null,null,null,null,null,5,"Documento de Gestión (DG)"]
[null,null,null,null,"Marque con una “X”, hasta dos opciones",null,null,null,null,null,null,null,null,null,null,null,null,6,"Otros"]
[]
[null,null,null,{"$f":"COUNTIF(E154:E158,\"X\")","v":0},null,"Entre enero y marzo",null,null,null,null,null,null,null,null,null,null,"725. ¿TIENE CONOCIMIENTO QUE EXISTE UNA HERRAMIENTA DIGITAL PARA LA EMISIÓN DE"]
[null,null,null,null,null,"Entre abril y junio",null,null,null,null,null,null,null,null,null,null,null,"CERTIFICADOS DE ESTUDIOS?"]
[null,null,null,null,null,"Entre julio y setiembre"]
[null,null,null,null,null,"Entre octubre y diciembre",null,null,null,null,null,null,null,null,null,null,null,"Sí",null,null,null,null,"No  "]
[null,null,null,null,null,"No cuento con personal administrativo y/o auxiliar de educación"]
[]
[null,null,null,"721. DURANTE EL PRESENTE AÑO Y HASTA LA FECHA DE APLICACIÓN DEL CENSO EDUCATIVO 2025,",null,null,null,null,null,null,null,null,null,null,null,null,null,null,null,null,"¿Ha hecho uso de la herramienta?"]
[null,null,null,null,"¿EL EQUIPO DIRECTIVO DE ESTE SERVICIO/NIVEL EDUCATIVO HA GESTIONADO ACCIONES"]
[null,null,null,null,"VINCULADAS AL TRABAJO COLABORATIVO CON DOCENTES?"]
[null,null,null,null,null,null,null,null,null,null,null,null,null,null,null,null,null,null,null,null,null,"Sí","",null,"No  ",""]
[null,null,null,null,"Sí",null,null,null,null,"No  "]
[]
[null,null,null,null,null,null,null,"¿Qué actividades ha implementado?"]
[null,null,null,null,null,null,null,"Marque con una “X”, hasta dos opciones priorizadas"]
[]
[null,null,null,null,null,null,{"$f":"COUNTIF(H169:H172,\"X\")","v":0},null,"Planificación institucional"]
[null,null,null,null,null,null,null,null,"Reuniones colegiadas"]
[null,null,null,null,null,null,null,null,"Comunidades de aprendizaje profesional",null,null,null,null,null,null,null,null,null,null,null,"¿Cuál es el motivo?"]
[null,null,null,null,null,null,null,null,"Gestión de la convivencia escolar",null,null,null,null,null,null,null,null,null,null,null,"Marque con una “X”, una o más opciones"]
[]
[null,null,null,"722. EN EL PRESENTE AÑO, ¿SE HA INCORPORADO ALGÚN OBJETIVO O ACCIÓN RELACIONADA CON",null,null,null,null,null,null,null,null,null,null,null,null,null,null,null,null,null,"Baja demanda educativa o pocos estudiantes"]
[null,null,null,null,"LA PREVENCIÓN, PROMOCIÓN O ATENCIÓN DE LA SALUD FÍSICA, MENTAL O EMOCIONAL DEL",null,null,null,null,null,null,null,null,null,null,null,null,null,null,null,null,"La IE que dirijo es multigrado"]
[null,null,null,null,"PERSONAL DOCENTE, DIRECTIVO, JERÁRQUICO O ADMINISTRATIVO EN LOS INSTRUMENTOS",null,null,null,null,null,null,null,null,null,null,null,null,null,null,null,null,"Bajo o escaso acceso a internet en la localidad"]
[null,null,null,null,"DE GESTIÓN DEL SERVICIO/NIVEL EDUCATIVO?",null,null,null,null,null,null,null,null,null,null,null,null,null,null,null,null,"En la localidad se habla otra lengua distinta al español"]
[null,null,null,null,null,null,null,null,null,null,null,null,null,null,null,null,null,null,null,null,null,"Otros",""]
[null,null,null,null,"Sí",null,null,null,null,"No  ",""," u   Pase a la pregunta 724."]

{"sheet":"C800","index":9,"n_rows":151,"n_cols":27,"rows_kept":151,"cut":false,"hidden":false,"merged":[[6,1,6,27],[22,8,22,9],[21,8,21,9],[24,8,24,9],[25,8,25,9],[25,10,25,11],[23,10,23,11],[21,10,21,11],[22,10,22,11],[24,10,24,11],[12,21,12,26],[12,15,13,16],[12,17,13,20],[25,3,25,6],[32,15,34,16],[14,17,21,20],[22,17,29,20],[30,17,36,20],[70,8,71,8],[70,9,71,12],[19,10,20,11],[19,12,20,12],[18,10,18,12],[19,8,20,9],[58,8,58,9],[58,10,58,11],[18,7,18,9],[22,15,29,16],[14,15,21,16],[19,7,20,7],[70,5,71,6],[71,20,71,25],[72,22,72,23],[71,16,72,19],[54,2,57,4],[54,5,57,7],[54,8,57,9],[54,10,57,11],[54,12,57,12],[58,2,58,4],[58,5,58,7],[72,9,72,12],[73,20,73,21],[74,20,74,21],[75,20,75,21],[73,22,73,23],[74,22,74,23],[75,22,75,23],[73,9,73,12],[74,9,74,12],[75,9,75,12],[80,9,80,12],[76,9,76,12],[77,9,77,12],[78,9,78,12],[79,9,79,12]]}
[]
[null,null,null,null,null,"CENSO EDUCATIVO 2025"]
["Si",null,null,null,null,"MATRÍCULA, DOCENTES Y MATERIALES EDUCATIVOS"]
["No"]
[]
[]
[null,"800. GESTIÓN DEL RIESGO DE DESASTRES"]
[]
[null,null,"801. EN EL PRESENTE AÑO, ESTE SERVICIO/NIVEL EDUCATIVO, ¿HA INCORPORADO ACCIONES",null,null,null,null,null,null,null,null,null,null,null,null,"802. SOBRE LA GESTIÓN DEL RIESGO DE DESASTRES EN ESTE SERVICIO/NIVEL EDUCATIVO,"]
[null,null,null,"ESTRATÉGICAS Y OPERATIVAS EN GESTIÓN DEL RIESGO DE DESASTRES Y SEGURIDAD Y",null,null,null,null,null,null,null,null,null,null,null,null,"ATIENDA LAS SIGUIENTES PREGUNTAS:"]
[null,null,null,"DEFENSA NACIONAL EN SUS INSTRUMENTOS DE GESTIÓN VIGENTES? ",null,null,null,null,null,null,null,null,null,null,null,null,"Marque con una “X” en “Si” o “No” según corresponda en atención a cada pregunta"]
[]
[null,null,null,"Sí","",null,null,null,"No  ",null,null,null,null,null,null,"Bien o Servicio",null,"Pregunta",null,null,null,"Marque con un “X”, según corresponda "]
[null,null,null,null,null,null,null,null,null,null,null,null,null,null,null,null,null,null,null,null,null,null,"SI","NO","Si es Sí, de quién lo recibió"]
[null,null,null,null,null,null,null,null,null,null,null,null,null,null,null,"Planos de Seguridad",null,"¿El servicio/nivel educativo cuenta con planos de seguridad acorde a la normativa?"]
[null,null,null,"Precise las acciones incorporadas en los documentos de gestión",null,null,null,null,null,null,null,null,null,null,null,null,null,null,null,null,null,null,null,null,"De la DRE/GRE",null,""]
[null,null,null,"Marque con una “X”, según corresponda ",null,null,null,null,null,null,null,null,null,null,null,null,null,null,null,null,null,null,null,null,"De la UGEL",null,""]
[null,null,null,null,null,null,null,null,null,null,null,null,null,null,null,null,null,null,null,null,null,null,"",null,"De la Municipalidad",null,""]
[null,null,null,null,null,null,null,"Riesgo de Desastres",null,null,"Seguridad y Defensa Nacional",null,null,null,null,null,null,null,null,null,null,null,null,null,"De una entidad privada",null,""]
[null,null,"Documentos de Gestión",null,null,null,null,"Acciones Estratégicas","Acciones Operativas",null,"Acciones Estratégicas",null,"Acciones Operativas",null,null,null,null,null,null,null,null,null,null,null,"Adquisición de la IE",null,""]
[null,null,null,null,null,null,null,null,null,null,null,null,null,null,null,null,null,null,null,null,null,null,null,null,"Donación",null,""]
[null,null,"Proyecto Educativo Inst. (PEI)",null,null,null,null,"",null,null,""]
[null,null,"Plan Anual de Trabajo (PAT)",null,null,null,null,null,"",null,null,null,"",null,null,"Dispositivos de Seguridad",null,"¿El servicio/nivel educativo cuenta con dispositivos de seguridad acorde a lo que indica en sus planos de seguridad?"]
[null,null,"Proyecto Curricular. Inst. (PCI)",null,null,null,null,"",null,null,"",null,null,null,null,null,null,null,null,null,null,null,null,null,"De la DRE/GRE",null,""]
[null,null,"Reglamento Interno (RI)",null,null,null,null,null,"",null,null,null,"",null,null,null,null,null,null,null,null,null,null,null,"De la UGEL",null,""]
[null,null,"Otros",null,null,null,null,"","",null,"",null,"",null,null,null,null,null,null,null,null,null,"",null,"De la Municipalidad",null,""]
[null,null,null,null,null,null,null,null,null,null,null,null,null,null,null,null,null,null,null,null,null,null,null,null,"De una entidad privada",null,""]
[null,null,null,null,null,null,null,null,null,null,null,null,null,null,null,null,null,null,null,null,null,null,null,null,"Adquisición de la IE",null,""]
[null,null,null,null,null,null,null,null,null,null,null,null,null,null,null,null,null,null,null,null,null,null,null,null,"Donación",null,""]
[]
[null,null,null,null,null,null,null,null,null,null,null,null,null,null,null,null,null,"¿El servicio/nivel educativo cuenta con dispositivos de seguridad incompletos"]
[null,null,null,null,null,null,null,null,null,null,null,null,null,null,null,null,null,null,null,null,null,null,null,null,"De la DRE/GRE",null,""]
[null,null,null,null,null,null,null,null,null,null,null,null,null,null,null,"Otros Casos",null,null,null,null,null,null,null,null,"De la UGEL",null,""]
[null,null,null,null,null,null,null,null,null,null,null,null,null,null,null,null,null,null,null,null,null,null,"",null,"De la Municipalidad",null,""]
[null,null,null,null,null,null,null,null,null,null,null,null,null,null,null,null,null,null,null,null,null,null,null,null,"De una entidad privada",null,""]
[null,null,null,null,null,null,null,null,null,null,null,null,null,null,null,null,null,null,null,null,null,null,null,null,"Adquisición de la IE",null,""]
[null,null,null,null,null,null,null,null,null,null,null,null,null,null,null,null,null,null,null,null,null,null,null,null,"Donación",null,""]
[]
[]
[]
[null,null,"803. EN EL PRESENTE AÑO, LOS MIEMBROS DE ESTE SERVICIO/NIVEL EDUCATIVO,",null,null,null,null,null,null,null,null,null,null,null,null,"804. EN EL PRESENTE AÑO, ESTE SERVICIO/NIVEL EDUCATIVO HA SUFRIDO EL IMPACTO DE"]
[null,null,null,"¿HAN RECIBIDO ACCIONES FORMATIVAS EN MATERIA DE LA GESTIÓN DEL RIESGO ",null,null,null,null,null,null,null,null,null,null,null,null,"DAÑOS DE UN FENÓMENO NATURAL O ANTRÓPICO?"]
[null,null,null,"DE DESASTRES (GRD) Y/O SEGURIDAD Y DEFENSA NACIONAL (SDN)?"]
[null,null,null,null,null,null,null,null,null,null,null,null,null,null,null,null,"Sí",null,null,null,null,null,"No  ",""]
[null,null,null,"Sí","",null,null,null,"No  "]
[]
[null,null,null,null,null,null,null,null,null,null,"Entidad",null,"SI - NO",null,null,null,null,null,null,"¿El servicio fue",null,null,"Sí",""]
[null,null,null,null,null,"El servicio fue brindado por:",null,null,null,"DRE/GRE",null,null,"",null,null,null,null,null,null,"suspendido?"]
[null,null,null,null,null,null,null,null,null,"UGEL",null,null,"",null,null,null,null,null,null,null,null,null,"No  ",""]
[null,null,null,null,null,null,null,null,null,"Municipio",null,null,""]
[null,null,null,null,null,null,null,null,null,"ONG/Entidad privada",null,null,"",null,null,null,"¿Cuál de los siguientes canales se utilizó para reportar la emergencia a la UGEL?"]
[null,null,null,null,null,null,null,null,null,null,null,null,{"$f":"COUNTIF(M48:M51,\"SI\")+COUNTIF(M48:M51,\"SI\")","v":0},null,null,null,"Marque con una “X”, una o más opciones"]
[null,null,"Tematicas: Marque con una “X”, según corresponda"]
[null,null,"Gestión del Riesgo de Desastres",null,null,null,null,null,null,null,"Seguridad y Defensa Nacional",null,null,null,null,null,"","Celular"]
[null,null,"Política/Plan NAcional en GRD",null,null,"Componentes, procesos o procedimientos de la GRD",null,null,"*Herramientas técnicas / Financieras en GRD",null,"Política/Plan Nacional en SDN",null,"Fundamentos de la SDN",null,null,null,"","Radiofonía"]
[null,null,null,null,null,null,null,null,null,null,null,null,null,null,null,null,"","Teléfono satelital"]
[null,null,null,null,null,null,null,null,null,null,null,null,null,null,null,null,"","Plataforma web"]
[null,null,null,null,null,null,null,null,null,null,null,null,null,null,null,null,"","Por conducto regular (oficio, informe)"]
[null,null,"",null,null,"",null,null,"",null,"",null,"",null,null,null,null,"No se sabía que había que reportar a la UGEL"]
[null,null,{"$f":"COUNTIF(C59:M59,\"X\")","v":0},null,null,null,null,null,null,null,null,null,null,null,null,null,"","No se reportó la emergencia porque no hay cobertura ni canal disponible en la zona."]
[]
[]
[null,null,"805. EN EL PRESENTE AÑO, ESTE SERVICIO/NIVEL EDUCATIVO, ¿HA ORGANIZADO Y EJECUTADO",null,null,null,null,null,null,null,null,null,null,null,null,"807. EN EL AÑO 2024, ESTE SERVICIO/NIVEL EDUCATIVO, ¿PARTICIPÓ EN LOS SIMULACROS"]
[null,null,null,"CAMPAÑAS COMUNICACIONALES DE GESTIÓN DEL RIESGO DE DESASTRES (GRD) Y/O",null,null,null,null,null,null,null,null,null,null,null,null,"CONVOCADOS POR MINEDU Y/O INDECI?"]
[null,null,null,"SEGURIDAD Y DEFENSA NACIONAL (SDN)?"]
[null,null,null,null,null,null,null,null,null,null,null,null,null,null,null,null,"Sí","",null,null,null,null,"No  "]
[null,null,null,"Sí","",null,null,null,"No  "]
[]
[null,null,null,null,null,null,null,null,null,null,null,null,null,null,null,null,"¿Qué nivel de preparación lograron?"]
[null,null,null,"Tipo de campaña que realizó",null,null,null,null,null,null,null,null,null,null,null,null,"Marque con una “X”, el nivel logrado en cada simulacro"]
[null,null,null,null,null,"Ítems",null,null,"Elija una opción","Temática de la campaña*"]
[null,null,null,null,null,null,null,{"$f":"COUNTIF(I73:I81,\"SI\")+COUNTIF(I73:I81,\"NO\")","v":0},null,null,null,null,null,null,null,null,"N° de simulacro",null,null,null,"Nivel de preparación Marque con un “X”"]
[null,null,null,1,"Pasacalle",null,null,null,"","",null,null,null,null,null,null,null,null,null,null,"Inicio",null,"Proceso",null,"Bueno","Destacado"]
[null,null,null,2,"Feria",null,null,null,"","",null,null,null,null,null,null,1,"Primer simulacro",null,null,"",null,"",null,"",""]
[null,null,null,3,"Activaciones motivadoras",null,null,null,"","",null,null,null,null,null,null,2,"Segundo simulacro",null,null,"",null,"",null,"",""]
[null,null,null,4,"Conferencias /Foros",null,null,null,"","",null,null,null,null,null,null,3,"Tercer simulacro",null,null,"",null,"",null,"",""]
[null,null,null,5,"Webinars",null,null,null,"",""]
[null,null,null,6,"Difusión de afiches, trípticos, volantes",null,null,null,"",""]
[null,null,null,7,"Murales",null,null,null,"",""]
[null,null,null,8,"Post en redes sociales",null,null,null,"",""]
[null,null,null,9,"Post radiales",null,null,null,"",""]
[]
[]
[null,null,"806. ESTE SERVICIO/NIVEL EDUCATIVO, ¿CUENTA CON UN PLAN DE GESTIÓN DEL RIESGO DE DESASTRES?"]
[]
[null,null,null,"Sí","",null,null,null,"No  "]
[]
[]
[null,null,null,"¿Qué actividades ha desarrollado en el Plan?"]
[null,null,null,"Marque con una “X”, una o más opciones"]
[]
[null,null,null,"","Identificó los peligros más frecuentes de la IE. (Ejem: lluvias, huaycos, entre otros)."]
[null,null,null,"","Identificó las vulnerabilidades en la IE. (Ejem: techos, canaletas, paredes, pisos en mal estado, personal sin capacitación, entre otros)."]
[null,null,null,"","Priorizó acciones correctivas en la infraestructura de la IE con presupuesto de mantenimiento."]
[null,null,null,"","Procedimientos de evacuación a zonas seguras en situaciones de emergencias."]
[null,null,null,"","Procedimientos de contención y soporte socioemocional en situaciones de emergencias."]
[null,null,null,"","Procedimientos de aplicación del currículo vigente en situaciones de emergencias"]
[]
[]
[]
[]
[]
[]
[]
[]
[]
[]
[]
[]
[]
["DIRECTOR(A)"]
["SUB DIRECTOR(A)"]
["DOCENTE"]
["COORDINADOR(A)"]
["ASESOR"]
["ADMINISTRATIVO"]
["ASISTENTE"]
["AUXILIAR"]
["SECRETARIA(O)"]
["ESTADÍSTICO"]
["ESPECIALISTA"]
["BIBLIOTECARIO"]
["CARE"]
["COMANDANTE PNP"]
["CONTADOR"]
["DAIP"]
["DIGITADOR(A)"]
["GERENTE"]
["JEFE ACADÉMICO"]
["JEFE ADMINISTRATIVO"]
["JEFE DE AREA"]
["JEFE DE LABORATORIO"]
["JEFE DE PERSONAL"]
["JEFE DE SEDE"]
["JEFE UNIDAD"]
["OFICINISTA"]
["OPERADOR DE SISTEMAS"]
["PERSONAL DE SERVICIO"]
["PROGRAMADOR"]
["PROMOTOR(A)"]
["PSICOLOGO"]
["REGISTRADOR(A)"]
["REPRESENTANTE LEGAL"]
["SOPORTE TECNOLOGICO"]
["TÉCNICO ADMINISTRATIVO"]
["TESORERO(A)"]
["TRABAJADOR SOCIAL"]
["TUTOR"]
["OTROS"]
["DOCENTE COORDINADOR(A)"]
["PEC"]

{"sheet":"C900","index":10,"n_rows":78,"n_cols":23,"rows_kept":78,"cut":false,"hidden":false,"merged":[[69,20,69,22],[47,20,47,22],[26,17,26,19],[48,8,48,10],[46,8,46,10],[47,8,47,10],[44,9,44,11],[6,1,6,23],[15,21,16,21],[15,20,16,20],[15,22,16,22],[15,15,16,19]]}
[]
[null,null,null,null,null,"CENSO EDUCATIVO 2025"]
["Si",null,null,null,null,"MATRÍCULA, DOCENTES Y MATERIALES EDUCATIVOS"]
["No"]
[]
[]
[null,"900. EDUCACIÓN AMBIENTAL"]
[]
[null,null,"901. EN EL PRESENTE AÑO, ESTE SERVICIO/NIVEL EDUCATIVO, ¿HA ELABORADO SU PROYECTO",null,null,null,null,null,null,null,null,null,null,null,"902. SEÑOR(A) DIRECTOR(A), SI HA ELABORADO SU PROYECTO EDUCATIVO AMBIENTAL"]
[null,null,null,"EDUCATIVO AMBIENTAL INTEGRADO (PEAI)?",null,null,null,null,null,null,null,null,null,null,null,"INTEGRADO (PEAI), MARQUE USTED, LAS PROBLEMÁTICAS/OPORTUNIDADES AMBIENTALES"]
[null,null,null,null,null,null,null,null,null,null,null,null,null,null,null,"QUE SE ABORDAN EN EL PEAI, DE ACUERDO A LO SIGUIENTE:"]
[null,null,null,"Sí"]
[null,null,null,null,null,null,null,null,null,null,null,null,null,null,null,"Marque con una “X”, hasta dos opciones"]
[null,null,null,null,null,"¿Ha implementado su proyecto educativo ambiental integrado (PEAI):"]
[]
[null,null,null,null,null,"Sí  ","",null,"Período",null,"Año","Mes",null,null,null,"Problemáticas / Oportunidades",null,null,null,null,"Principal","Comple- mentario","No aplica"]
[null,null,null,null,null,null,null,"","Desde",null,"",""]
[null,null,null,null,null,"No  ","","","Hasta",null,"","",null,null,null,1,"Contaminación por residuos sólidos",null,null,null,"","",""]
[null,null,null,null,null,null,null,null,null,null,null,null,null,null,null,2,"Cambio climático"]
[null,null,null,null,null,null,null,null,null,null,null,null,null,null,null,3,"Contaminación del agua"]
[null,null,null,"No  ","",null,"Pase a la pregunta 903.",null,null,null,null,null,null,null,null,4,"Desertificación"]
[null,null,null,null,null,null,null,null,null,null,null,null,null,null,null,5,"Depredación de flora y fauna"]
[null,null,null,null,null,null,null,null,null,null,null,null,null,null,null,6,"Microplásticos"]
[null,null,null,null,"Indique el/los motivo(s):",null,null,null,null,null,null,null,null,null,null,7,"3R: reducir, reusar, reciclar"]
[null,null,null,null,"Marque con una “X”, una o más opciones",null,null,null,null,null,null,null,null,null,null,8,"Contaminación del aire"]
[null,null,null,null,null,null,null,null,null,null,null,null,null,null,null,9,"Alimentación saludable"]
[null,null,null,null,"","Falta de conocimiento o capacitación",null,null,null,null,null,null,null,null,null,10,"Otro"]
[null,null,null,null,"","Falta de recursos"]
[null,null,null,null,"","Resistencia al cambio"]
[null,null,null,null,"","Dificultades para integrar el PEAI en el currículo"]
[null,null,null,null,"","Falta de apoyo institucional"]
[]
[]
[null,null,"903. EL SERVICIO/NIVEL EDUCATIVO, ¿CUENTA CON LA BRIGADA DE EDUCACIÓN AMBIENTAL Y",null,null,null,null,null,null,null,null,null,null,null,"905. SEÑOR(A) DIRECTOR(A), ¿LA BRIGADA DE EDUCACIÓN AMBIENTAL Y GESTIÓN DEL"]
[null,null,null,"GESTIÓN DE RIESGO DE DESASTRES?",null,null,null,null,null,null,null,null,null,null,null,"RIESGO DE DESASTRES CONFORMADA HA SIDO FORTALECIDO?"]
[]
[null,null,null,null,null,null,null,null,null,null,null,null,null,null,null,"Sí"]
[]
[null,null,null,"Sí","",null,null,null,"No  ","X"," u   Pase a la pregunta 1000.",null,null,null,null,null,null,null,"¿Quiénes la realizaron?"]
[null,null,null,null,null,null,null,null,null,null,null,null,null,null,null,null,null,null,"Marque con una “X”, una o más opciones"]
[]
[null,null,null,null,null,"Documento que lo aprueba",null,null,null,null,"Resolución",null,null,null,null,null,null,null,null,"El brigadista líder"]
[null,null,null,null,null,null,null,null,null,null,"Otro",null,null,null,null,null,null,null,null,"Directivo"]
[null,null,null,null,null,null,null,null,null,null,null,null,null,null,null,null,null,null,null,"Docentes"]
[null,null,null,null,null,"Número del Documento",null,null,null,"",null,null,null,null,null,null,null,null,null,"UGEL"]
[null,null,null,null,null,null,null,null,null,null,null,null,null,null,null,null,null,null,null,"DRE/GRE"]
[null,null,null,null,null,null,null,null,"Desde:",null,null,"Hasta:",null,null,null,null,null,null,null,"Gobierno local"]
[null,null,null,null,null,"Vigencia de la brigada",null,null,"DD/MM/AAAA",null,null,"DD/MM/AAAA",null,null,null,null,null,null,null,"Otro",""]
[null,null,null,null,null,null,null,null,"",null,null,""]
[null,null,null,null,null,null,null,null,null,null,null,null,null,null,"906. SEÑOR(A) DIRECTOR(A), INDIQUE USTED, ¿SI EN LOS DOS ÚLTIMOS AÑOS, LOS"]
[null,null,null,null,null,null,null,null,null,null,null,null,null,null,null,"INTEGRANTES DE LA BRIGADA DE EDUCACIÓN AMBIENTAL Y GESTIÓN DEL"]
[null,null,null,null,null,null,null,null,null,null,null,null,null,null,null,"RIESGO DE DESASTRES, HAN SIDO CAPACITADOS?"]
[]
[null,null,null,null,null,null,null,null,null,null,null,null,null,null,null,"Sí",null,null,"¿En qué temas han sido capacitados?"]
[null,null,"904. SEÑOR(A) DIRECTOR(A), LA BRIGADA DE EDUCACIÓN AMBIENTAL Y GESTIÓN DEL",null,null,null,null,null,null,null,null,null,null,null,null,null,null,null,"Marque con una “X”, una o más opciones"]
[null,null,null,"RIESGO DE DESASTRES CONFORMADA, ¿CUENTA CON UN PLAN DE ACCIÓN ELABORADO?"]
[null,null,null,null,null,null,null,null,null,null,null,null,null,null,null,null,null,null,null,"Cambio climático"]
[null,null,null,null,null,null,null,null,null,null,null,null,null,null,null,null,null,null,null,"Manejo de residuos sólidos"]
[null,null,null,"Sí",null,null,null,null,null,null,null,null,null,null,null,null,null,null,null,"Cuidado de los humedales"]
[null,null,null,null,null,null,null,null,null,null,null,null,null,null,null,null,null,null,null,"Diversidad biológica"]
[null,null,null,null,null,null,"Indique la fecha de la elaboración del plan de acción",null,null,null,null,null,null,null,null,null,null,null,null,"Primeros auxilios"]
[null,null,null,null,null,null,null,null,null,null,null,null,null,null,null,null,null,null,null,"Capacitación contra Incendios"]
[null,null,null,null,null,null,null,null,null,null,null,null,null,null,null,null,null,null,null,"Señalización y evacuación"]
[null,null,null,null,null,null,"Día","Mes","Año",null,null,null,null,null,null,null,null,null,null,"Seguridad y protección"]
[null,null,null,null,null,null,null,null,null,null,null,{"$f":"CONCATENATE(G65,\"/\",H65,\"/\",I65)","v":"//"},null,null,null,null,null,null,null,"Soporte Socioemocional y actividades lúdicas"]
[null,null,null,null,null,null,null,null,null,null,null,null,null,null,null,null,null,null,null,"Alimentación saludable"]
[null,null,null,null,null,null,null,null,null,null,null,null,null,null,null,null,null,null,null,"Transporte sostenible"]
[null,null,null,null,null,null,null,null,null,null,null,null,null,null,null,null,null,null,null,"Desertificación"]
[null,null,null,null,null,null,null,null,null,null,null,null,null,null,null,null,null,null,null,"Plásticos y microplásticos"]
[null,null,null,null,null,null,null,null,null,null,null,null,null,null,null,null,null,null,null,"Otro",""]
[null,null,null,"No  ",null,null,null,null,null,null,null,null,null,null,null,null,null,null,""]
[null,null,null,null,null,null,null,null,null,null,null,null,null,null,null,"No  ",null,null,"Indique, ¿cuál es el motivo?"]
[null,null,null,null,null,null,null,null,null,null,null,null,null,null,null,null,null,null,"Marque con una “X”, una opción"]
[null,null,null,null,"¿El plan de acción esta incorporado en el plan anual de trabajo?"]
[null,null,null,null,null,null,null,null,null,null,null,null,null,null,null,null,null,null,null,"No saben a quién solicitar apoyo para la capacitación"]
[null,null,null,null,"Sí",null,null,null,"No  ",null,null,null,null,null,null,null,null,null,null,"No cuentan con aliados especializados"]
[null,null,null,null,null,null,null,null,null,null,null,null,null,null,null,null,null,null,null,"Se suspendió por cruce de actividades"]
[null,null,null,null,null,null,null,null,null,null,null,null,null,null,null,null,null,null,null,"No se ha recibido invitación"]

{"sheet":"C1000","index":11,"n_rows":226,"n_cols":22,"rows_kept":226,"cut":false,"hidden":false,"merged":[[75,3,75,8],[76,3,76,8],[77,3,77,8],[71,1,71,23],[66,2,68,11],[68,19,68,21],[6,1,6,23],[76,9,76,12],[77,9,77,12],[74,19,74,21],[75,13,75,18],[75,19,75,21],[75,9,75,12],[76,13,76,18],[76,19,76,21],[77,13,77,18],[77,19,77,21],[32,3,32,6],[33,3,33,6],[34,3,34,6],[35,3,35,6],[36,3,36,6],[32,8,32,11],[33,8,33,11],[34,8,34,11],[35,8,35,11],[36,8,36,11],[40,15,40,18],[41,15,41,18],[42,15,42,18],[43,15,43,18],[44,15,44,18],[40,20,40,22],[41,20,41,22],[42,20,42,22],[43,20,43,22],[44,20,44,22]]}
[]
[null,null,null,null,null,"CENSO EDUCATIVO 2025"]
["Si",null,null,null,null,"MATRÍCULA, DOCENTES Y MATERIALES EDUCATIVOS"]
["No"]
[]
[]
[null,"1000. ORIENTACIÓN VOCACIONAL Y CIENCIA TECNOLÓGICA "]
[]
[null,null,"1001. EN LOS ÚLTIMOS 3 AÑOS, ¿HA PARTICIPADO EN LA FERIA ESCOLAR NACIONAL",null,null,null,null,null,null,null,null,null,null,null,"1005. DURANTE EL AÑO 2024, ¿SE LES OFRECIÓ A LOS ESTUDIANTES ALGÚN PROGRAMA,"]
[null,null,null,"DE CIENCIA Y TECNOLOGÍA “EUREKA” O “EUREKA VIRTUAL” ?",null,null,null,null,null,null,null,null,null,null,null,"SESIÓN O FERIA DE ORIENTACIÓN VOCACIONAL PARA POSTULAR A ALGUNA CARRERA"]
[null,null,null,null,null,null,null,null,null,null,null,null,null,null,null,"DE ALGUNA UNIVERSIDAD?"]
[null,null,null,"Sí","",null,null,"No  "]
[null,null,null,null,null,null,null,null,null,null,null,null,null,null,null,"Sí",null,null,null,"No  ",""," u   Pase a la pregunta 1008."]
[]
[null,null,null,null,"¿Hasta qué etapa de la feria EUREKA lograron clasificar?"]
[null,null,null,null,null,null,null,null,null,null,null,null,null,null,null,"¿Recibió la orientación vocacional de parte de?"]
[null,null,null,null,null,"","Primera Etapa (SS.EE.)",null,null,null,null,null,null,null,null,"Marque con una “X”, una o más opciones"]
[null,null,null,null,null,"","Segunda etapa (UGEL)"]
[null,null,null,null,null,"","Tercera etapa (DRE/GRE)",null,null,null,null,null,null,null,null,null,"Servicio/Nivel educativo"]
[null,null,null,null,null,"","Cuarta Etapa (Nacional)",null,null,null,null,null,null,null,null,null,"Las universidades",null,null,"-------------------",null,"Pase a la pregunta 1007"]
[null,null,null,null,null,null,null,null,null,null,null,null,null,null,null,"","Otras",null,"","-------------------",null,"Pase a la pregunta 1008"]
[null,null,"1002. ESTE SERVICIO/NIVEL EDUCATIVO, ¿CUENTA CON CONVENIOS DE UNIVERSIDADES"]
[null,null,null,"QUE PERMITA A LOS ESTUDIANTES CON LAS MEJORES CALIFICACIONES OBTENER",null,null,null,null,null,null,null,null,null,null,"1006. SI LA ORIENTACIÓN VOCACIONAL RECIBIDA FUE POR PARTE DEL"]
[null,null,null,"SUBVENCIONES EDUCATIVAS (BECAS Y/O CREDITOS) EN DICHAS CASAS DE ESTUDIO?",null,null,null,null,null,null,null,null,null,null,null,"SERVICIO/NIVEL EDUCATIVO?"]
[]
[null,null,null,"Sí","",null,null,"No  ",null,null,null,null,null,null,null,"¿En qué consistió dicha orientación vocacional?"]
[null,null,null,null,null,null,null,null,null,null,null,null,null,null,null,"Marque con una “X”, una o más opciones"]
[]
[null,null,null,null,"A. ¿Cuántas universidades?",null,null,null,null,null,"",{"$f":"SUM(M33:M37)+SUM(B33:B37)","v":0},null,null,null,null,"Se trató aspectos individuales de los alumnos, como la personalidad …"]
[null,null,null,null,null,null,null,null,null,null,null,null,null,null,null,null,"Se informó sobre las alterna vas de carreras y universidades que ofrece el Perú"]
[null,null,"Seleccione una o más universidades según corresponda",null,null,null,null,null,null,null,null,null,null,null,null,null,"Se orientó y asistió a los alumnos para que tome la mejor decisión al momento"]
[null,null,null,null,null,null,null,null,null,null,null,null,null,null,null,null,"Hubo dinámicas o sesiones en las aulas para preparar a los alumnos"]
[null,{"$f":"IF(D33<>\"\",1,0)","v":0},1,"",null,null,null,6,"",null,null,null,{"$f":"IF(I33<>\"\",1,0)","v":0},null,null,null,"Realizaron simulacros de exámenes de admisión."]
[null,{"$f":"IF(D34<>\"\",1,0)","v":0},2,"",null,null,null,7,"",null,null,null,{"$f":"IF(I34<>\"\",1,0)","v":0}]
[null,0,3,"",null,null,null,8,"",null,null,null,0,null,"1007. SI LA ORIENTACIÓN VOCACIONAL RECIBIDA FUE POR PARTE DE LAS"]
[null,0,4,"",null,null,null,9,"",null,null,null,0,null,null,"UNIVERSIDADES, INDICAR LO SIGUIENTE:"]
[null,0,5,"",null,null,null,10,"",null,null,null,0,null,null,"¿Qué universidades participaron?"]
[]
[null,null,null,null,"B. Número total de vacantes ofrecidas",null,null,null,null,{"$f":"'C200'!F14+'C200'!G14","v":0},"",null,null,null,"Seleccione una o más universidades según corresponda"]
[]
[null,null,"1003. DURANTE EL AÑO 2024, ¿SE HA IMPLEMENTADO ACCIONES PARA PROMOVER EL",null,null,null,null,null,null,null,null,null,null,null,1,null,null,null,null,6]
[null,null,null,"PROYECTO DE VIDA Y ORIENTACIÓN VOCACIONAL ENTRE SUS ESTUDIANTES?",null,null,null,null,null,null,null,null,null,null,2,null,null,null,null,7]
[null,null,null,null,null,null,null,null,null,null,null,null,null,null,3,null,null,null,null,8]
[null,null,null,"Sí","",null,null,"No  ",null," u   Pase a la pregunta 1005.",null,null,null,null,4,null,null,null,null,9]
[null,null,null,null,null,null,null,null,null,null,null,null,null,null,5,null,null,null,null,10]
[null,null,"1004. DURANTE EL AÑO ACADÉMICO 2024, ¿LOS ESTUDIANTES RECIBIERON ALGUNAS"]
[null,null,null,"DE LAS SIGUIENTES ACTIVIDADES ORGANIZADAS POR SU SERVICIO/NIVEL EDUCATIVO,",null,null,null,null,null,null,null,null,null,null,null,"¿En qué consistió dicha orientación vocacional?"]
[null,null,null,"YA SEA PRESENCIAL O VIRTUAL?",null,null,null,null,null,null,null,null,null,null,null,"Marque con una “X”, una o más opciones"]
[]
[null,null,null,"Selecccione (SI o NO) recibieron alguna actividad por grado de estudio",null,null,null,null,null,null,null,null,null,null,null,"","Se explicaron los aspectos misionales, la visión y los objetivos de las univ."]
[null,null,null,null,null,null,null,null,null,null,null,null,null,null,null,"","Realizaron simulacros de exámenes de admisión para la universidad."]
[null,null,null,null,"Actividades",null,null,"Grado de estudio",null,null,null,null,null,null,null,"","Se presentaron las carreras disponibles de las universidades participantes …"]
[null,{"$f":"SUM(B54:B60)","v":0},null,null,null,null,{"$f":"SUM(H61:L61)","v":0},"1°","2°","3°","4°","5°",null,null,null,"","Se explicó el aspecto económico de las carreras."]
[null,{"$f":"COUNTIF(H54:L54,\"SI\")+COUNTIF(H54:L54,\"NO\")","v":0},"1. Aplicación de una prueba de orientación voc.",null,null,null,null,"","","","","",null,null,null,"","Se explicó sobre las modalidades de admisión."]
[null,{"$f":"COUNTIF(H55:L55,\"SI\")+COUNTIF(H55:L55,\"NO\")","v":0},"2. Charlas vocacionales",null,null,null,null,"","","","",""]
[null,0,"3. Ferias acerca de carreras ofrecidas por las univ.",null,null,null,null,"","","","","",null,null,"1008. DURANTE EL AÑO 2024, ¿ESTE SERVICIO/NIVEL EDUCATIVO PROMOCIONÓ ALGUNA"]
[null,0,"4. Charlas de induc. en el Portal Ponte en Carrera",null,null,null,null,"","","","","",null,null,null,"PLATAFORMA DE INFORMACIÓN VOCACIONAL Y/O LABORAL A LOS ESTUDIANTES,"]
[null,0,"5. Aplicación de simulacros de admisión a la univ.",null,null,null,null,"","","","","",null,null,null,"COD EL FIN DE FACILITAR UN ACCESO PERTINENTE A LA EDUCACIÓN UNIVERSITARIA?"]
[null,0,"6. Charlas informativas sobre los prog. PRONABEC",null,null,null,null,"","","","",""]
[null,0,"7. Actividades de tutoría grupal e individual",null,null,null,null,"","","","","",null,null,null,"Sí","",null,null,"No  "]
[null,null,null,null,null,null,null,{"$f":"COUNTIF(H54:H60,\"SI\")+COUNTIF(H54:H60,\"NO\")","v":0},{"$f":"COUNTIF(I54:I60,\"SI\")+COUNTIF(I54:I60,\"NO\")","v":0},0,0,0]
[]
[null,null,"ANOTACIONES COMPLEMENTARIAS QUE CONSIDERE NECESARIO AGREGAR",null,null,null,null,null,null,null,null,null,null,null,null,null,"¿Qué plataforma(s) utilizó?"]
[null,null,null,null,null,null,null,null,null,null,null,null,null,null,null,null,"Marque con una “X”, una o más opciones"]
[null,null,"longitud máxima 200 caracteres",null,null,null,null,null,null,null,null,{"$f":"LEN(TRIM(C67))","v":0}]
[null,null,null,null,null,null,null,null,null,null,null,null,null,null,null,null,"","Portal Ponte en Carrera"]
[null,null,null,null,null,null,null,null,null,null,null,null,null,null,null,null,"","Portal TUNI"]
[null,null,null,null,null,null,null,null,null,null,null,null,null,null,null,null,"","La página web del colegio"]
[null,null,null,null,null,null,null,null,null,null,null,null,null,null,null,null,"","Otros",null,""]
[]
[]
[null,"DATOS DEL DIRECTOR(A) Y/O RESPONSABLE (S) DEL LLENADO DE LA CÉDULA"]
[]
[]
[null,null,null,null,"NOMBRES Y APELLIDOS",null,null,null,null,"CARGO",null,null,null,"CORREO ELECTRÓNICO",null,null,null,null,null,"TELÉFONO"]
[]
[]
[]
[]
[]
[]
[]
[]
["DIRECTOR(A)"]
["SUB DIRECTOR(A)"]
["DOCENTE"]
["COORDINADOR(A)"]
["ASESOR"]
["ADMINISTRATIVO"]
["ASISTENTE"]
["AUXILIAR"]
["SECRETARIA(O)"]
["ESTADÍSTICO"]
["ESPECIALISTA"]
["BIBLIOTECARIO"]
["CARE"]
["COMANDANTE PNP"]
["CONTADOR"]
["DAIP"]
["DIGITADOR(A)"]
["GERENTE"]
["JEFE ACADÉMICO"]
["JEFE ADMINISTRATIVO"]
["JEFE DE AREA"]
["JEFE DE LABORATORIO"]
["JEFE DE PERSONAL"]
["JEFE DE SEDE"]
["JEFE UNIDAD"]
["OFICINISTA"]
["OPERADOR DE SISTEMAS"]
["PERSONAL DE SERVICIO"]
["PROGRAMADOR"]
["PROMOTOR(A)"]
["PSICOLOGO"]
["REGISTRADOR(A)"]
["REPRESENTANTE LEGAL"]
["SOPORTE TECNOLOGICO"]
["TÉCNICO ADMINISTRATIVO"]
["TESORERO(A)"]
["TRABAJADOR SOCIAL"]
["TUTOR"]
["OTROS"]
["DOCENTE COORDINADOR(A)"]
["PEC"]
[]
[]
["001: Universidad Mayor de San Marcos"]
["002: Universidad San Cristóbal de Huamanga"]
["003: Universidad San Antonio Abad del Cusco"]
["004: Universidad de Trujillo"]
["005: Universidad San Agustín"]
["006: Universidad Ciro Alegría"]
["007: Universidad de Ingeniería"]
["008: Universidad Agraria La Molina"]
["009: Universidad San Luis Gonzaga"]
["010: Universidad del Centro del Perú"]
["011: Universidad de la Amazonía Peruana"]
["012: Universidad del Altiplano"]
["013: Universidad de Piura"]
["014: Universidad de Cajamarca"]
["015: Universidad Federico Villarreal"]
["016: Universidad Agraria de la Selva"]
["017: Universidad Hermilio Valdizán"]
["018: Universidad de Educación Enrique Guzmán y Valle"]
["019: Universidad Daniel Alcides Carrión"]
["020: Universidad del Callao"]
["021: Universidad José Faustino Sánchez Carrión"]
["022: Universidad Pedro Ruíz Gallo"]
["023: Universidad Jorge Basadre Grohmann"]
["024: Universidad Santiago Antúnez de Mayolo"]
["025: Universidad de San Martín"]
["026: Universidad de Ucayali"]
["027: Universidad de Tumbes"]
["028: Universidad del Santa"]
["029: Universidad de Huancavelica"]
["030: Universidad Amazónica de Madre de Dios"]
["031: Universidad Toribio Rodríguez de Mendoza de Amazonas"]
["032: Universidad Micaela Bastidas de Apurímac"]
["033: Universidad Intercultural de la Amazonía"]
["034: Universidad Tecnológica de Lima Sur"]
["035: Universidad José María Arguedas"]
["036: Universidad de Moquegua"]
["037: Universidad de Juliaca"]
["038: Universidad de Jaén"]
["039: Universidad de Frontera"]
["040: Universidad Autónoma de Chota"]
["041: Universidad de Barranca"]
["042: Universidad de Cañete"]
["043: Universidad Intercultural Fabiola Salazar Leguía de Bagua"]
["044: Universidad Intercultural de la Selva Central Juan Santos Atahualpa"]
["045: Universidad Intercultural de Quillabamba"]
["046: Universidad Autónoma de Alto Amazonas"]
["047: Universidad Autónoma Altoandina de Tarma"]
["048: Universidad Autónoma de Huanta"]
["049: Universidad Autónoma de Tayacaja Daniel Hernández Morillo"]
["050: Pontificia Universidad Católica del Perú"]
["051: Universidad Peruana Cayetano Heredia"]
["052: Universidad Católica de Santa María"]
["053: Universidad del Pacífico"]
["054: Universidad de Lima"]
["055: Universidad de San Martín de Porres"]
["056: Universidad Femenina del Sagrado Corazón"]
["057: Universidad de Piura"]
["058: Universidad Ricardo Palma"]
["059: Universidad Peruana Los Andes"]
["060: Universidad Peruana Unión"]
["061: Universidad Andina del Cusco"]
["062: Universidad Tecnológica de los Andes"]
["063: Universidad Privada de Tacna"]
["064: Universidad Privada Antenor Orrego"]
["065: Universidad de Huánuco"]
["066: Universidad Marcelino Champagnat"]
["067: Universidad César Vallejo"]
["068: Universidad Peruana de Ciencias Aplicadas"]
["069: Universidad Privada del Norte"]
["070: Universidad San Ignacio de Loyola"]
["071: Universidad Norbert Wiener"]
["072: Universidad Católica San Pablo"]
["073: Universidad Privada San Juan Bautista"]
["074: Universidad Tecnológica del Perú"]
["075: Universidad Continental"]
["076: Universidad Científica del Sur"]
["077: Universidad Católica Santo Toribio de Mogrovejo"]
["078: Universidad Católica Sedes Sapientiae"]
["079: Universidad Señor de Sipán"]
["080: Universidad Católica de Trujillo Benedicto XVI"]
["081: Universidad ESAN"]
["082: Universidad Antonio Ruiz de Montoya"]
["083: Universidad para el Desarrollo Andino"]
["084: Universidad Autónoma de Ica"]
["085: Universidad Autónoma del Perú"]
["086: Universidad de Ciencias y Humanidades"]
["087: Universidad Jaime Bausate y Meza"]
["088: Universidad Le Cordon Bleu"]
["089: Universidad Privada de Huancayo Franklin Roosevelt"]
["090: Universidad de Ciencias y Artes de América Latina"]
["091: Universidad de Ingeniería y Tecnología"]
["092: Universidad La Salle"]
["093: Universidad María Auxiliadora"]
["094: Universidad privada peruano alemana"]
["095: Facultad de Teología Pontificia y Civil de Lima"]
["096: Universidad Privada de Trujillo"]
["097: Universidad Peruana del Centro"]
["098: Universidad Politécnica del Perú"]
["099: Escuela de Postgrado Gerens"]
["100: Escuela de Posgrado Newman"]

{"sheet":"Enviar","index":12,"n_rows":9,"n_cols":3,"rows_kept":9,"cut":false,"hidden":false,"merged":[[0,0,0,3],[1,0,1,3]]}
["CENSO EDUCATIVO 2025"]
["MATRÍCULA, DOCENTES Y MATERIALES EDUCATIVOS"]
[]
[]
[null,"Paso 1:","Realice el ENVÍO con su clave EOL."]
[]
[null,"Paso 2:","Una vez realizado el ENVÍO,  Revise su constancia de envio."]
[]
[null,"  ADVERTENCIA","ASEGÚRESE DE REGISTRAR TODA LA INFORMACIÓN DEL NIVEL INFORMANTE"]